Workbook

Sheet Begruessung
B1: Hi,
B3: nicht erschrecken, die Datei enthält natürlich Makros. Sie dienen bis auf 1 Ausnahme nur zum Navigieren. Die Ausnahme ist das Lösch-Makro, das alle Trainingsdaten entfernt. Man kann aber auch normal von Hand in der Datei navigieren. Es ist nichts versteckt (da fällt mir ein: Spalten im Laufkalenderblatt). Auf allen Arbeitsblättern habe ich sicherheitshalber einen Blattschutz aktiviert, aber ohne Paßwort. Kann über Schutz-Blattschutzaufheben deaktiviert werden.
B5: Zur Demo habe ich ein paar Trainingsdaten eingegeben, damit Ihr die Berechnungen und Grafiken sehen könnt. Macht eine Sicherheitskopie, bevor Ihr mit dem Button im Hauptmenü (oder auch zu Fuß, wenn Ihr dem Makro nicht trauen wollt) die Testdaten löscht und Euch selbst versucht.
B7: Die Kennziffern für die Belastung kann man im Blatt Kriterien beliebig ändern (z.Z. HF-Bereiche). Nur muss man dann bei der Eingabe der Trainingsläufe, genau wie bei den Schuhmodellen, natürlich genau dasselbe Kürzel verwenden. Das ist durch die automatische dropdown-Liste und Gültigkeitsprüfung gewährleistet.
B9: Die Bildschirm-Anzeige ist für 1280x1024 Pixel eingestellt. Das läßt sich am einfachsten durch Änderung des Zoom-Faktors anpassen (Zoom-Faktor ist nur nutzbar, wenn Cursor in der Tabelle steht, d.h. nicht die Graphik markiert ist). Genug der Gebrauchsanweisungen, so kompliziert ist's wirklich nicht. Ach so, vielleicht paßt meine Skala in der Grafik nicht zu Eurem Trainingsumfang. Zum ändern einfach auf eine Skalenzahl doppelklicken und dann im Register Skalierung das Maximum verändern.
B11: Viel Spaß
B12: Uli | D12: mailto:ulrich.sauer@gmx.de | G12: http://www.laufen-in-witten.de
D13: http://www.uli-sauer.de | G13: http://www.london-marathon.de
B15: Bei weiteren Fragen beachtet bitte die FAQ: | F15: http://www.uli-sauer.de/laufen/training/faq_lauftagebuch.htm
B17: Aktualisierungen
B18: 05.11.20: Die Version 2021 ist jetzt eine xlsm-Datei und hat nur noch rd. 0,5 MB. Die Funktion für die automatische Grafikschau ist gelöscht, da kaum Bedarf.
B20: 15.11.19: Da dieser Laufkalender offenbar immer weiter lebt, ist die Gültigkeitsprüfung für die Eingabe des aktuellen Jahres jetzt auf max. 2030 gesetzt.
B21: 12.06.18: Im Laufkalender kann man die Distanz jetzt aus einer Dropdown-Liste auswählen. Die Distanzen können individuell editiert werden im Blatt Strecken.
B22: 01.01.18: Keine Änderungen gegenüber der Vorjahresversion.
B23: 01.01.17: Keine Änderungen gegenüber der Vorjahresversion.
B24: 08.12.15: Fehler behoben. Sonderabfragen im Blatt Kriterien für Rad-Zeiträume werden jetzt richtig berechnet.
B25: 22.11.13: Hinweis Die Download-Datei ist weiterhin eine xls-Datei, das heißt auf Basis Excel2003. Wer eine aktuelle Excel-Version hat, kann die Datei einfach als xlsm (Datei mit Makros) abspeichern und ohne Ein- schränkung nutzen. Vorteil ist auch, dass die Datei dann nur 0,5MB statt 1,5MB hat.
B26: 07.01.10: (1) Im offiziellen Kalender erhält am Jahresanfang die erste Woche, die mindestens 4 Tage hat, die Nummer 1. Diese Feststellung der ersten Wochen-Nummer wird jetzt per Formel berücksichtigt, damit die Wochen-Nummer im Blatt Laufkal bzw. Radkal und in der Wochen-Grafik mit dem offiziellen Kalender übereinstimmt. Danke für den Hinweis an User Leif Koldkjær. (2) Bei der Eingabe des aktuellen Jahres im Blatt "Daten" gab es eine Gültigkeitsprüfung <=2010. Diese wurde auf 2020 erweitert. Ich hätte vor 10 Jahren nicht gedacht, dass mein Lauftagebuch ein Dauerbrenner wird...
B27: 01.01.09: Keine inhaltlichen Änderungen in Ausgabe 2009 gegenüber bisherigem Stand. Nur der Link zum Leistungsindex bei Greif.de musste aktualisiert werden. Außerdem sind die Grafiken für eine Bildschirm-Anzeige von 1280x1024 Pixel vergrößert worden.
B28: 01.01.06: (1) Neue Grafik eingefügt mit Darstellung der Trainings-km der Vorjahre (Arbeitsblatt "Jahre") (2) Makro zum Daten-Löschen erweitert um die Schuh-Daten (Kaufdatum, Vorjahres-km, ausgemusterte)
B29: 01.01.05: (1) Im Laufkalender wird jetzt der %-Anteil des Durchschnittspulses vom Höchstpuls errechnet. Der persönliche maximale Puls muss dazu im Blatt Daten erfasst werden. (2) Der Vorschlag für die Belastungsstufen ist neu definiert, entsprechend den bei Laktattests üblichen Trainingshinweisen. Im Blatt Kriterien wird als Hilfestellung eine Tabelle mit Pulsbereichen errechnet. (3) Im Laufkalender kann man jetzt ein Kennzeichen setzen, wenn beide Einträge eines Tages zu einem Lauf zusammengefasst werden sollen. (4) Die in Vorjahren mit den Schuhen gelaufenen Kilometer werden jetzt im Blatt "Kriterien" eingetragen.
B30: 31.03.04: Im Laufkalender-Blatt die Gewichtseingabe und die Formel zur BMI-Ermittlung in getrennte Spalten gesetzt, weil dann das Löschen über Makro "Alle Daten löschen" schneller geht. Die Reihenfolge der Arbeitsblätter geändert und in Excel-XP farbig hinterlegt.
B31: 03.01.04: Formelfehler bei der Berechnung der Greif-Punkte korrigiert. Ergebnis war immer zu hoch, weil beim
B32: Formelteil "maxHF/220" Zähler und Nenner verwechselt war. Danke an Harald Dünnfelder für den Hinweis.
B33: 01.01.04: Das Kaufdatum der Schuhe wird jetzt im Blatt "Kriterien" eingegeben. Alle Felder, in denen Eingaben
B34: durch den Anwender erwartet werden, sind in | F34: dieser hässlichen Farbe | H34: hinterlegt. Im Laufkalender wird bei
B35: Eingabe des Gewichts der Body Mass Index berechnet. Dazu muss im Blatt Daten die Körpergrösse eingegeben
B36: werden.
B37: 15.02.03: Ein bißchen gespielt: 2 zusätzliche Grafiken für Belastung und Schuhe eingebaut. Statusmeldung für die automatische Grafik-Schau. Schuh-Anzahl auf 10 begrenzt. Spalten und Zeilen auf den Blättern soweit ausgeblendet, dass man sich nur wie gewünscht bewegen kann. Schriftfarben-Makro im Laufkal so geändert, dass Cursor da bleibt, wo die Farbe geändert wird.
B38: 01.12.02: Eine wichtige Neuerung, rechtzeitig zum Einstieg in das neue Jahr. In den Kalenderblättern gibt es jetzt für jeden Tag 2 Zeilen. Dieser Wunsch kam des öfteren von Benutzern, die 2 Einheiten am Tag absolvieren. Doch auch für alle anderen ist das von Nutzen. So kann man nun das Ein- und Auslaufen beim Wettkampf separat eingeben. Und es ist mehr Platz für die Kommentare. Um die Schriftfarbe ohne Aufhebung des Blattschutzes wechseln zu können, gibt es neue Buttons. Außerdem habe ich einige Zahlenformate im Kalender geändert (führende Nullen bei Minuten und Sekunden, Nullanzeige im Feld "weicher Boden"). Die Spalte für die "historische" Gesamtzahl für Besuch der Muckibude habe ich umfunktioniert zur Eingabe des Gewichts in kg.
B39: 26.09.02: Wieder eine Idee von Hilbert (danke). Im Blatt "Laufkal" werden jetzt im Titel km-Summen für Jahr, aktuellen Monat und Vormonat angezeigt, so dass man das nicht erst im Blatt "Laufen" sieht. Das hat den kleinen Nachteil, dass man nicht mehr unbedenklich Spalten löschen kann, die man für überflüssig hält. Mit dem Löschen einer Spalte ginge natürlich auch der Inhalt der ersten Zeile verloren.
B40: 01.09.02: In Laufkalender und Radkalender kann man jetzt aus Dropdown-Listen auswählen (Belastung, Schuh bzw. Rad, Kommentar). Im Kommentarfeld kann man die Werte aus der Liste auch ignorieren, in den anderen Feldern sind sie Zwang. Außerdem für andere Felder Gültigkeitsprüfungen eingebaut. Für die Dropdown-Liste im Kommentarfeld gibt es ein neues Tabellenblatt "Strecken". - Außerdem wird für die Sportwissenschaftler jetzt im Blatt "Laufen" auch das Tempo in m/sec berechnet.
B41: 01.08.02: Im Laufkalender wird das Tempo jetzt zusätzlich zu min/km auch in km/Std angegeben.
B42: 24.03.02: Ich hatte vergessen, dass man als Folge der neuen Grafik (siehe 03.03.02) jetzt separate Belastungsstufen fürs Radfahren braucht. Im Blatt "Kriterien" kann man diese jetzt getrennt eingeben.
B43: 03.03.02: Neue Grafik eingebaut, die die Lauf-km je Monat mit Aufteilung nach Belastungsstufen zeigt
B44: 19.12.01: Den Laufkalender um 2 Spalten für durchschnittliche und maximale Herzfrequenz erweitert. Zusätzlich eine Spalte mit Berechnung von "Greif-Punkten" gemäß der Formel von Peter Greif (http://www.greif.de/formel.htm). Für diese Berechnung muss im Blatt Daten (Feld I15) die persönliche maximale Herzfrequenz eingegeben werden. Beim betreffenden Trainingslauf ist für die Greif-Punkte die Angabe der durchschnittlichen Herzfrequenz erforderlich. Die in diesem Lauf erreichte maximale HF ist für die Berechnung nicht relevant.
B45: 27.10.01: Im Blatt Daten (Zellen D56:D108 sowie E56:E108) die Formeln zur Berechnung der Wochensummen geändert. Für die Summenermittlung wird jetzt die Spalte D in den Kalenderblättern herangezogen. Damit soll es möglich werden, in den Kalenderblättern Zeilen einzufügen (zur Eingabe mehrerer Einheiten am selben Tag). Bei Verdoppelung der Sonntagszeile wurde bisher die Wochensumme falsch berechnet. Bei Einfügen von Zeilen aber immer darauf achten, dass die Wochen-Nummer richtig berechnet wird.
B46: 29.04.2001: Wer mit dem Kalender irgendwann mitten im Jahr beginnt, kann im Blatt Daten jetzt das Startdatum eingeben, damit alle Durchschnittswerte richtig berechnet werden.
B47: Version 2001: Die Belastungsstufe 6 kann jetzt wie die ersten 5 beliebig benutzt werden (bisher war sie für Ein-/Auslaufen reserviert und wurde bei den Statistiken der Stufe 5 zugerechnet.)

Sheet Menue
B3: Zur Datenanzeige
B11: Zur regelmäßigen Dateneingabe im Kalender
B19: Zur Eingabe von Stammdaten und jährlichen Anpassungen

Sheet Laufen
B1: =+"Laufen "&Daten!D3 -> Laufen 2021 | C1: Stand | D1: =TODAY() -> 2020-12-25 | E1: km | F1: Anzahl | G1: hh:mm:ss | I1: Muckibude
B2: im Jahr insgesamt | E2: =DSUM(laufkalender,Laufkal!F5,Kriterien!$A$6:$B$7) -> 28.5 | F2: =DCOUNT(laufkalender,Laufkal!F5,Kriterien!A6:B7)-L26 -> 3 | G2: =DSUM(laufkalender,Laufkal!L5,Kriterien!A6:B7)/24/60 -> 0.1083912037 | I2: =DCOUNT(laufkalender,Laufkal!AI5,Kriterien!$A$6:$B$7) -> 0
B4: Durchschnitt pro Monat | E4: =+E2/Daten!D11 ->  | F4: =+F2/Daten!D11 ->  | G4: =+G2/Daten!D11 ->  | I4: =+I2/Daten!D11 -> 
B5: Durchschnitt pro Woche | E5: =(+E2+Daten!I8+Daten!I12)/Daten!D10 ->  | F5: =(+F2+Daten!I9+Daten!I13)/Daten!D10 ->  | G5: =+G2/Daten!D10 ->  | I5: =+I2/Daten!D10 -> 
B6: Durchschnitt pro Tag | E6: =+E2/Daten!D9 ->  | F6: =+F2/Daten!D9 ->  | G6: =+G2/Daten!D9 -> 
B7: Durchschnitt pro Lauf | E7: =+E2/F2 -> 9.5 | G7: =+G2/F2 -> 00:52:01.667 | I7: ges. seit 01/2001
B8: Durchschnittstempo km/Std - m/sec - min/km | E8: =+E2/(G2*24) -> 10.95568607 | F8: =+E2*1000/(G2*24*60*60) -> 3.043246129 | G8: =+G2/E2 -> 00:05:28.596 | I8: =+I2+Daten!E27 -> 0
B9: längster Lauf | E9: =DMAX(laufkalender,Laufkal!F5,Kriterien!A6:A7) -> 10 | G9: =DMAX(laufkalender,Laufkal!L5,Kriterien!A6:B7)/24/60 -> 0.03929398148
B10: kürzester Lauf | E10: =DMIN(laufkalender,Laufkal!F5,Kriterien!A6:A7) -> 2 | G10: =DMIN(laufkalender,Laufkal!L5,Kriterien!A6:B7)/24/60 -> 0.008333333333 | I10: gesamt-km
B11: weicher Boden insgesamt | E11: =+Laufkal!AG739 -> 5 | F11: =+E11/E2 -> 0.1754385965 | I11: seit 11/85
B12: harter Boden insgesamt | E12: =+Laufkal!AH739 -> 23.5 | F12: =+E12/E2 -> 0.8245614035 | I12: =+Daten!C27+Laufen!E2 -> 28.5
B14: Schuhe | C14: Kauf | D14: Anzahl | E14: km | F14: % km | G14: km ges. | I14: Belastung | J14: Anzahl | K14: km | L14: % km
B15: =+Kriterien!A12 -> Schuh 1 | C15: =+Kriterien!C12 -> 00:00:00 | D15: =DCOUNT(laufkalender,Laufkal!F5,Kriterien!A75:A76) -> 3 | E15: =DSUM(laufkalender,Laufkal!F5,Kriterien!A75:A76) -> 22 | F15: =+E15/$E$26 -> 0.7719298246 | G15: =+E15+Kriterien!D12 -> 22 | I15: =+Kriterien!A26 -> Wettkampf | J15: =DCOUNT(laufkalender,Laufkal!F5,Kriterien!G57:G58) -> 1 | K15: =DSUM(laufkalender,Laufkal!F5,Kriterien!G57:G58) -> 10 | L15: =+K15/$K$21 -> 0.350877193
B16: =+Kriterien!A13 -> Schuh 2 | C16: =+Kriterien!C13 -> 00:00:00 | D16: =DCOUNT(laufkalender,Laufkal!F5,Kriterien!A77:A78) -> 1 | E16: =DSUM(laufkalender,Laufkal!F5,Kriterien!A77:A78) -> 6.5 | F16: 0.2280701754 | G16: =+E16+Kriterien!D13 -> 6.5 | I16: =+Kriterien!A27 -> Tempo (>90%) | J16: =DCOUNT(laufkalender,Laufkal!F5,Kriterien!G59:G60) -> 0 | K16: =DSUM(laufkalender,Laufkal!F5,Kriterien!G59:G60) -> 0 | L16: 0
B17: =+Kriterien!A14 -> Schuh 3 | C17: =+Kriterien!C14 -> 00:00:00 | D17: =DCOUNT(laufkalender,Laufkal!F5,Kriterien!A79:A80) -> 0 | E17: =DSUM(laufkalender,Laufkal!F5,Kriterien!A79:A80) -> 0 | F17: 0 | G17: =+E17+Kriterien!D14 -> 0 | I17: =+Kriterien!A28 -> GA2 (>80%) | J17: =DCOUNT(laufkalender,Laufkal!F5,Kriterien!G61:G62) -> 0 | K17: =DSUM(laufkalender,Laufkal!F5,Kriterien!G61:G62) -> 0 | L17: 0
B18: =+Kriterien!A15 -> Schuh 4 | C18: =+Kriterien!C15 -> 00:00:00 | D18: =DCOUNT(laufkalender,Laufkal!F5,Kriterien!A81:A82) -> 0 | E18: =DSUM(laufkalender,Laufkal!F5,Kriterien!A81:A82) -> 0 | F18: 0 | G18: =+E18+Kriterien!D15 -> 0 | I18: =+Kriterien!A29 -> GA1 (>70%) | J18: =DCOUNT(laufkalender,Laufkal!F5,Kriterien!G63:G64) -> 0 | K18: =DSUM(laufkalender,Laufkal!F5,Kriterien!G63:G64) -> 0 | L18: 0
B19: =+Kriterien!A16 -> Schuh 5 | C19: =+Kriterien!C16 -> 00:00:00 | D19: =DCOUNT(laufkalender,Laufkal!F5,Kriterien!A83:A84) -> 0 | E19: =DSUM(laufkalender,Laufkal!F5,Kriterien!A83:A84) -> 0 | F19: 0 | G19: =+E19+Kriterien!D16 -> 0 | I19: =+Kriterien!A30 -> LDL (>65%) | J19: =DCOUNT(laufkalender,Laufkal!F5,Kriterien!G65:G66) -> 2 | K19: =DSUM(laufkalender,Laufkal!F5,Kriterien!G65:G66) -> 12 | L19: 0.4210526316
B20: =+Kriterien!A17 -> Schuh 6 | C20: =+Kriterien!C17 -> 00:00:00 | D20: =DCOUNT(laufkalender,Laufkal!F5,Kriterien!A85:A86) -> 0 | E20: =DSUM(laufkalender,Laufkal!F5,Kriterien!A85:A86) -> 0 | F20: 0 | G20: =+E20+Kriterien!D17 -> 0 | I20: =+Kriterien!A31 -> Reg (bis 65%) | J20: =DCOUNT(laufkalender,Laufkal!F5,Kriterien!G67:G68) -> 1 | K20: =DSUM(laufkalender,Laufkal!F5,Kriterien!G67:G68) -> 6.5 | L20: 0.2280701754
B21: =+Kriterien!A18 -> Schuh 7 | C21: =+Kriterien!C18 -> 00:00:00 | D21: =DCOUNT(laufkalender,Laufkal!F5,Kriterien!A87:A88) -> 0 | E21: =DSUM(laufkalender,Laufkal!F5,Kriterien!A87:A88) -> 0 | F21: 0 | G21: =+E21+Kriterien!D18 -> 0 | J21: =SUM(J15:J20) -> 4 | K21: =SUM(K15:K20) -> 28.5 | L21: 1
B22: =+Kriterien!A19 -> Schuh 8 | C22: =+Kriterien!C19 -> 00:00:00 | D22: =DCOUNT(laufkalender,Laufkal!F5,Kriterien!A89:A90) -> 0 | E22: =DSUM(laufkalender,Laufkal!F5,Kriterien!A89:A90) -> 0 | F22: 0 | G22: =+E22+Kriterien!D19 -> 0
B23: =+Kriterien!A20 -> Schuh 9 | C23: =+Kriterien!C20 -> 00:00:00 | D23: =DCOUNT(laufkalender,Laufkal!F5,Kriterien!A91:A92) -> 0 | E23: =DSUM(laufkalender,Laufkal!F5,Kriterien!A91:A92) -> 0 | F23: 0 | G23: =+E23+Kriterien!D20 -> 0
B24: =+Kriterien!A21 -> Schuh 10 | C24: =+Kriterien!C21 -> 00:00:00 | D24: =DCOUNT(laufkalender,Laufkal!F5,Kriterien!A93:A94) -> 0 | E24: =DSUM(laufkalender,Laufkal!F5,Kriterien!A93:A94) -> 0 | F24: 0 | G24: =+E24+Kriterien!D21 -> 0
B25: =+Kriterien!A22 -> Schuh 11 | C25: =+Kriterien!C22 -> 00:00:00 | D25: =DCOUNT(laufkalender,Laufkal!F5,Kriterien!A95:A96) -> 0 | E25: =DSUM(laufkalender,Laufkal!F5,Kriterien!A95:A96) -> 0 | F25: 0 | G25: =+E25+Kriterien!D22 -> 0
D26: =SUM(D15:D25) -> 4 | E26: =SUM(E15:E25) -> 28.5 | F26: 1 | I26: Korr. Ein-/Auslaufen für Anzahl: | L26: =DSUM(laufkalender,Laufkal!AF5,Kriterien!$A$6:$B$7) -> 1
B27: ausgemusterte Schuhe

Sheet Laufkal
A1: =+Daten!D3 -> 2021 | F1: =+"Jahr: "&+ROUND(Laufen!E2,1)&" km" -> Jahr: 28,5 km | N1: akt. Monat: | Q1: =IF(+Daten!D3=YEAR(Daten!D8),VLOOKUP(aktuellermonat,Daten!C32:D43,2),"---") -> --- | S1: km | T1: Vormonat: | W1: =IF(aktuellermonat=1,"---",VLOOKUP(aktuellermonat-1,Daten!C32:D43,2)) ->  | Y1: km
B2: Mo | F2: km | G2: Laufzeit | L2: min | M2: Ø | N2: Ø | O2: Be- | P2: HF | Q2: HF | R2: Greif | S2: Sch- | T2: Anteil | V2: Rad | W2: Muckibude | Y2: Gewicht | AB2: Zs | AC2: Tg | AD2: Wo | AE2: Wo | AF2: Zs | AG2: km | AH2: km | AI2: Wert
B3: nat | M3: min/ | N3: km/ | O3: las- | P3: Ø | Q3: %von | R3: Pkte | S3: uh | T3: weich | U3: hart | V3: km | W3: Ein | X3: Anz. | Y3: in kg | Z3: BMI | AB3: fsg | AC3: sum | AD3: sum | AE3: nr | AF3: fsg | AG3: weich | AH3: hart | AI3: Mu
A4: Datum | C4: Tag | G4: h | H4: : | I4: mm | J4: : | K4: ss | M4: km | N4: Std | O4: tung | Q4: max | T4: 1-10 | W4: gabe | X4: lfd.J. | AA4: Kommentar | AI4: bu
A5: datum | B5: mo | C5: tag | D5: m | E5: so | F5: km | G5: h | I5: mm | K5: ss | L5: min | M5: min/km | N5: km/std | O5: bel | P5: dhf | Q5: %HF | R5: gpkt | S5: Schuh | T5: weich | U5: hart | V5: rad | W5: 6 | AA5: kommentar | AB5: Zus | AD5: wosum | AE5: wonr | AF5: Zusfsg | AG5: kmw | AH5: kmh | AI5: WeMu
A6: =DATE(Daten!D3,1,1) -> 2021-01-01 | B6: =MONTH(A6) -> 1 | C6: =WEEKDAY(A6) -> 1900-01-06 | D6: 1 | E6: =IF(D6=2,IF(C6=1,1,2),0) -> 0 | H6: : | J6: : | L6: =IF((+G6*60+I6+K6/60)>0,G6*60+I6+K6/60," ") ->  | M6: =IF(+F6>0,+L6/F6/24/60," ") ->  | N6: =IF(F6>0,+F6/(L6/60),"") ->  | Q6: =IF(maxhf<100,0,IF(ISBLANK(P6)="WAHR",P6,P6/maxhf)*100) -> 0 | R6: =IF(F6>0,IF(P6>0,+F6*(F6*1000/(G6*60+I6+K6/60))/(maxhf-P6)*(maxhf/220),""),"") ->  | U6: =IF(COUNTBLANK(T6)=1,"",IF(T6="10","0",10-T6)) ->  | V6: =IF(+Radelkal!F5>0,+Radelkal!F5,"") ->  | X6: =IF(W6<>"",SUM($AI$6:AI6)/10,"") ->  | Z6: =IF(Y6>0,+Y6/Daten!$I$18^2,"") ->  | AD6: =IF(WEEKDAY(A6)=1,IF(E6=1,VLOOKUP(AE6,Daten!$C$49:$D$102,2)," "),"") ->  | AE6: =erstewochennr -> 0 | AF6: =IF(F6>0,IF(D6=2,IF((AB5+AB6)>0,1,0),0),0) -> 0 | AG6: =+T6/10*F6 -> 0 | AH6: =IF(COUNTBLANK(T6)=1,0,+U6/10*F6) -> 0 | AI6: =IF(W6<>"",10,"") -> 
A7: =+A6 -> 2021-01-01 | B7: =MONTH(A7) -> 1 | C7: =WEEKDAY(A7) -> 1900-01-06 | D7: 2 | E7: =IF(D7=2,IF(C7=1,1,2),0) -> 2 | H7: : | J7: : | L7: =IF((+G7*60+I7+K7/60)>0,G7*60+I7+K7/60," ") ->  | M7: =IF(+F7>0,+L7/F7/24/60," ") ->  | N7: =IF(F7>0,+F7/(L7/60),"") ->  | Q7: 0 | V7: =IF(+Radelkal!F6>0,+Radelkal!F6,"") -> 20 | X7: =IF(W7<>"",SUM($AI$6:AI7)/10,"") ->  | Z7: =IF(Y7>0,+Y7/Daten!$I$18^2,"") ->  | AC7: =IF(D7=2,+F7+F6,0) -> 0 | AD7: =IF(WEEKDAY(A7)=1,IF(E7=1,VLOOKUP(AE7,Daten!$C$49:$D$102,2)," "),"") ->  | AE7: =erstewochennr -> 0 | AF7: =IF(F7>0,IF(D7=2,IF((AB6+AB7)>0,1,0),0),0) -> 0 | AG7: =+T7/10*F7 -> 0 | AH7: =IF(COUNTBLANK(T7)=1,0,+U7/10*F7) -> 0 | AI7: =IF(W7<>"",10,"") -> 
A8: =+A6+1 -> 2021-01-02 | B8: 1 | C8: 1900-01-07 | D8: 1 | E8: 0 | F8: 10 | H8: : | I8: 56 | J8: : | K8: 35 | L8: 56.58333333 | M8: 00:05:39.500 | N8: 10.60382916 | O8: L>65% | P8: 115 | Q8: 73.24840764 | R8: 30.02888128 | S8: s1 | T8: 5 | U8: 5 | V8: =IF(+Radelkal!F7>0,+Radelkal!F7,"") ->  | X8: =IF(W8<>"",SUM($AI$6:AI8)/10,"") ->  | Y8: 67 | Z8: =IF(Y8>0,+Y8/Daten!$I$18^2,"") -> 21.62964876 | AA8: Texteingabe möglich oder Strecke aus Liste wählen | AC8: =IF(D8=2,+F8+F7,0) -> 0 | AD8: =IF(WEEKDAY(A8)=1,IF(E8=1,VLOOKUP(AE8,Daten!$C$49:$D$102,2)," "),"") ->  | AE8: =IF(WEEKDAY(A8)=2,IF(D8=1,AE7+1,AE7),AE7) -> 0 | AF8: 0 | AG8: 5 | AH8: 5
A9: =+A8 -> 2021-01-02 | B9: 1 | C9: 1900-01-07 | D9: 2 | E9: 2 | H9: : | J9: : | Q9: 0 | V9: =IF(+Radelkal!F8>0,+Radelkal!F8,"") ->  | X9: =IF(W9<>"",SUM($AI$6:AI9)/10,"") ->  | Z9: =IF(Y9>0,+Y9/Daten!$I$18^2,"") ->  | AC9: 10 | AD9: =IF(WEEKDAY(A9)=1,IF(E9=1,VLOOKUP(AE9,Daten!$C$49:$D$102,2)," "),"") ->  | AE9: 0 | AF9: 0 | AG9: 0 | AH9: 0
A10: =+A8+1 -> 2021-01-03 | B10: 1 | C10: 1900-01-01 | D10: 1 | E10: 0 | F10: 6.5 | H10: : | I10: 45 | J10: : | K10: 0 | L10: 45 | M10: 00:06:55.385 | N10: 8.666666667 | O10: R<65% | P10: 100 | Q10: 63.69426752 | R10: 11.75482899 | S10: s2 | T10: 0 | U10: 10 | V10: =IF(+Radelkal!F9>0,+Radelkal!F9,"") ->  | X10: =IF(W10<>"",SUM($AI$6:AI10)/10,"") ->  | Z10: =IF(Y10>0,+Y10/Daten!$I$18^2,"") ->  | AC10: 0 | AD10: =IF(WEEKDAY(A10)=1,IF(E10=1,VLOOKUP(AE10,Daten!$C$49:$D$102,2)," "),"") ->  | AE10: 0 | AF10: 0 | AG10: 0 | AH10: 6.5
A11: =+A10 -> 2021-01-03 | B11: 1 | C11: 1900-01-01 | D11: 2 | E11: 1 | H11: : | J11: : | Q11: 0 | V11: =IF(+Radelkal!F10>0,+Radelkal!F10,"") ->  | X11: =IF(W11<>"",SUM($AI$6:AI11)/10,"") ->  | Z11: =IF(Y11>0,+Y11/Daten!$I$18^2,"") ->  | AC11: 6.5 | AD11: =IF(WEEKDAY(A11)=1,IF(E11=1,VLOOKUP(AE11,Daten!$C$49:$D$102,2)," "),"") -> 16.5 | AE11: 0 | AF11: 0 | AG11: 0 | AH11: 0
A12: =+A10+1 -> 2021-01-04 | B12: 1 | C12: 1900-01-02 | D12: 1 | E12: 0 | F12: 2 | H12: : | I12: 12 | J12: : | K12: 0 | L12: 12 | M12: 00:06:00 | N12: 10 | O12: L>65% | P12: 110 | Q12: 70.06369427 | R12: 5.061250806 | S12: s1 | T12: 0 | U12: 10 | V12: =IF(+Radelkal!F11>0,+Radelkal!F11,"") ->  | X12: =IF(W12<>"",SUM($AI$6:AI12)/10,"") ->  | Z12: =IF(Y12>0,+Y12/Daten!$I$18^2,"") ->  | AA12: Warmlaufen | AB12: 1 | AC12: 0 | AD12: =IF(WEEKDAY(A12)=1,IF(E12=1,VLOOKUP(AE12,Daten!$C$49:$D$102,2)," "),"") ->  | AE12: 1 | AF12: 0 | AG12: 0 | AH12: 2
A13: =+A12 -> 2021-01-04 | B13: 1 | C13: 1900-01-02 | D13: 2 | E13: 2 | F13: 10 | H13: : | I13: 42 | J13: : | K13: 30 | L13: 42.5 | M13: 00:04:15 | N13: 14.11764706 | O13: w | P13: 145 | Q13: 92.3566879 | R13: 139.9286988 | S13: s1 | T13: 0 | U13: 10 | V13: =IF(+Radelkal!F12>0,+Radelkal!F12,"") ->  | X13: =IF(W13<>"",SUM($AI$6:AI13)/10,"") ->  | Z13: =IF(Y13>0,+Y13/Daten!$I$18^2,"") ->  | AA13: Wettkampf | AB13: 1 | AC13: 12 | AD13: =IF(WEEKDAY(A13)=1,IF(E13=1,VLOOKUP(AE13,Daten!$C$49:$D$102,2)," "),"") ->  | AE13: 1 | AF13: 1 | AG13: 0 | AH13: 10
A14: =+A12+1 -> 2021-01-05 | B14: 1 | C14: 1900-01-03 | D14: 1 | E14: 0 | H14: : | J14: : | Q14: 0 | V14: =IF(+Radelkal!F13>0,+Radelkal!F13,"") ->  | X14: =IF(W14<>"",SUM($AI$6:AI14)/10,"") ->  | Z14: =IF(Y14>0,+Y14/Daten!$I$18^2,"") ->  | AC14: 0 | AD14: =IF(WEEKDAY(A14)=1,IF(E14=1,VLOOKUP(AE14,Daten!$C$49:$D$102,2)," "),"") ->  | AE14: 1 | AF14: 0 | AG14: 0 | AH14: 0
A15: =+A14 -> 2021-01-05 | B15: 1 | C15: 1900-01-03 | D15: 2 | E15: 2 | H15: : | J15: : | Q15: 0 | V15: =IF(+Radelkal!F14>0,+Radelkal!F14,"") ->  | X15: =IF(W15<>"",SUM($AI$6:AI15)/10,"") ->  | Z15: =IF(Y15>0,+Y15/Daten!$I$18^2,"") ->  | AC15: 0 | AD15: =IF(WEEKDAY(A15)=1,IF(E15=1,VLOOKUP(AE15,Daten!$C$49:$D$102,2)," "),"") ->  | AE15: 1 | AF15: 0 | AG15: 0 | AH15: 0
A16: =+A14+1 -> 2021-01-06 | B16: 1 | C16: 1900-01-04 | D16: 1 | E16: 0 | H16: : | J16: : | Q16: 0 | V16: =IF(+Radelkal!F15>0,+Radelkal!F15,"") ->  | X16: =IF(W16<>"",SUM($AI$6:AI16)/10,"") ->  | Z16: =IF(Y16>0,+Y16/Daten!$I$18^2,"") ->  | AC16: 0 | AD16: =IF(WEEKDAY(A16)=1,IF(E16=1,VLOOKUP(AE16,Daten!$C$49:$D$102,2)," "),"") ->  | AE16: 1 | AF16: 0 | AG16: 0 | AH16: 0
A17: =+A16 -> 2021-01-06 | B17: 1 | C17: 1900-01-04 | D17: 2 | E17: 2 | H17: : | J17: : | Q17: 0 | V17: =IF(+Radelkal!F16>0,+Radelkal!F16,"") ->  | X17: =IF(W17<>"",SUM($AI$6:AI17)/10,"") ->  | Z17: =IF(Y17>0,+Y17/Daten!$I$18^2,"") ->  | AC17: 0 | AD17: =IF(WEEKDAY(A17)=1,IF(E17=1,VLOOKUP(AE17,Daten!$C$49:$D$102,2)," "),"") ->  | AE17: 1 | AF17: 0 | AG17: 0 | AH17: 0
A18: =+A16+1 -> 2021-01-07 | B18: 1 | C18: 1900-01-05 | D18: 1 | E18: 0 | H18: : | J18: : | Q18: 0 | V18: =IF(+Radelkal!F17>0,+Radelkal!F17,"") ->  | X18: =IF(W18<>"",SUM($AI$6:AI18)/10,"") ->  | Z18: =IF(Y18>0,+Y18/Daten!$I$18^2,"") ->  | AC18: 0 | AD18: =IF(WEEKDAY(A18)=1,IF(E18=1,VLOOKUP(AE18,Daten!$C$49:$D$102,2)," "),"") ->  | AE18: 1 | AF18: 0 | AG18: 0 | AH18: 0
A19: =+A18 -> 2021-01-07 | B19: 1 | C19: 1900-01-05 | D19: 2 | E19: 2 | H19: : | J19: : | Q19: 0 | V19: =IF(+Radelkal!F18>0,+Radelkal!F18,"") ->  | X19: =IF(W19<>"",SUM($AI$6:AI19)/10,"") ->  | Z19: =IF(Y19>0,+Y19/Daten!$I$18^2,"") ->  | AC19: 0 | AD19: =IF(WEEKDAY(A19)=1,IF(E19=1,VLOOKUP(AE19,Daten!$C$49:$D$102,2)," "),"") ->  | AE19: 1 | AF19: 0 | AG19: 0 | AH19: 0
A20: =+A18+1 -> 2021-01-08 | B20: 1 | C20: 1900-01-06 | D20: 1 | E20: 0 | H20: : | J20: : | Q20: 0 | V20: =IF(+Radelkal!F19>0,+Radelkal!F19,"") ->  | X20: =IF(W20<>"",SUM($AI$6:AI20)/10,"") ->  | Z20: =IF(Y20>0,+Y20/Daten!$I$18^2,"") ->  | AC20: 0 | AD20: =IF(WEEKDAY(A20)=1,IF(E20=1,VLOOKUP(AE20,Daten!$C$49:$D$102,2)," "),"") ->  | AE20: 1 | AF20: 0 | AG20: 0 | AH20: 0
A21: =+A20 -> 2021-01-08 | B21: 1 | C21: 1900-01-06 | D21: 2 | E21: 2 | H21: : | J21: : | Q21: 0 | V21: =IF(+Radelkal!F20>0,+Radelkal!F20,"") ->  | X21: =IF(W21<>"",SUM($AI$6:AI21)/10,"") ->  | Z21: =IF(Y21>0,+Y21/Daten!$I$18^2,"") ->  | AC21: 0 | AD21: =IF(WEEKDAY(A21)=1,IF(E21=1,VLOOKUP(AE21,Daten!$C$49:$D$102,2)," "),"") ->  | AE21: 1 | AF21: 0 | AG21: 0 | AH21: 0
A22: =+A20+1 -> 2021-01-09 | B22: 1 | C22: 1900-01-07 | D22: 1 | E22: 0 | H22: : | J22: : | Q22: 0 | V22: =IF(+Radelkal!F21>0,+Radelkal!F21,"") ->  | X22: =IF(W22<>"",SUM($AI$6:AI22)/10,"") ->  | Z22: =IF(Y22>0,+Y22/Daten!$I$18^2,"") ->  | AC22: 0 | AD22: =IF(WEEKDAY(A22)=1,IF(E22=1,VLOOKUP(AE22,Daten!$C$49:$D$102,2)," "),"") ->  | AE22: 1 | AF22: 0 | AG22: 0 | AH22: 0
A23: =+A22 -> 2021-01-09 | B23: 1 | C23: 1900-01-07 | D23: 2 | E23: 2 | H23: : | J23: : | Q23: 0 | V23: =IF(+Radelkal!F22>0,+Radelkal!F22,"") ->  | X23: =IF(W23<>"",SUM($AI$6:AI23)/10,"") ->  | Z23: =IF(Y23>0,+Y23/Daten!$I$18^2,"") ->  | AC23: 0 | AD23: =IF(WEEKDAY(A23)=1,IF(E23=1,VLOOKUP(AE23,Daten!$C$49:$D$102,2)," "),"") ->  | AE23: 1 | AF23: 0 | AG23: 0 | AH23: 0
A24: =+A22+1 -> 2021-01-10 | B24: 1 | C24: 1900-01-01 | D24: 1 | E24: 0 | H24: : | J24: : | Q24: 0 | V24: =IF(+Radelkal!F23>0,+Radelkal!F23,"") ->  | X24: =IF(W24<>"",SUM($AI$6:AI24)/10,"") ->  | Z24: =IF(Y24>0,+Y24/Daten!$I$18^2,"") ->  | AC24: 0 | AD24: =IF(WEEKDAY(A24)=1,IF(E24=1,VLOOKUP(AE24,Daten!$C$49:$D$102,2)," "),"") ->  | AE24: 1 | AF24: 0 | AG24: 0 | AH24: 0
A25: =+A24 -> 2021-01-10 | B25: 1 | C25: 1900-01-01 | D25: 2 | E25: 1 | H25: : | J25: : | Q25: 0 | V25: =IF(+Radelkal!F24>0,+Radelkal!F24,"") ->  | X25: =IF(W25<>"",SUM($AI$6:AI25)/10,"") ->  | Z25: =IF(Y25>0,+Y25/Daten!$I$18^2,"") ->  | AC25: 0 | AD25: =IF(WEEKDAY(A25)=1,IF(E25=1,VLOOKUP(AE25,Daten!$C$49:$D$102,2)," "),"") -> 12 | AE25: 1 | AF25: 0 | AG25: 0 | AH25: 0
A26: =+A24+1 -> 2021-01-11 | B26: 1 | C26: 1900-01-02 | D26: 1 | E26: 0 | H26: : | J26: : | Q26: 0 | V26: =IF(+Radelkal!F25>0,+Radelkal!F25,"") ->  | X26: =IF(W26<>"",SUM($AI$6:AI26)/10,"") ->  | Z26: =IF(Y26>0,+Y26/Daten!$I$18^2,"") ->  | AC26: 0 | AD26: =IF(WEEKDAY(A26)=1,IF(E26=1,VLOOKUP(AE26,Daten!$C$49:$D$102,2)," "),"") ->  | AE26: 2 | AF26: 0 | AG26: 0 | AH26: 0
A27: =+A26 -> 2021-01-11 | B27: 1 | C27: 1900-01-02 | D27: 2 | E27: 2 | H27: : | J27: : | Q27: 0 | V27: =IF(+Radelkal!F26>0,+Radelkal!F26,"") ->  | X27: =IF(W27<>"",SUM($AI$6:AI27)/10,"") ->  | Z27: =IF(Y27>0,+Y27/Daten!$I$18^2,"") ->  | AC27: 0 | AD27: =IF(WEEKDAY(A27)=1,IF(E27=1,VLOOKUP(AE27,Daten!$C$49:$D$102,2)," "),"") ->  | AE27: 2 | AF27: 0 | AG27: 0 | AH27: 0
A28: =+A26+1 -> 2021-01-12 | B28: 1 | C28: 1900-01-03 | D28: 1 | E28: 0 | H28: : | J28: : | Q28: 0 | V28: =IF(+Radelkal!F27>0,+Radelkal!F27,"") ->  | X28: =IF(W28<>"",SUM($AI$6:AI28)/10,"") ->  | Z28: =IF(Y28>0,+Y28/Daten!$I$18^2,"") ->  | AC28: 0 | AD28: =IF(WEEKDAY(A28)=1,IF(E28=1,VLOOKUP(AE28,Daten!$C$49:$D$102,2)," "),"") ->  | AE28: 2 | AF28: 0 | AG28: 0 | AH28: 0
A29: =+A28 -> 2021-01-12 | B29: 1 | C29: 1900-01-03 | D29: 2 | E29: 2 | H29: : | J29: : | Q29: 0 | V29: =IF(+Radelkal!F28>0,+Radelkal!F28,"") ->  | X29: =IF(W29<>"",SUM($AI$6:AI29)/10,"") ->  | Z29: =IF(Y29>0,+Y29/Daten!$I$18^2,"") ->  | AC29: 0 | AD29: =IF(WEEKDAY(A29)=1,IF(E29=1,VLOOKUP(AE29,Daten!$C$49:$D$102,2)," "),"") ->  | AE29: 2 | AF29: 0 | AG29: 0 | AH29: 0
A30: =+A28+1 -> 2021-01-13 | B30: 1 | C30: 1900-01-04 | D30: 1 | E30: 0 | H30: : | J30: : | Q30: 0 | V30: =IF(+Radelkal!F29>0,+Radelkal!F29,"") ->  | X30: =IF(W30<>"",SUM($AI$6:AI30)/10,"") ->  | Z30: =IF(Y30>0,+Y30/Daten!$I$18^2,"") ->  | AC30: 0 | AD30: =IF(WEEKDAY(A30)=1,IF(E30=1,VLOOKUP(AE30,Daten!$C$49:$D$102,2)," "),"") ->  | AE30: 2 | AF30: 0 | AG30: 0 | AH30: 0
A31: =+A30 -> 2021-01-13 | B31: 1 | C31: 1900-01-04 | D31: 2 | E31: 2 | H31: : | J31: : | Q31: 0 | V31: =IF(+Radelkal!F30>0,+Radelkal!F30,"") ->  | X31: =IF(W31<>"",SUM($AI$6:AI31)/10,"") ->  | Z31: =IF(Y31>0,+Y31/Daten!$I$18^2,"") ->  | AC31: 0 | AD31: =IF(WEEKDAY(A31)=1,IF(E31=1,VLOOKUP(AE31,Daten!$C$49:$D$102,2)," "),"") ->  | AE31: 2 | AF31: 0 | AG31: 0 | AH31: 0
A32: =+A30+1 -> 2021-01-14 | B32: 1 | C32: 1900-01-05 | D32: 1 | E32: 0 | H32: : | J32: : | Q32: 0 | V32: =IF(+Radelkal!F31>0,+Radelkal!F31,"") ->  | X32: =IF(W32<>"",SUM($AI$6:AI32)/10,"") ->  | Z32: =IF(Y32>0,+Y32/Daten!$I$18^2,"") ->  | AC32: 0 | AD32: =IF(WEEKDAY(A32)=1,IF(E32=1,VLOOKUP(AE32,Daten!$C$49:$D$102,2)," "),"") ->  | AE32: 2 | AF32: 0 | AG32: 0 | AH32: 0
A33: =+A32 -> 2021-01-14 | B33: 1 | C33: 1900-01-05 | D33: 2 | E33: 2 | H33: : | J33: : | Q33: 0 | V33: =IF(+Radelkal!F32>0,+Radelkal!F32,"") ->  | X33: =IF(W33<>"",SUM($AI$6:AI33)/10,"") ->  | Z33: =IF(Y33>0,+Y33/Daten!$I$18^2,"") ->  | AC33: 0 | AD33: =IF(WEEKDAY(A33)=1,IF(E33=1,VLOOKUP(AE33,Daten!$C$49:$D$102,2)," "),"") ->  | AE33: 2 | AF33: 0 | AG33: 0 | AH33: 0
A34: =+A32+1 -> 2021-01-15 | B34: 1 | C34: 1900-01-06 | D34: 1 | E34: 0 | H34: : | J34: : | Q34: 0 | V34: =IF(+Radelkal!F33>0,+Radelkal!F33,"") ->  | X34: =IF(W34<>"",SUM($AI$6:AI34)/10,"") ->  | Z34: =IF(Y34>0,+Y34/Daten!$I$18^2,"") ->  | AC34: 0 | AD34: =IF(WEEKDAY(A34)=1,IF(E34=1,VLOOKUP(AE34,Daten!$C$49:$D$102,2)," "),"") ->  | AE34: 2 | AF34: 0 | AG34: 0 | AH34: 0
A35: =+A34 -> 2021-01-15 | B35: 1 | C35: 1900-01-06 | D35: 2 | E35: 2 | H35: : | J35: : | Q35: 0 | V35: =IF(+Radelkal!F34>0,+Radelkal!F34,"") ->  | X35: =IF(W35<>"",SUM($AI$6:AI35)/10,"") ->  | Z35: =IF(Y35>0,+Y35/Daten!$I$18^2,"") ->  | AC35: 0 | AD35: =IF(WEEKDAY(A35)=1,IF(E35=1,VLOOKUP(AE35,Daten!$C$49:$D$102,2)," "),"") ->  | AE35: 2 | AF35: 0 | AG35: 0 | AH35: 0
A36: =+A34+1 -> 2021-01-16 | B36: 1 | C36: 1900-01-07 | D36: 1 | E36: 0 | H36: : | J36: : | Q36: 0 | V36: =IF(+Radelkal!F35>0,+Radelkal!F35,"") ->  | X36: =IF(W36<>"",SUM($AI$6:AI36)/10,"") ->  | Z36: =IF(Y36>0,+Y36/Daten!$I$18^2,"") ->  | AC36: 0 | AD36: =IF(WEEKDAY(A36)=1,IF(E36=1,VLOOKUP(AE36,Daten!$C$49:$D$102,2)," "),"") ->  | AE36: 2 | AF36: 0 | AG36: 0 | AH36: 0
A37: =+A36 -> 2021-01-16 | B37: 1 | C37: 1900-01-07 | D37: 2 | E37: 2 | H37: : | J37: : | Q37: 0 | V37: =IF(+Radelkal!F36>0,+Radelkal!F36,"") ->  | X37: =IF(W37<>"",SUM($AI$6:AI37)/10,"") ->  | Z37: =IF(Y37>0,+Y37/Daten!$I$18^2,"") ->  | AC37: 0 | AD37: =IF(WEEKDAY(A37)=1,IF(E37=1,VLOOKUP(AE37,Daten!$C$49:$D$102,2)," "),"") ->  | AE37: 2 | AF37: 0 | AG37: 0 | AH37: 0
A38: =+A36+1 -> 2021-01-17 | B38: 1 | C38: 1900-01-01 | D38: 1 | E38: 0 | H38: : | J38: : | Q38: 0 | V38: =IF(+Radelkal!F37>0,+Radelkal!F37,"") ->  | X38: =IF(W38<>"",SUM($AI$6:AI38)/10,"") ->  | Z38: =IF(Y38>0,+Y38/Daten!$I$18^2,"") ->  | AC38: 0 | AD38: =IF(WEEKDAY(A38)=1,IF(E38=1,VLOOKUP(AE38,Daten!$C$49:$D$102,2)," "),"") ->  | AE38: 2 | AF38: 0 | AG38: 0 | AH38: 0
A39: =+A38 -> 2021-01-17 | B39: 1 | C39: 1900-01-01 | D39: 2 | E39: 1 | H39: : | J39: : | Q39: 0 | V39: =IF(+Radelkal!F38>0,+Radelkal!F38,"") ->  | X39: =IF(W39<>"",SUM($AI$6:AI39)/10,"") ->  | Z39: =IF(Y39>0,+Y39/Daten!$I$18^2,"") ->  | AC39: 0 | AD39: =IF(WEEKDAY(A39)=1,IF(E39=1,VLOOKUP(AE39,Daten!$C$49:$D$102,2)," "),"") -> 0 | AE39: 2 | AF39: 0 | AG39: 0 | AH39: 0
A40: =+A38+1 -> 2021-01-18 | B40: 1 | C40: 1900-01-02 | D40: 1 | E40: 0 | H40: : | J40: : | Q40: 0 | V40: =IF(+Radelkal!F39>0,+Radelkal!F39,"") ->  | X40: =IF(W40<>"",SUM($AI$6:AI40)/10,"") ->  | Z40: =IF(Y40>0,+Y40/Daten!$I$18^2,"") ->  | AC40: 0 | AD40: =IF(WEEKDAY(A40)=1,IF(E40=1,VLOOKUP(AE40,Daten!$C$49:$D$102,2)," "),"") ->  | AE40: 3 | AF40: 0 | AG40: 0 | AH40: 0
A41: =+A40 -> 2021-01-18 | B41: 1 | C41: 1900-01-02 | D41: 2 | E41: 2 | H41: : | J41: : | Q41: 0 | V41: =IF(+Radelkal!F40>0,+Radelkal!F40,"") ->  | X41: =IF(W41<>"",SUM($AI$6:AI41)/10,"") ->  | Z41: =IF(Y41>0,+Y41/Daten!$I$18^2,"") ->  | AC41: 0 | AD41: =IF(WEEKDAY(A41)=1,IF(E41=1,VLOOKUP(AE41,Daten!$C$49:$D$102,2)," "),"") ->  | AE41: 3 | AF41: 0 | AG41: 0 | AH41: 0
A42: =+A40+1 -> 2021-01-19 | B42: 1 | C42: 1900-01-03 | D42: 1 | E42: 0 | H42: : | J42: : | Q42: 0 | V42: =IF(+Radelkal!F41>0,+Radelkal!F41,"") ->  | X42: =IF(W42<>"",SUM($AI$6:AI42)/10,"") ->  | Z42: =IF(Y42>0,+Y42/Daten!$I$18^2,"") ->  | AC42: 0 | AD42: =IF(WEEKDAY(A42)=1,IF(E42=1,VLOOKUP(AE42,Daten!$C$49:$D$102,2)," "),"") ->  | AE42: 3 | AF42: 0 | AG42: 0 | AH42: 0
A43: =+A42 -> 2021-01-19 | B43: 1 | C43: 1900-01-03 | D43: 2 | E43: 2 | H43: : | J43: : | Q43: 0 | V43: =IF(+Radelkal!F42>0,+Radelkal!F42,"") ->  | X43: =IF(W43<>"",SUM($AI$6:AI43)/10,"") ->  | Z43: =IF(Y43>0,+Y43/Daten!$I$18^2,"") ->  | AC43: 0 | AD43: =IF(WEEKDAY(A43)=1,IF(E43=1,VLOOKUP(AE43,Daten!$C$49:$D$102,2)," "),"") ->  | AE43: 3 | AF43: 0 | AG43: 0 | AH43: 0
A44: =+A42+1 -> 2021-01-20 | B44: 1 | C44: 1900-01-04 | D44: 1 | E44: 0 | H44: : | J44: : | Q44: 0 | V44: =IF(+Radelkal!F43>0,+Radelkal!F43,"") ->  | X44: =IF(W44<>"",SUM($AI$6:AI44)/10,"") ->  | Z44: =IF(Y44>0,+Y44/Daten!$I$18^2,"") ->  | AC44: 0 | AD44: =IF(WEEKDAY(A44)=1,IF(E44=1,VLOOKUP(AE44,Daten!$C$49:$D$102,2)," "),"") ->  | AE44: 3 | AF44: 0 | AG44: 0 | AH44: 0
A45: =+A44 -> 2021-01-20 | B45: 1 | C45: 1900-01-04 | D45: 2 | E45: 2 | H45: : | J45: : | Q45: 0 | V45: =IF(+Radelkal!F44>0,+Radelkal!F44,"") ->  | X45: =IF(W45<>"",SUM($AI$6:AI45)/10,"") ->  | Z45: =IF(Y45>0,+Y45/Daten!$I$18^2,"") ->  | AC45: 0 | AD45: =IF(WEEKDAY(A45)=1,IF(E45=1,VLOOKUP(AE45,Daten!$C$49:$D$102,2)," "),"") ->  | AE45: 3 | AF45: 0 | AG45: 0 | AH45: 0
A46: =+A44+1 -> 2021-01-21 | B46: 1 | C46: 1900-01-05 | D46: 1 | E46: 0 | H46: : | J46: : | Q46: 0 | V46: =IF(+Radelkal!F45>0,+Radelkal!F45,"") ->  | X46: =IF(W46<>"",SUM($AI$6:AI46)/10,"") ->  | Z46: =IF(Y46>0,+Y46/Daten!$I$18^2,"") ->  | AC46: 0 | AD46: =IF(WEEKDAY(A46)=1,IF(E46=1,VLOOKUP(AE46,Daten!$C$49:$D$102,2)," "),"") ->  | AE46: 3 | AF46: 0 | AG46: 0 | AH46: 0
A47: =+A46 -> 2021-01-21 | B47: 1 | C47: 1900-01-05 | D47: 2 | E47: 2 | H47: : | J47: : | Q47: 0 | V47: =IF(+Radelkal!F46>0,+Radelkal!F46,"") ->  | X47: =IF(W47<>"",SUM($AI$6:AI47)/10,"") ->  | Z47: =IF(Y47>0,+Y47/Daten!$I$18^2,"") ->  | AC47: 0 | AD47: =IF(WEEKDAY(A47)=1,IF(E47=1,VLOOKUP(AE47,Daten!$C$49:$D$102,2)," "),"") ->  | AE47: 3 | AF47: 0 | AG47: 0 | AH47: 0
A48: =+A46+1 -> 2021-01-22 | B48: 1 | C48: 1900-01-06 | D48: 1 | E48: 0 | H48: : | J48: : | Q48: 0 | V48: =IF(+Radelkal!F47>0,+Radelkal!F47,"") ->  | X48: =IF(W48<>"",SUM($AI$6:AI48)/10,"") ->  | Z48: =IF(Y48>0,+Y48/Daten!$I$18^2,"") ->  | AC48: 0 | AD48: =IF(WEEKDAY(A48)=1,IF(E48=1,VLOOKUP(AE48,Daten!$C$49:$D$102,2)," "),"") ->  | AE48: 3 | AF48: 0 | AG48: 0 | AH48: 0
A49: =+A48 -> 2021-01-22 | B49: 1 | C49: 1900-01-06 | D49: 2 | E49: 2 | H49: : | J49: : | Q49: 0 | V49: =IF(+Radelkal!F48>0,+Radelkal!F48,"") ->  | X49: =IF(W49<>"",SUM($AI$6:AI49)/10,"") ->  | Z49: =IF(Y49>0,+Y49/Daten!$I$18^2,"") ->  | AC49: 0 | AD49: =IF(WEEKDAY(A49)=1,IF(E49=1,VLOOKUP(AE49,Daten!$C$49:$D$102,2)," "),"") ->  | AE49: 3 | AF49: 0 | AG49: 0 | AH49: 0
A50: =+A48+1 -> 2021-01-23 | B50: 1 | C50: 1900-01-07 | D50: 1 | E50: 0 | H50: : | J50: : | Q50: 0 | V50: =IF(+Radelkal!F49>0,+Radelkal!F49,"") ->  | X50: =IF(W50<>"",SUM($AI$6:AI50)/10,"") ->  | Z50: =IF(Y50>0,+Y50/Daten!$I$18^2,"") ->  | AC50: 0 | AD50: =IF(WEEKDAY(A50)=1,IF(E50=1,VLOOKUP(AE50,Daten!$C$49:$D$102,2)," "),"") ->  | AE50: 3 | AF50: 0 | AG50: 0 | AH50: 0
A51: =+A50 -> 2021-01-23 | B51: 1 | C51: 1900-01-07 | D51: 2 | E51: 2 | H51: : | J51: : | Q51: 0 | V51: =IF(+Radelkal!F50>0,+Radelkal!F50,"") ->  | X51: =IF(W51<>"",SUM($AI$6:AI51)/10,"") ->  | Z51: =IF(Y51>0,+Y51/Daten!$I$18^2,"") ->  | AC51: 0 | AD51: =IF(WEEKDAY(A51)=1,IF(E51=1,VLOOKUP(AE51,Daten!$C$49:$D$102,2)," "),"") ->  | AE51: 3 | AF51: 0 | AG51: 0 | AH51: 0
A52: =+A50+1 -> 2021-01-24 | B52: 1 | C52: 1900-01-01 | D52: 1 | E52: 0 | H52: : | J52: : | Q52: 0 | V52: =IF(+Radelkal!F51>0,+Radelkal!F51,"") ->  | X52: =IF(W52<>"",SUM($AI$6:AI52)/10,"") ->  | Z52: =IF(Y52>0,+Y52/Daten!$I$18^2,"") ->  | AC52: 0 | AD52: =IF(WEEKDAY(A52)=1,IF(E52=1,VLOOKUP(AE52,Daten!$C$49:$D$102,2)," "),"") ->  | AE52: 3 | AF52: 0 | AG52: 0 | AH52: 0
A53: =+A52 -> 2021-01-24 | B53: 1 | C53: 1900-01-01 | D53: 2 | E53: 1 | H53: : | J53: : | Q53: 0 | V53: =IF(+Radelkal!F52>0,+Radelkal!F52,"") ->  | X53: =IF(W53<>"",SUM($AI$6:AI53)/10,"") ->  | Z53: =IF(Y53>0,+Y53/Daten!$I$18^2,"") ->  | AC53: 0 | AD53: =IF(WEEKDAY(A53)=1,IF(E53=1,VLOOKUP(AE53,Daten!$C$49:$D$102,2)," "),"") -> 0 | AE53: 3 | AF53: 0 | AG53: 0 | AH53: 0
A54: =+A52+1 -> 2021-01-25 | B54: 1 | C54: 1900-01-02 | D54: 1 | E54: 0 | H54: : | J54: : | Q54: 0 | V54: =IF(+Radelkal!F53>0,+Radelkal!F53,"") ->  | X54: =IF(W54<>"",SUM($AI$6:AI54)/10,"") ->  | Z54: =IF(Y54>0,+Y54/Daten!$I$18^2,"") ->  | AC54: 0 | AD54: =IF(WEEKDAY(A54)=1,IF(E54=1,VLOOKUP(AE54,Daten!$C$49:$D$102,2)," "),"") ->  | AE54: 4 | AF54: 0 | AG54: 0 | AH54: 0
A55: =+A54 -> 2021-01-25 | B55: 1 | C55: 1900-01-02 | D55: 2 | E55: 2 | H55: : | J55: : | Q55: 0 | V55: =IF(+Radelkal!F54>0,+Radelkal!F54,"") ->  | X55: =IF(W55<>"",SUM($AI$6:AI55)/10,"") ->  | Z55: =IF(Y55>0,+Y55/Daten!$I$18^2,"") ->  | AC55: 0 | AD55: =IF(WEEKDAY(A55)=1,IF(E55=1,VLOOKUP(AE55,Daten!$C$49:$D$102,2)," "),"") ->  | AE55: 4 | AF55: 0 | AG55: 0 | AH55: 0
A56: =+A54+1 -> 2021-01-26 | B56: 1 | C56: 1900-01-03 | D56: 1 | E56: 0 | H56: : | J56: : | Q56: 0 | V56: =IF(+Radelkal!F55>0,+Radelkal!F55,"") ->  | X56: =IF(W56<>"",SUM($AI$6:AI56)/10,"") ->  | Z56: =IF(Y56>0,+Y56/Daten!$I$18^2,"") ->  | AC56: 0 | AD56: =IF(WEEKDAY(A56)=1,IF(E56=1,VLOOKUP(AE56,Daten!$C$49:$D$102,2)," "),"") ->  | AE56: 4 | AF56: 0 | AG56: 0 | AH56: 0
A57: =+A56 -> 2021-01-26 | B57: 1 | C57: 1900-01-03 | D57: 2 | E57: 2 | H57: : | J57: : | Q57: 0 | V57: =IF(+Radelkal!F56>0,+Radelkal!F56,"") ->  | X57: =IF(W57<>"",SUM($AI$6:AI57)/10,"") ->  | Z57: =IF(Y57>0,+Y57/Daten!$I$18^2,"") ->  | AC57: 0 | AD57: =IF(WEEKDAY(A57)=1,IF(E57=1,VLOOKUP(AE57,Daten!$C$49:$D$102,2)," "),"") ->  | AE57: 4 | AF57: 0 | AG57: 0 | AH57: 0
A58: =+A56+1 -> 2021-01-27 | B58: 1 | C58: 1900-01-04 | D58: 1 | E58: 0 | H58: : | J58: : | Q58: 0 | V58: =IF(+Radelkal!F57>0,+Radelkal!F57,"") ->  | X58: =IF(W58<>"",SUM($AI$6:AI58)/10,"") ->  | Z58: =IF(Y58>0,+Y58/Daten!$I$18^2,"") ->  | AC58: 0 | AD58: =IF(WEEKDAY(A58)=1,IF(E58=1,VLOOKUP(AE58,Daten!$C$49:$D$102,2)," "),"") ->  | AE58: 4 | AF58: 0 | AG58: 0 | AH58: 0
A59: =+A58 -> 2021-01-27 | B59: 1 | C59: 1900-01-04 | D59: 2 | E59: 2 | H59: : | J59: : | Q59: 0 | V59: =IF(+Radelkal!F58>0,+Radelkal!F58,"") ->  | X59: =IF(W59<>"",SUM($AI$6:AI59)/10,"") ->  | Z59: =IF(Y59>0,+Y59/Daten!$I$18^2,"") ->  | AC59: 0 | AD59: =IF(WEEKDAY(A59)=1,IF(E59=1,VLOOKUP(AE59,Daten!$C$49:$D$102,2)," "),"") ->  | AE59: 4 | AF59: 0 | AG59: 0 | AH59: 0
A60: =+A58+1 -> 2021-01-28 | B60: 1 | C60: 1900-01-05 | D60: 1 | E60: 0 | H60: : | J60: : | Q60: 0 | V60: =IF(+Radelkal!F59>0,+Radelkal!F59,"") ->  | X60: =IF(W60<>"",SUM($AI$6:AI60)/10,"") ->  | Z60: =IF(Y60>0,+Y60/Daten!$I$18^2,"") ->  | AC60: 0 | AD60: =IF(WEEKDAY(A60)=1,IF(E60=1,VLOOKUP(AE60,Daten!$C$49:$D$102,2)," "),"") ->  | AE60: 4 | AF60: 0 | AG60: 0 | AH60: 0
A61: =+A60 -> 2021-01-28 | B61: 1 | C61: 1900-01-05 | D61: 2 | E61: 2 | H61: : | J61: : | Q61: 0 | V61: =IF(+Radelkal!F60>0,+Radelkal!F60,"") ->  | X61: =IF(W61<>"",SUM($AI$6:AI61)/10,"") ->  | Z61: =IF(Y61>0,+Y61/Daten!$I$18^2,"") ->  | AC61: 0 | AD61: =IF(WEEKDAY(A61)=1,IF(E61=1,VLOOKUP(AE61,Daten!$C$49:$D$102,2)," "),"") ->  | AE61: 4 | AF61: 0 | AG61: 0 | AH61: 0
A62: =+A60+1 -> 2021-01-29 | B62: 1 | C62: 1900-01-06 | D62: 1 | E62: 0 | H62: : | J62: : | Q62: 0 | V62: =IF(+Radelkal!F61>0,+Radelkal!F61,"") ->  | X62: =IF(W62<>"",SUM($AI$6:AI62)/10,"") ->  | Z62: =IF(Y62>0,+Y62/Daten!$I$18^2,"") ->  | AC62: 0 | AD62: =IF(WEEKDAY(A62)=1,IF(E62=1,VLOOKUP(AE62,Daten!$C$49:$D$102,2)," "),"") ->  | AE62: 4 | AF62: 0 | AG62: 0 | AH62: 0
A63: =+A62 -> 2021-01-29 | B63: 1 | C63: 1900-01-06 | D63: 2 | E63: 2 | H63: : | J63: : | Q63: 0 | V63: =IF(+Radelkal!F62>0,+Radelkal!F62,"") ->  | X63: =IF(W63<>"",SUM($AI$6:AI63)/10,"") ->  | Z63: =IF(Y63>0,+Y63/Daten!$I$18^2,"") ->  | AC63: 0 | AD63: =IF(WEEKDAY(A63)=1,IF(E63=1,VLOOKUP(AE63,Daten!$C$49:$D$102,2)," "),"") ->  | AE63: 4 | AF63: 0 | AG63: 0 | AH63: 0
A64: =+A62+1 -> 2021-01-30 | B64: 1 | C64: 1900-01-07 | D64: 1 | E64: 0 | H64: : | J64: : | Q64: 0 | V64: =IF(+Radelkal!F63>0,+Radelkal!F63,"") ->  | X64: =IF(W64<>"",SUM($AI$6:AI64)/10,"") ->  | Z64: =IF(Y64>0,+Y64/Daten!$I$18^2,"") ->  | AC64: 0 | AD64: =IF(WEEKDAY(A64)=1,IF(E64=1,VLOOKUP(AE64,Daten!$C$49:$D$102,2)," "),"") ->  | AE64: 4 | AF64: 0 | AG64: 0 | AH64: 0
A65: =+A64 -> 2021-01-30 | B65: 1 | C65: 1900-01-07 | D65: 2 | E65: 2 | H65: : | J65: : | Q65: 0 | V65: =IF(+Radelkal!F64>0,+Radelkal!F64,"") ->  | X65: =IF(W65<>"",SUM($AI$6:AI65)/10,"") ->  | Z65: =IF(Y65>0,+Y65/Daten!$I$18^2,"") ->  | AC65: 0 | AD65: =IF(WEEKDAY(A65)=1,IF(E65=1,VLOOKUP(AE65,Daten!$C$49:$D$102,2)," "),"") ->  | AE65: 4 | AF65: 0 | AG65: 0 | AH65: 0
A66: =+A64+1 -> 2021-01-31 | B66: 1 | C66: 1900-01-01 | D66: 1 | E66: 0 | H66: : | J66: : | Q66: 0 | V66: =IF(+Radelkal!F65>0,+Radelkal!F65,"") ->  | X66: =IF(W66<>"",SUM($AI$6:AI66)/10,"") ->  | Z66: =IF(Y66>0,+Y66/Daten!$I$18^2,"") ->  | AC66: 0 | AD66: =IF(WEEKDAY(A66)=1,IF(E66=1,VLOOKUP(AE66,Daten!$C$49:$D$102,2)," "),"") ->  | AE66: 4 | AF66: 0 | AG66: 0 | AH66: 0
A67: =+A66 -> 2021-01-31 | B67: 1 | C67: 1900-01-01 | D67: 2 | E67: 1 | H67: : | J67: : | Q67: 0 | V67: =IF(+Radelkal!F66>0,+Radelkal!F66,"") ->  | X67: =IF(W67<>"",SUM($AI$6:AI67)/10,"") ->  | Z67: =IF(Y67>0,+Y67/Daten!$I$18^2,"") ->  | AC67: 0 | AD67: =IF(WEEKDAY(A67)=1,IF(E67=1,VLOOKUP(AE67,Daten!$C$49:$D$102,2)," "),"") -> 0 | AE67: 4 | AF67: 0 | AG67: 0 | AH67: 0
A68: =+A66+1 -> 2021-02-01 | B68: 2 | C68: 1900-01-02 | D68: 1 | E68: 0 | H68: : | J68: : | Q68: 0 | V68: =IF(+Radelkal!F67>0,+Radelkal!F67,"") ->  | X68: =IF(W68<>"",SUM($AI$6:AI68)/10,"") ->  | Z68: =IF(Y68>0,+Y68/Daten!$I$18^2,"") ->  | AC68: 0 | AD68: =IF(WEEKDAY(A68)=1,IF(E68=1,VLOOKUP(AE68,Daten!$C$49:$D$102,2)," "),"") ->  | AE68: 5 | AF68: 0 | AG68: 0 | AH68: 0
A69: =+A68 -> 2021-02-01 | B69: 2 | C69: 1900-01-02 | D69: 2 | E69: 2 | H69: : | J69: : | Q69: 0 | V69: =IF(+Radelkal!F68>0,+Radelkal!F68,"") ->  | X69: =IF(W69<>"",SUM($AI$6:AI69)/10,"") ->  | Z69: =IF(Y69>0,+Y69/Daten!$I$18^2,"") ->  | AC69: 0 | AD69: =IF(WEEKDAY(A69)=1,IF(E69=1,VLOOKUP(AE69,Daten!$C$49:$D$102,2)," "),"") ->  | AE69: 5 | AF69: 0 | AG69: 0 | AH69: 0
A70: =+A68+1 -> 2021-02-02 | B70: 2 | C70: 1900-01-03 | D70: 1 | E70: 0 | H70: : | J70: : | Q70: =IF(maxhf<100,0,IF(ISBLANK(P70)="WAHR",P70,P70/maxhf)*100) -> 0 | R70: =IF(F70>0,IF(P70>0,+F70*(F70*1000/(G70*60+I70+K70/60))/(maxhf-P70)*(maxhf/220),""),"") ->  | V70: =IF(+Radelkal!F69>0,+Radelkal!F69,"") ->  | X70: =IF(W70<>"",SUM($AI$6:AI70)/10,"") ->  | Z70: =IF(Y70>0,+Y70/Daten!$I$18^2,"") ->  | AC70: 0 | AD70: =IF(WEEKDAY(A70)=1,IF(E70=1,VLOOKUP(AE70,Daten!$C$49:$D$102,2)," "),"") ->  | AE70: 5 | AF70: 0 | AG70: 0 | AH70: 0
A71: =+A70 -> 2021-02-02 | B71: =MONTH(A71) -> 2 | C71: =WEEKDAY(A71) -> 1900-01-03 | D71: 2 | E71: =IF(D71=2,IF(C71=1,1,2),0) -> 2 | H71: : | J71: : | L71: =IF((+G71*60+I71+K71/60)>0,G71*60+I71+K71/60," ") ->  | M71: =IF(+F71>0,+L71/F71/24/60," ") ->  | N71: =IF(F71>0,+F71/(L71/60),"") ->  | Q71: 0 | V71: =IF(+Radelkal!F70>0,+Radelkal!F70,"") ->  | X71: =IF(W71<>"",SUM($AI$6:AI71)/10,"") ->  | Z71: =IF(Y71>0,+Y71/Daten!$I$18^2,"") ->  | AC71: 0 | AD71: =IF(WEEKDAY(A71)=1,IF(E71=1,VLOOKUP(AE71,Daten!$C$49:$D$102,2)," "),"") ->  | AE71: 5 | AF71: =IF(F71>0,IF(D71=2,IF((AB70+AB71)>0,1,0),0),0) -> 0 | AG71: =+T71/10*F71 -> 0 | AH71: =IF(COUNTBLANK(T71)=1,0,+U71/10*F71) -> 0 | AI71: =IF(W71<>"",10,"") -> 
A72: =+A70+1 -> 2021-02-03 | B72: 2 | C72: 1900-01-04 | D72: 1 | E72: 0 | H72: : | J72: : | Q72: 0 | V72: =IF(+Radelkal!F71>0,+Radelkal!F71,"") ->  | X72: =IF(W72<>"",SUM($AI$6:AI72)/10,"") ->  | Z72: =IF(Y72>0,+Y72/Daten!$I$18^2,"") ->  | AC72: =IF(D72=2,+F72+F71,0) -> 0 | AD72: =IF(WEEKDAY(A72)=1,IF(E72=1,VLOOKUP(AE72,Daten!$C$49:$D$102,2)," "),"") ->  | AE72: =IF(WEEKDAY(A72)=2,IF(D72=1,AE71+1,AE71),AE71) -> 5 | AF72: 0 | AG72: 0 | AH72: 0
A73: =+A72 -> 2021-02-03 | B73: 2 | C73: 1900-01-04 | D73: 2 | E73: 2 | H73: : | J73: : | Q73: 0 | V73: =IF(+Radelkal!F72>0,+Radelkal!F72,"") ->  | X73: =IF(W73<>"",SUM($AI$6:AI73)/10,"") ->  | Z73: =IF(Y73>0,+Y73/Daten!$I$18^2,"") ->  | AC73: 0 | AD73: =IF(WEEKDAY(A73)=1,IF(E73=1,VLOOKUP(AE73,Daten!$C$49:$D$102,2)," "),"") ->  | AE73: 5 | AF73: 0 | AG73: 0 | AH73: 0
A74: =+A72+1 -> 2021-02-04 | B74: 2 | C74: 1900-01-05 | D74: 1 | E74: 0 | H74: : | J74: : | Q74: 0 | V74: =IF(+Radelkal!F73>0,+Radelkal!F73,"") ->  | X74: =IF(W74<>"",SUM($AI$6:AI74)/10,"") ->  | Z74: =IF(Y74>0,+Y74/Daten!$I$18^2,"") ->  | AC74: 0 | AD74: =IF(WEEKDAY(A74)=1,IF(E74=1,VLOOKUP(AE74,Daten!$C$49:$D$102,2)," "),"") ->  | AE74: 5 | AF74: 0 | AG74: 0 | AH74: 0
A75: =+A74 -> 2021-02-04 | B75: 2 | C75: 1900-01-05 | D75: 2 | E75: 2 | H75: : | J75: : | Q75: 0 | V75: =IF(+Radelkal!F74>0,+Radelkal!F74,"") ->  | X75: =IF(W75<>"",SUM($AI$6:AI75)/10,"") ->  | Z75: =IF(Y75>0,+Y75/Daten!$I$18^2,"") ->  | AC75: 0 | AD75: =IF(WEEKDAY(A75)=1,IF(E75=1,VLOOKUP(AE75,Daten!$C$49:$D$102,2)," "),"") ->  | AE75: 5 | AF75: 0 | AG75: 0 | AH75: 0
A76: =+A74+1 -> 2021-02-05 | B76: 2 | C76: 1900-01-06 | D76: 1 | E76: 0 | H76: : | J76: : | Q76: 0 | V76: =IF(+Radelkal!F75>0,+Radelkal!F75,"") ->  | X76: =IF(W76<>"",SUM($AI$6:AI76)/10,"") ->  | Z76: =IF(Y76>0,+Y76/Daten!$I$18^2,"") ->  | AC76: 0 | AD76: =IF(WEEKDAY(A76)=1,IF(E76=1,VLOOKUP(AE76,Daten!$C$49:$D$102,2)," "),"") ->  | AE76: 5 | AF76: 0 | AG76: 0 | AH76: 0
A77: =+A76 -> 2021-02-05 | B77: 2 | C77: 1900-01-06 | D77: 2 | E77: 2 | H77: : | J77: : | Q77: 0 | V77: =IF(+Radelkal!F76>0,+Radelkal!F76,"") ->  | X77: =IF(W77<>"",SUM($AI$6:AI77)/10,"") ->  | Z77: =IF(Y77>0,+Y77/Daten!$I$18^2,"") ->  | AC77: 0 | AD77: =IF(WEEKDAY(A77)=1,IF(E77=1,VLOOKUP(AE77,Daten!$C$49:$D$102,2)," "),"") ->  | AE77: 5 | AF77: 0 | AG77: 0 | AH77: 0
A78: =+A76+1 -> 2021-02-06 | B78: 2 | C78: 1900-01-07 | D78: 1 | E78: 0 | H78: : | J78: : | Q78: 0 | V78: =IF(+Radelkal!F77>0,+Radelkal!F77,"") ->  | X78: =IF(W78<>"",SUM($AI$6:AI78)/10,"") ->  | Z78: =IF(Y78>0,+Y78/Daten!$I$18^2,"") ->  | AC78: 0 | AD78: =IF(WEEKDAY(A78)=1,IF(E78=1,VLOOKUP(AE78,Daten!$C$49:$D$102,2)," "),"") ->  | AE78: 5 | AF78: 0 | AG78: 0 | AH78: 0
A79: =+A78 -> 2021-02-06 | B79: 2 | C79: 1900-01-07 | D79: 2 | E79: 2 | H79: : | J79: : | Q79: 0 | V79: =IF(+Radelkal!F78>0,+Radelkal!F78,"") ->  | X79: =IF(W79<>"",SUM($AI$6:AI79)/10,"") ->  | Z79: =IF(Y79>0,+Y79/Daten!$I$18^2,"") ->  | AC79: 0 | AD79: =IF(WEEKDAY(A79)=1,IF(E79=1,VLOOKUP(AE79,Daten!$C$49:$D$102,2)," "),"") ->  | AE79: 5 | AF79: 0 | AG79: 0 | AH79: 0
A80: =+A78+1 -> 2021-02-07 | B80: 2 | C80: 1900-01-01 | D80: 1 | E80: 0 | H80: : | J80: : | Q80: 0 | V80: =IF(+Radelkal!F79>0,+Radelkal!F79,"") ->  | X80: =IF(W80<>"",SUM($AI$6:AI80)/10,"") ->  | Z80: =IF(Y80>0,+Y80/Daten!$I$18^2,"") ->  | AC80: 0 | AD80: =IF(WEEKDAY(A80)=1,IF(E80=1,VLOOKUP(AE80,Daten!$C$49:$D$102,2)," "),"") ->  | AE80: 5 | AF80: 0 | AG80: 0 | AH80: 0
A81: =+A80 -> 2021-02-07 | B81: 2 | C81: 1900-01-01 | D81: 2 | E81: 1 | H81: : | J81: : | Q81: 0 | V81: =IF(+Radelkal!F80>0,+Radelkal!F80,"") ->  | X81: =IF(W81<>"",SUM($AI$6:AI81)/10,"") ->  | Z81: =IF(Y81>0,+Y81/Daten!$I$18^2,"") ->  | AC81: 0 | AD81: =IF(WEEKDAY(A81)=1,IF(E81=1,VLOOKUP(AE81,Daten!$C$49:$D$102,2)," "),"") -> 0 | AE81: 5 | AF81: 0 | AG81: 0 | AH81: 0
A82: =+A80+1 -> 2021-02-08 | B82: 2 | C82: 1900-01-02 | D82: 1 | E82: 0 | H82: : | J82: : | Q82: 0 | V82: =IF(+Radelkal!F81>0,+Radelkal!F81,"") ->  | X82: =IF(W82<>"",SUM($AI$6:AI82)/10,"") ->  | Z82: =IF(Y82>0,+Y82/Daten!$I$18^2,"") ->  | AC82: 0 | AD82: =IF(WEEKDAY(A82)=1,IF(E82=1,VLOOKUP(AE82,Daten!$C$49:$D$102,2)," "),"") ->  | AE82: 6 | AF82: 0 | AG82: 0 | AH82: 0
A83: =+A82 -> 2021-02-08 | B83: 2 | C83: 1900-01-02 | D83: 2 | E83: 2 | H83: : | J83: : | Q83: 0 | V83: =IF(+Radelkal!F82>0,+Radelkal!F82,"") ->  | X83: =IF(W83<>"",SUM($AI$6:AI83)/10,"") ->  | Z83: =IF(Y83>0,+Y83/Daten!$I$18^2,"") ->  | AC83: 0 | AD83: =IF(WEEKDAY(A83)=1,IF(E83=1,VLOOKUP(AE83,Daten!$C$49:$D$102,2)," "),"") ->  | AE83: 6 | AF83: 0 | AG83: 0 | AH83: 0
A84: =+A82+1 -> 2021-02-09 | B84: 2 | C84: 1900-01-03 | D84: 1 | E84: 0 | H84: : | J84: : | Q84: 0 | V84: =IF(+Radelkal!F83>0,+Radelkal!F83,"") ->  | X84: =IF(W84<>"",SUM($AI$6:AI84)/10,"") ->  | Z84: =IF(Y84>0,+Y84/Daten!$I$18^2,"") ->  | AC84: 0 | AD84: =IF(WEEKDAY(A84)=1,IF(E84=1,VLOOKUP(AE84,Daten!$C$49:$D$102,2)," "),"") ->  | AE84: 6 | AF84: 0 | AG84: 0 | AH84: 0
A85: =+A84 -> 2021-02-09 | B85: 2 | C85: 1900-01-03 | D85: 2 | E85: 2 | H85: : | J85: : | Q85: 0 | V85: =IF(+Radelkal!F84>0,+Radelkal!F84,"") ->  | X85: =IF(W85<>"",SUM($AI$6:AI85)/10,"") ->  | Z85: =IF(Y85>0,+Y85/Daten!$I$18^2,"") ->  | AC85: 0 | AD85: =IF(WEEKDAY(A85)=1,IF(E85=1,VLOOKUP(AE85,Daten!$C$49:$D$102,2)," "),"") ->  | AE85: 6 | AF85: 0 | AG85: 0 | AH85: 0
A86: =+A84+1 -> 2021-02-10 | B86: 2 | C86: 1900-01-04 | D86: 1 | E86: 0 | H86: : | J86: : | Q86: 0 | V86: =IF(+Radelkal!F85>0,+Radelkal!F85,"") ->  | X86: =IF(W86<>"",SUM($AI$6:AI86)/10,"") ->  | Z86: =IF(Y86>0,+Y86/Daten!$I$18^2,"") ->  | AC86: 0 | AD86: =IF(WEEKDAY(A86)=1,IF(E86=1,VLOOKUP(AE86,Daten!$C$49:$D$102,2)," "),"") ->  | AE86: 6 | AF86: 0 | AG86: 0 | AH86: 0
A87: =+A86 -> 2021-02-10 | B87: 2 | C87: 1900-01-04 | D87: 2 | E87: 2 | H87: : | J87: : | Q87: 0 | V87: =IF(+Radelkal!F86>0,+Radelkal!F86,"") ->  | X87: =IF(W87<>"",SUM($AI$6:AI87)/10,"") ->  | Z87: =IF(Y87>0,+Y87/Daten!$I$18^2,"") ->  | AC87: 0 | AD87: =IF(WEEKDAY(A87)=1,IF(E87=1,VLOOKUP(AE87,Daten!$C$49:$D$102,2)," "),"") ->  | AE87: 6 | AF87: 0 | AG87: 0 | AH87: 0
A88: =+A86+1 -> 2021-02-11 | B88: 2 | C88: 1900-01-05 | D88: 1 | E88: 0 | H88: : | J88: : | Q88: 0 | V88: =IF(+Radelkal!F87>0,+Radelkal!F87,"") ->  | X88: =IF(W88<>"",SUM($AI$6:AI88)/10,"") ->  | Z88: =IF(Y88>0,+Y88/Daten!$I$18^2,"") ->  | AC88: 0 | AD88: =IF(WEEKDAY(A88)=1,IF(E88=1,VLOOKUP(AE88,Daten!$C$49:$D$102,2)," "),"") ->  | AE88: 6 | AF88: 0 | AG88: 0 | AH88: 0
A89: =+A88 -> 2021-02-11 | B89: 2 | C89: 1900-01-05 | D89: 2 | E89: 2 | H89: : | J89: : | Q89: 0 | V89: =IF(+Radelkal!F88>0,+Radelkal!F88,"") ->  | X89: =IF(W89<>"",SUM($AI$6:AI89)/10,"") ->  | Z89: =IF(Y89>0,+Y89/Daten!$I$18^2,"") ->  | AC89: 0 | AD89: =IF(WEEKDAY(A89)=1,IF(E89=1,VLOOKUP(AE89,Daten!$C$49:$D$102,2)," "),"") ->  | AE89: 6 | AF89: 0 | AG89: 0 | AH89: 0
A90: =+A88+1 -> 2021-02-12 | B90: 2 | C90: 1900-01-06 | D90: 1 | E90: 0 | H90: : | J90: : | Q90: 0 | V90: =IF(+Radelkal!F89>0,+Radelkal!F89,"") ->  | X90: =IF(W90<>"",SUM($AI$6:AI90)/10,"") ->  | Z90: =IF(Y90>0,+Y90/Daten!$I$18^2,"") ->  | AC90: 0 | AD90: =IF(WEEKDAY(A90)=1,IF(E90=1,VLOOKUP(AE90,Daten!$C$49:$D$102,2)," "),"") ->  | AE90: 6 | AF90: 0 | AG90: 0 | AH90: 0
A91: =+A90 -> 2021-02-12 | B91: 2 | C91: 1900-01-06 | D91: 2 | E91: 2 | H91: : | J91: : | Q91: 0 | V91: =IF(+Radelkal!F90>0,+Radelkal!F90,"") ->  | X91: =IF(W91<>"",SUM($AI$6:AI91)/10,"") ->  | Z91: =IF(Y91>0,+Y91/Daten!$I$18^2,"") ->  | AC91: 0 | AD91: =IF(WEEKDAY(A91)=1,IF(E91=1,VLOOKUP(AE91,Daten!$C$49:$D$102,2)," "),"") ->  | AE91: 6 | AF91: 0 | AG91: 0 | AH91: 0
A92: =+A90+1 -> 2021-02-13 | B92: 2 | C92: 1900-01-07 | D92: 1 | E92: 0 | H92: : | J92: : | Q92: 0 | V92: =IF(+Radelkal!F91>0,+Radelkal!F91,"") ->  | X92: =IF(W92<>"",SUM($AI$6:AI92)/10,"") ->  | Z92: =IF(Y92>0,+Y92/Daten!$I$18^2,"") ->  | AC92: 0 | AD92: =IF(WEEKDAY(A92)=1,IF(E92=1,VLOOKUP(AE92,Daten!$C$49:$D$102,2)," "),"") ->  | AE92: 6 | AF92: 0 | AG92: 0 | AH92: 0
A93: =+A92 -> 2021-02-13 | B93: 2 | C93: 1900-01-07 | D93: 2 | E93: 2 | H93: : | J93: : | Q93: 0 | V93: =IF(+Radelkal!F92>0,+Radelkal!F92,"") ->  | X93: =IF(W93<>"",SUM($AI$6:AI93)/10,"") ->  | Z93: =IF(Y93>0,+Y93/Daten!$I$18^2,"") ->  | AC93: 0 | AD93: =IF(WEEKDAY(A93)=1,IF(E93=1,VLOOKUP(AE93,Daten!$C$49:$D$102,2)," "),"") ->  | AE93: 6 | AF93: 0 | AG93: 0 | AH93: 0
A94: =+A92+1 -> 2021-02-14 | B94: 2 | C94: 1900-01-01 | D94: 1 | E94: 0 | H94: : | J94: : | Q94: 0 | V94: =IF(+Radelkal!F93>0,+Radelkal!F93,"") ->  | X94: =IF(W94<>"",SUM($AI$6:AI94)/10,"") ->  | Z94: =IF(Y94>0,+Y94/Daten!$I$18^2,"") ->  | AC94: 0 | AD94: =IF(WEEKDAY(A94)=1,IF(E94=1,VLOOKUP(AE94,Daten!$C$49:$D$102,2)," "),"") ->  | AE94: 6 | AF94: 0 | AG94: 0 | AH94: 0
A95: =+A94 -> 2021-02-14 | B95: 2 | C95: 1900-01-01 | D95: 2 | E95: 1 | H95: : | J95: : | Q95: 0 | V95: =IF(+Radelkal!F94>0,+Radelkal!F94,"") ->  | X95: =IF(W95<>"",SUM($AI$6:AI95)/10,"") ->  | Z95: =IF(Y95>0,+Y95/Daten!$I$18^2,"") ->  | AC95: 0 | AD95: =IF(WEEKDAY(A95)=1,IF(E95=1,VLOOKUP(AE95,Daten!$C$49:$D$102,2)," "),"") -> 0 | AE95: 6 | AF95: 0 | AG95: 0 | AH95: 0
A96: =+A94+1 -> 2021-02-15 | B96: 2 | C96: 1900-01-02 | D96: 1 | E96: 0 | H96: : | J96: : | Q96: 0 | V96: =IF(+Radelkal!F95>0,+Radelkal!F95,"") ->  | X96: =IF(W96<>"",SUM($AI$6:AI96)/10,"") ->  | Z96: =IF(Y96>0,+Y96/Daten!$I$18^2,"") ->  | AC96: 0 | AD96: =IF(WEEKDAY(A96)=1,IF(E96=1,VLOOKUP(AE96,Daten!$C$49:$D$102,2)," "),"") ->  | AE96: 7 | AF96: 0 | AG96: 0 | AH96: 0
A97: =+A96 -> 2021-02-15 | B97: 2 | C97: 1900-01-02 | D97: 2 | E97: 2 | H97: : | J97: : | Q97: 0 | V97: =IF(+Radelkal!F96>0,+Radelkal!F96,"") ->  | X97: =IF(W97<>"",SUM($AI$6:AI97)/10,"") ->  | Z97: =IF(Y97>0,+Y97/Daten!$I$18^2,"") ->  | AC97: 0 | AD97: =IF(WEEKDAY(A97)=1,IF(E97=1,VLOOKUP(AE97,Daten!$C$49:$D$102,2)," "),"") ->  | AE97: 7 | AF97: 0 | AG97: 0 | AH97: 0
A98: =+A96+1 -> 2021-02-16 | B98: 2 | C98: 1900-01-03 | D98: 1 | E98: 0 | H98: : | J98: : | Q98: 0 | V98: =IF(+Radelkal!F97>0,+Radelkal!F97,"") ->  | X98: =IF(W98<>"",SUM($AI$6:AI98)/10,"") ->  | Z98: =IF(Y98>0,+Y98/Daten!$I$18^2,"") ->  | AC98: 0 | AD98: =IF(WEEKDAY(A98)=1,IF(E98=1,VLOOKUP(AE98,Daten!$C$49:$D$102,2)," "),"") ->  | AE98: 7 | AF98: 0 | AG98: 0 | AH98: 0
A99: =+A98 -> 2021-02-16 | B99: 2 | C99: 1900-01-03 | D99: 2 | E99: 2 | H99: : | J99: : | Q99: 0 | V99: =IF(+Radelkal!F98>0,+Radelkal!F98,"") ->  | X99: =IF(W99<>"",SUM($AI$6:AI99)/10,"") ->  | Z99: =IF(Y99>0,+Y99/Daten!$I$18^2,"") ->  | AC99: 0 | AD99: =IF(WEEKDAY(A99)=1,IF(E99=1,VLOOKUP(AE99,Daten!$C$49:$D$102,2)," "),"") ->  | AE99: 7 | AF99: 0 | AG99: 0 | AH99: 0
A100: =+A98+1 -> 2021-02-17 | B100: 2 | C100: 1900-01-04 | D100: 1 | E100: 0 | H100: : | J100: : | Q100: 0 | V100: =IF(+Radelkal!F99>0,+Radelkal!F99,"") ->  | X100: =IF(W100<>"",SUM($AI$6:AI100)/10,"") ->  | Z100: =IF(Y100>0,+Y100/Daten!$I$18^2,"") ->  | AC100: 0 | AD100: =IF(WEEKDAY(A100)=1,IF(E100=1,VLOOKUP(AE100,Daten!$C$49:$D$102,2)," "),"") ->  | AE100: 7 | AF100: 0 | AG100: 0 | AH100: 0
A101: =+A100 -> 2021-02-17 | B101: 2 | C101: 1900-01-04 | D101: 2 | E101: 2 | H101: : | J101: : | Q101: 0 | V101: =IF(+Radelkal!F100>0,+Radelkal!F100,"") ->  | X101: =IF(W101<>"",SUM($AI$6:AI101)/10,"") ->  | Z101: =IF(Y101>0,+Y101/Daten!$I$18^2,"") ->  | AC101: 0 | AD101: =IF(WEEKDAY(A101)=1,IF(E101=1,VLOOKUP(AE101,Daten!$C$49:$D$102,2)," "),"") ->  | AE101: 7 | AF101: 0 | AG101: 0 | AH101: 0
A102: =+A100+1 -> 2021-02-18 | B102: 2 | C102: 1900-01-05 | D102: 1 | E102: 0 | H102: : | J102: : | Q102: 0 | V102: =IF(+Radelkal!F101>0,+Radelkal!F101,"") ->  | X102: =IF(W102<>"",SUM($AI$6:AI102)/10,"") ->  | Z102: =IF(Y102>0,+Y102/Daten!$I$18^2,"") ->  | AC102: 0 | AD102: =IF(WEEKDAY(A102)=1,IF(E102=1,VLOOKUP(AE102,Daten!$C$49:$D$102,2)," "),"") ->  | AE102: 7 | AF102: 0 | AG102: 0 | AH102: 0
A103: =+A102 -> 2021-02-18 | B103: 2 | C103: 1900-01-05 | D103: 2 | E103: 2 | H103: : | J103: : | Q103: 0 | V103: =IF(+Radelkal!F102>0,+Radelkal!F102,"") ->  | X103: =IF(W103<>"",SUM($AI$6:AI103)/10,"") ->  | Z103: =IF(Y103>0,+Y103/Daten!$I$18^2,"") ->  | AC103: 0 | AD103: =IF(WEEKDAY(A103)=1,IF(E103=1,VLOOKUP(AE103,Daten!$C$49:$D$102,2)," "),"") ->  | AE103: 7 | AF103: 0 | AG103: 0 | AH103: 0
A104: =+A102+1 -> 2021-02-19 | B104: 2 | C104: 1900-01-06 | D104: 1 | E104: 0 | H104: : | J104: : | Q104: 0 | V104: =IF(+Radelkal!F103>0,+Radelkal!F103,"") ->  | X104: =IF(W104<>"",SUM($AI$6:AI104)/10,"") ->  | Z104: =IF(Y104>0,+Y104/Daten!$I$18^2,"") ->  | AC104: 0 | AD104: =IF(WEEKDAY(A104)=1,IF(E104=1,VLOOKUP(AE104,Daten!$C$49:$D$102,2)," "),"") ->  | AE104: 7 | AF104: 0 | AG104: 0 | AH104: 0
A105: =+A104 -> 2021-02-19 | B105: 2 | C105: 1900-01-06 | D105: 2 | E105: 2 | H105: : | J105: : | Q105: 0 | V105: =IF(+Radelkal!F104>0,+Radelkal!F104,"") ->  | X105: =IF(W105<>"",SUM($AI$6:AI105)/10,"") ->  | Z105: =IF(Y105>0,+Y105/Daten!$I$18^2,"") ->  | AC105: 0 | AD105: =IF(WEEKDAY(A105)=1,IF(E105=1,VLOOKUP(AE105,Daten!$C$49:$D$102,2)," "),"") ->  | AE105: 7 | AF105: 0 | AG105: 0 | AH105: 0
A106: =+A104+1 -> 2021-02-20 | B106: 2 | C106: 1900-01-07 | D106: 1 | E106: 0 | H106: : | J106: : | Q106: 0 | V106: =IF(+Radelkal!F105>0,+Radelkal!F105,"") ->  | X106: =IF(W106<>"",SUM($AI$6:AI106)/10,"") ->  | Z106: =IF(Y106>0,+Y106/Daten!$I$18^2,"") ->  | AC106: 0 | AD106: =IF(WEEKDAY(A106)=1,IF(E106=1,VLOOKUP(AE106,Daten!$C$49:$D$102,2)," "),"") ->  | AE106: 7 | AF106: 0 | AG106: 0 | AH106: 0
A107: =+A106 -> 2021-02-20 | B107: 2 | C107: 1900-01-07 | D107: 2 | E107: 2 | H107: : | J107: : | Q107: 0 | V107: =IF(+Radelkal!F106>0,+Radelkal!F106,"") ->  | X107: =IF(W107<>"",SUM($AI$6:AI107)/10,"") ->  | Z107: =IF(Y107>0,+Y107/Daten!$I$18^2,"") ->  | AC107: 0 | AD107: =IF(WEEKDAY(A107)=1,IF(E107=1,VLOOKUP(AE107,Daten!$C$49:$D$102,2)," "),"") ->  | AE107: 7 | AF107: 0 | AG107: 0 | AH107: 0
A108: =+A106+1 -> 2021-02-21 | B108: 2 | C108: 1900-01-01 | D108: 1 | E108: 0 | H108: : | J108: : | Q108: 0 | V108: =IF(+Radelkal!F107>0,+Radelkal!F107,"") ->  | X108: =IF(W108<>"",SUM($AI$6:AI108)/10,"") ->  | Z108: =IF(Y108>0,+Y108/Daten!$I$18^2,"") ->  | AC108: 0 | AD108: =IF(WEEKDAY(A108)=1,IF(E108=1,VLOOKUP(AE108,Daten!$C$49:$D$102,2)," "),"") ->  | AE108: 7 | AF108: 0 | AG108: 0 | AH108: 0
A109: =+A108 -> 2021-02-21 | B109: 2 | C109: 1900-01-01 | D109: 2 | E109: 1 | H109: : | J109: : | Q109: 0 | V109: =IF(+Radelkal!F108>0,+Radelkal!F108,"") ->  | X109: =IF(W109<>"",SUM($AI$6:AI109)/10,"") ->  | Z109: =IF(Y109>0,+Y109/Daten!$I$18^2,"") ->  | AC109: 0 | AD109: =IF(WEEKDAY(A109)=1,IF(E109=1,VLOOKUP(AE109,Daten!$C$49:$D$102,2)," "),"") -> 0 | AE109: 7 | AF109: 0 | AG109: 0 | AH109: 0
A110: =+A108+1 -> 2021-02-22 | B110: 2 | C110: 1900-01-02 | D110: 1 | E110: 0 | H110: : | J110: : | Q110: 0 | V110: =IF(+Radelkal!F109>0,+Radelkal!F109,"") ->  | X110: =IF(W110<>"",SUM($AI$6:AI110)/10,"") ->  | Z110: =IF(Y110>0,+Y110/Daten!$I$18^2,"") ->  | AC110: 0 | AD110: =IF(WEEKDAY(A110)=1,IF(E110=1,VLOOKUP(AE110,Daten!$C$49:$D$102,2)," "),"") ->  | AE110: 8 | AF110: 0 | AG110: 0 | AH110: 0
A111: =+A110 -> 2021-02-22 | B111: 2 | C111: 1900-01-02 | D111: 2 | E111: 2 | H111: : | J111: : | Q111: 0 | V111: =IF(+Radelkal!F110>0,+Radelkal!F110,"") ->  | X111: =IF(W111<>"",SUM($AI$6:AI111)/10,"") ->  | Z111: =IF(Y111>0,+Y111/Daten!$I$18^2,"") ->  | AC111: 0 | AD111: =IF(WEEKDAY(A111)=1,IF(E111=1,VLOOKUP(AE111,Daten!$C$49:$D$102,2)," "),"") ->  | AE111: 8 | AF111: 0 | AG111: 0 | AH111: 0
A112: =+A110+1 -> 2021-02-23 | B112: 2 | C112: 1900-01-03 | D112: 1 | E112: 0 | H112: : | J112: : | Q112: 0 | V112: =IF(+Radelkal!F111>0,+Radelkal!F111,"") ->  | X112: =IF(W112<>"",SUM($AI$6:AI112)/10,"") ->  | Z112: =IF(Y112>0,+Y112/Daten!$I$18^2,"") ->  | AC112: 0 | AD112: =IF(WEEKDAY(A112)=1,IF(E112=1,VLOOKUP(AE112,Daten!$C$49:$D$102,2)," "),"") ->  | AE112: 8 | AF112: 0 | AG112: 0 | AH112: 0
A113: =+A112 -> 2021-02-23 | B113: 2 | C113: 1900-01-03 | D113: 2 | E113: 2 | H113: : | J113: : | Q113: 0 | V113: =IF(+Radelkal!F112>0,+Radelkal!F112,"") ->  | X113: =IF(W113<>"",SUM($AI$6:AI113)/10,"") ->  | Z113: =IF(Y113>0,+Y113/Daten!$I$18^2,"") ->  | AC113: 0 | AD113: =IF(WEEKDAY(A113)=1,IF(E113=1,VLOOKUP(AE113,Daten!$C$49:$D$102,2)," "),"") ->  | AE113: 8 | AF113: 0 | AG113: 0 | AH113: 0
A114: =+A112+1 -> 2021-02-24 | B114: 2 | C114: 1900-01-04 | D114: 1 | E114: 0 | H114: : | J114: : | Q114: 0 | V114: =IF(+Radelkal!F113>0,+Radelkal!F113,"") ->  | X114: =IF(W114<>"",SUM($AI$6:AI114)/10,"") ->  | Z114: =IF(Y114>0,+Y114/Daten!$I$18^2,"") ->  | AC114: 0 | AD114: =IF(WEEKDAY(A114)=1,IF(E114=1,VLOOKUP(AE114,Daten!$C$49:$D$102,2)," "),"") ->  | AE114: 8 | AF114: 0 | AG114: 0 | AH114: 0
A115: =+A114 -> 2021-02-24 | B115: 2 | C115: 1900-01-04 | D115: 2 | E115: 2 | H115: : | J115: : | Q115: 0 | V115: =IF(+Radelkal!F114>0,+Radelkal!F114,"") ->  | X115: =IF(W115<>"",SUM($AI$6:AI115)/10,"") ->  | Z115: =IF(Y115>0,+Y115/Daten!$I$18^2,"") ->  | AC115: 0 | AD115: =IF(WEEKDAY(A115)=1,IF(E115=1,VLOOKUP(AE115,Daten!$C$49:$D$102,2)," "),"") ->  | AE115: 8 | AF115: 0 | AG115: 0 | AH115: 0
A116: =+A114+1 -> 2021-02-25 | B116: 2 | C116: 1900-01-05 | D116: 1 | E116: 0 | H116: : | J116: : | Q116: 0 | V116: =IF(+Radelkal!F115>0,+Radelkal!F115,"") ->  | X116: =IF(W116<>"",SUM($AI$6:AI116)/10,"") ->  | Z116: =IF(Y116>0,+Y116/Daten!$I$18^2,"") ->  | AC116: 0 | AD116: =IF(WEEKDAY(A116)=1,IF(E116=1,VLOOKUP(AE116,Daten!$C$49:$D$102,2)," "),"") ->  | AE116: 8 | AF116: 0 | AG116: 0 | AH116: 0
A117: =+A116 -> 2021-02-25 | B117: 2 | C117: 1900-01-05 | D117: 2 | E117: 2 | H117: : | J117: : | Q117: 0 | V117: =IF(+Radelkal!F116>0,+Radelkal!F116,"") ->  | X117: =IF(W117<>"",SUM($AI$6:AI117)/10,"") ->  | Z117: =IF(Y117>0,+Y117/Daten!$I$18^2,"") ->  | AC117: 0 | AD117: =IF(WEEKDAY(A117)=1,IF(E117=1,VLOOKUP(AE117,Daten!$C$49:$D$102,2)," "),"") ->  | AE117: 8 | AF117: 0 | AG117: 0 | AH117: 0
A118: =+A116+1 -> 2021-02-26 | B118: 2 | C118: 1900-01-06 | D118: 1 | E118: 0 | H118: : | J118: : | Q118: 0 | V118: =IF(+Radelkal!F117>0,+Radelkal!F117,"") ->  | X118: =IF(W118<>"",SUM($AI$6:AI118)/10,"") ->  | Z118: =IF(Y118>0,+Y118/Daten!$I$18^2,"") ->  | AC118: 0 | AD118: =IF(WEEKDAY(A118)=1,IF(E118=1,VLOOKUP(AE118,Daten!$C$49:$D$102,2)," "),"") ->  | AE118: 8 | AF118: 0 | AG118: 0 | AH118: 0
A119: =+A118 -> 2021-02-26 | B119: 2 | C119: 1900-01-06 | D119: 2 | E119: 2 | H119: : | J119: : | Q119: 0 | V119: =IF(+Radelkal!F118>0,+Radelkal!F118,"") ->  | X119: =IF(W119<>"",SUM($AI$6:AI119)/10,"") ->  | Z119: =IF(Y119>0,+Y119/Daten!$I$18^2,"") ->  | AC119: 0 | AD119: =IF(WEEKDAY(A119)=1,IF(E119=1,VLOOKUP(AE119,Daten!$C$49:$D$102,2)," "),"") ->  | AE119: 8 | AF119: 0 | AG119: 0 | AH119: 0
A120: =+A118+1 -> 2021-02-27 | B120: 2 | C120: 1900-01-07 | D120: 1 | E120: 0 | H120: : | J120: : | Q120: 0 | V120: =IF(+Radelkal!F119>0,+Radelkal!F119,"") ->  | X120: =IF(W120<>"",SUM($AI$6:AI120)/10,"") ->  | Z120: =IF(Y120>0,+Y120/Daten!$I$18^2,"") ->  | AC120: 0 | AD120: =IF(WEEKDAY(A120)=1,IF(E120=1,VLOOKUP(AE120,Daten!$C$49:$D$102,2)," "),"") ->  | AE120: 8 | AF120: 0 | AG120: 0 | AH120: 0
A121: =+A120 -> 2021-02-27 | B121: 2 | C121: 1900-01-07 | D121: 2 | E121: 2 | H121: : | J121: : | Q121: 0 | V121: =IF(+Radelkal!F120>0,+Radelkal!F120,"") ->  | X121: =IF(W121<>"",SUM($AI$6:AI121)/10,"") ->  | Z121: =IF(Y121>0,+Y121/Daten!$I$18^2,"") ->  | AC121: 0 | AD121: =IF(WEEKDAY(A121)=1,IF(E121=1,VLOOKUP(AE121,Daten!$C$49:$D$102,2)," "),"") ->  | AE121: 8 | AF121: 0 | AG121: 0 | AH121: 0
A122: =+A120+1 -> 2021-02-28 | B122: 2 | C122: 1900-01-01 | D122: 1 | E122: 0 | H122: : | J122: : | Q122: 0 | V122: =IF(+Radelkal!F121>0,+Radelkal!F121,"") ->  | X122: =IF(W122<>"",SUM($AI$6:AI122)/10,"") ->  | Z122: =IF(Y122>0,+Y122/Daten!$I$18^2,"") ->  | AC122: 0 | AD122: =IF(WEEKDAY(A122)=1,IF(E122=1,VLOOKUP(AE122,Daten!$C$49:$D$102,2)," "),"") ->  | AE122: 8 | AF122: 0 | AG122: 0 | AH122: 0
A123: =+A122 -> 2021-02-28 | B123: 2 | C123: 1900-01-01 | D123: 2 | E123: 1 | H123: : | J123: : | Q123: 0 | V123: =IF(+Radelkal!F122>0,+Radelkal!F122,"") ->  | X123: =IF(W123<>"",SUM($AI$6:AI123)/10,"") ->  | Z123: =IF(Y123>0,+Y123/Daten!$I$18^2,"") ->  | AC123: 0 | AD123: =IF(WEEKDAY(A123)=1,IF(E123=1,VLOOKUP(AE123,Daten!$C$49:$D$102,2)," "),"") -> 0 | AE123: 8 | AF123: 0 | AG123: 0 | AH123: 0
A124: =+A122+1 -> 2021-03-01 | B124: 3 | C124: 1900-01-02 | D124: 1 | E124: 0 | H124: : | J124: : | Q124: 0 | V124: =IF(+Radelkal!F123>0,+Radelkal!F123,"") ->  | X124: =IF(W124<>"",SUM($AI$6:AI124)/10,"") ->  | Z124: =IF(Y124>0,+Y124/Daten!$I$18^2,"") ->  | AC124: 0 | AD124: =IF(WEEKDAY(A124)=1,IF(E124=1,VLOOKUP(AE124,Daten!$C$49:$D$102,2)," "),"") ->  | AE124: 9 | AF124: 0 | AG124: 0 | AH124: 0
A125: =+A124 -> 2021-03-01 | B125: 3 | C125: 1900-01-02 | D125: 2 | E125: 2 | H125: : | J125: : | Q125: 0 | V125: =IF(+Radelkal!F124>0,+Radelkal!F124,"") ->  | X125: =IF(W125<>"",SUM($AI$6:AI125)/10,"") ->  | Z125: =IF(Y125>0,+Y125/Daten!$I$18^2,"") ->  | AC125: 0 | AD125: =IF(WEEKDAY(A125)=1,IF(E125=1,VLOOKUP(AE125,Daten!$C$49:$D$102,2)," "),"") ->  | AE125: 9 | AF125: 0 | AG125: 0 | AH125: 0
A126: =+A124+1 -> 2021-03-02 | B126: 3 | C126: 1900-01-03 | D126: 1 | E126: 0 | H126: : | J126: : | Q126: 0 | V126: =IF(+Radelkal!F125>0,+Radelkal!F125,"") ->  | X126: =IF(W126<>"",SUM($AI$6:AI126)/10,"") ->  | Z126: =IF(Y126>0,+Y126/Daten!$I$18^2,"") ->  | AC126: 0 | AD126: =IF(WEEKDAY(A126)=1,IF(E126=1,VLOOKUP(AE126,Daten!$C$49:$D$102,2)," "),"") ->  | AE126: 9 | AF126: 0 | AG126: 0 | AH126: 0
A127: =+A126 -> 2021-03-02 | B127: 3 | C127: 1900-01-03 | D127: 2 | E127: 2 | H127: : | J127: : | Q127: 0 | V127: =IF(+Radelkal!F126>0,+Radelkal!F126,"") ->  | X127: =IF(W127<>"",SUM($AI$6:AI127)/10,"") ->  | Z127: =IF(Y127>0,+Y127/Daten!$I$18^2,"") ->  | AC127: 0 | AD127: =IF(WEEKDAY(A127)=1,IF(E127=1,VLOOKUP(AE127,Daten!$C$49:$D$102,2)," "),"") ->  | AE127: 9 | AF127: 0 | AG127: 0 | AH127: 0
A128: =+A126+1 -> 2021-03-03 | B128: 3 | C128: 1900-01-04 | D128: 1 | E128: 0 | H128: : | J128: : | Q128: 0 | V128: =IF(+Radelkal!F127>0,+Radelkal!F127,"") ->  | X128: =IF(W128<>"",SUM($AI$6:AI128)/10,"") ->  | Z128: =IF(Y128>0,+Y128/Daten!$I$18^2,"") ->  | AC128: 0 | AD128: =IF(WEEKDAY(A128)=1,IF(E128=1,VLOOKUP(AE128,Daten!$C$49:$D$102,2)," "),"") ->  | AE128: 9 | AF128: 0 | AG128: 0 | AH128: 0
A129: =+A128 -> 2021-03-03 | B129: 3 | C129: 1900-01-04 | D129: 2 | E129: 2 | H129: : | J129: : | Q129: 0 | V129: =IF(+Radelkal!F128>0,+Radelkal!F128,"") ->  | X129: =IF(W129<>"",SUM($AI$6:AI129)/10,"") ->  | Z129: =IF(Y129>0,+Y129/Daten!$I$18^2,"") ->  | AC129: 0 | AD129: =IF(WEEKDAY(A129)=1,IF(E129=1,VLOOKUP(AE129,Daten!$C$49:$D$102,2)," "),"") ->  | AE129: 9 | AF129: 0 | AG129: 0 | AH129: 0
A130: =+A128+1 -> 2021-03-04 | B130: 3 | C130: 1900-01-05 | D130: 1 | E130: 0 | H130: : | J130: : | Q130: 0 | V130: =IF(+Radelkal!F129>0,+Radelkal!F129,"") ->  | X130: =IF(W130<>"",SUM($AI$6:AI130)/10,"") ->  | Z130: =IF(Y130>0,+Y130/Daten!$I$18^2,"") ->  | AC130: 0 | AD130: =IF(WEEKDAY(A130)=1,IF(E130=1,VLOOKUP(AE130,Daten!$C$49:$D$102,2)," "),"") ->  | AE130: 9 | AF130: 0 | AG130: 0 | AH130: 0
A131: =+A130 -> 2021-03-04 | B131: 3 | C131: 1900-01-05 | D131: 2 | E131: 2 | H131: : | J131: : | Q131: 0 | V131: =IF(+Radelkal!F130>0,+Radelkal!F130,"") ->  | X131: =IF(W131<>"",SUM($AI$6:AI131)/10,"") ->  | Z131: =IF(Y131>0,+Y131/Daten!$I$18^2,"") ->  | AC131: 0 | AD131: =IF(WEEKDAY(A131)=1,IF(E131=1,VLOOKUP(AE131,Daten!$C$49:$D$102,2)," "),"") ->  | AE131: 9 | AF131: 0 | AG131: 0 | AH131: 0
A132: =+A130+1 -> 2021-03-05 | B132: 3 | C132: 1900-01-06 | D132: 1 | E132: 0 | H132: : | J132: : | Q132: 0 | V132: =IF(+Radelkal!F131>0,+Radelkal!F131,"") ->  | X132: =IF(W132<>"",SUM($AI$6:AI132)/10,"") ->  | Z132: =IF(Y132>0,+Y132/Daten!$I$18^2,"") ->  | AC132: 0 | AD132: =IF(WEEKDAY(A132)=1,IF(E132=1,VLOOKUP(AE132,Daten!$C$49:$D$102,2)," "),"") ->  | AE132: 9 | AF132: 0 | AG132: 0 | AH132: 0
A133: =+A132 -> 2021-03-05 | B133: 3 | C133: 1900-01-06 | D133: 2 | E133: 2 | H133: : | J133: : | Q133: 0 | U133: =IF(COUNTBLANK(T133)=1,"",IF(T133="10","0",10-T133)) ->  | V133: =IF(+Radelkal!F132>0,+Radelkal!F132,"") ->  | X133: =IF(W133<>"",SUM($AI$6:AI133)/10,"") ->  | Z133: =IF(Y133>0,+Y133/Daten!$I$18^2,"") ->  | AC133: 0 | AD133: =IF(WEEKDAY(A133)=1,IF(E133=1,VLOOKUP(AE133,Daten!$C$49:$D$102,2)," "),"") ->  | AE133: 9 | AF133: 0 | AG133: 0 | AH133: 0
A134: =+A132+1 -> 2021-03-06 | B134: 3 | C134: 1900-01-07 | D134: 1 | E134: 0 | H134: : | J134: : | Q134: =IF(maxhf<100,0,IF(ISBLANK(P134)="WAHR",P134,P134/maxhf)*100) -> 0 | R134: =IF(F134>0,IF(P134>0,+F134*(F134*1000/(G134*60+I134+K134/60))/(maxhf-P134)*(maxhf/220),""),"") ->  | V134: =IF(+Radelkal!F133>0,+Radelkal!F133,"") ->  | X134: =IF(W134<>"",SUM($AI$6:AI134)/10,"") ->  | Z134: =IF(Y134>0,+Y134/Daten!$I$18^2,"") ->  | AC134: 0 | AD134: =IF(WEEKDAY(A134)=1,IF(E134=1,VLOOKUP(AE134,Daten!$C$49:$D$102,2)," "),"") ->  | AE134: 9 | AF134: 0 | AG134: 0 | AH134: 0
A135: =+A134 -> 2021-03-06 | B135: =MONTH(A135) -> 3 | C135: =WEEKDAY(A135) -> 1900-01-07 | D135: 2 | E135: =IF(D135=2,IF(C135=1,1,2),0) -> 2 | H135: : | J135: : | L135: =IF((+G135*60+I135+K135/60)>0,G135*60+I135+K135/60," ") ->  | M135: =IF(+F135>0,+L135/F135/24/60," ") ->  | N135: =IF(F135>0,+F135/(L135/60),"") ->  | Q135: 0 | V135: =IF(+Radelkal!F134>0,+Radelkal!F134,"") ->  | X135: =IF(W135<>"",SUM($AI$6:AI135)/10,"") ->  | Z135: =IF(Y135>0,+Y135/Daten!$I$18^2,"") ->  | AC135: 0 | AD135: =IF(WEEKDAY(A135)=1,IF(E135=1,VLOOKUP(AE135,Daten!$C$49:$D$102,2)," "),"") ->  | AE135: 9 | AF135: =IF(F135>0,IF(D135=2,IF((AB134+AB135)>0,1,0),0),0) -> 0 | AG135: =+T135/10*F135 -> 0 | AH135: =IF(COUNTBLANK(T135)=1,0,+U135/10*F135) -> 0 | AI135: =IF(W135<>"",10,"") -> 
A136: =+A134+1 -> 2021-03-07 | B136: 3 | C136: 1900-01-01 | D136: 1 | E136: 0 | H136: : | J136: : | Q136: 0 | V136: =IF(+Radelkal!F135>0,+Radelkal!F135,"") ->  | X136: =IF(W136<>"",SUM($AI$6:AI136)/10,"") ->  | Z136: =IF(Y136>0,+Y136/Daten!$I$18^2,"") ->  | AC136: =IF(D136=2,+F136+F135,0) -> 0 | AD136: =IF(WEEKDAY(A136)=1,IF(E136=1,VLOOKUP(AE136,Daten!$C$49:$D$102,2)," "),"") ->  | AE136: =IF(WEEKDAY(A136)=2,IF(D136=1,AE135+1,AE135),AE135) -> 9 | AF136: 0 | AG136: 0 | AH136: 0
A137: =+A136 -> 2021-03-07 | B137: 3 | C137: 1900-01-01 | D137: 2 | E137: 1 | H137: : | J137: : | Q137: 0 | V137: =IF(+Radelkal!F136>0,+Radelkal!F136,"") ->  | X137: =IF(W137<>"",SUM($AI$6:AI137)/10,"") ->  | Z137: =IF(Y137>0,+Y137/Daten!$I$18^2,"") ->  | AC137: 0 | AD137: =IF(WEEKDAY(A137)=1,IF(E137=1,VLOOKUP(AE137,Daten!$C$49:$D$102,2)," "),"") -> 0 | AE137: 9 | AF137: 0 | AG137: 0 | AH137: 0
A138: =+A136+1 -> 2021-03-08 | B138: 3 | C138: 1900-01-02 | D138: 1 | E138: 0 | H138: : | J138: : | Q138: 0 | V138: =IF(+Radelkal!F137>0,+Radelkal!F137,"") ->  | X138: =IF(W138<>"",SUM($AI$6:AI138)/10,"") ->  | Z138: =IF(Y138>0,+Y138/Daten!$I$18^2,"") ->  | AC138: 0 | AD138: =IF(WEEKDAY(A138)=1,IF(E138=1,VLOOKUP(AE138,Daten!$C$49:$D$102,2)," "),"") ->  | AE138: 10 | AF138: 0 | AG138: 0 | AH138: 0
A139: =+A138 -> 2021-03-08 | B139: 3 | C139: 1900-01-02 | D139: 2 | E139: 2 | H139: : | J139: : | Q139: 0 | V139: =IF(+Radelkal!F138>0,+Radelkal!F138,"") ->  | X139: =IF(W139<>"",SUM($AI$6:AI139)/10,"") ->  | Z139: =IF(Y139>0,+Y139/Daten!$I$18^2,"") ->  | AC139: 0 | AD139: =IF(WEEKDAY(A139)=1,IF(E139=1,VLOOKUP(AE139,Daten!$C$49:$D$102,2)," "),"") ->  | AE139: 10 | AF139: 0 | AG139: 0 | AH139: 0
A140: =+A138+1 -> 2021-03-09 | B140: 3 | C140: 1900-01-03 | D140: 1 | E140: 0 | H140: : | J140: : | Q140: 0 | V140: =IF(+Radelkal!F139>0,+Radelkal!F139,"") ->  | X140: =IF(W140<>"",SUM($AI$6:AI140)/10,"") ->  | Z140: =IF(Y140>0,+Y140/Daten!$I$18^2,"") ->  | AC140: 0 | AD140: =IF(WEEKDAY(A140)=1,IF(E140=1,VLOOKUP(AE140,Daten!$C$49:$D$102,2)," "),"") ->  | AE140: 10 | AF140: 0 | AG140: 0 | AH140: 0
A141: =+A140 -> 2021-03-09 | B141: 3 | C141: 1900-01-03 | D141: 2 | E141: 2 | H141: : | J141: : | Q141: 0 | V141: =IF(+Radelkal!F140>0,+Radelkal!F140,"") ->  | X141: =IF(W141<>"",SUM($AI$6:AI141)/10,"") ->  | Z141: =IF(Y141>0,+Y141/Daten!$I$18^2,"") ->  | AC141: 0 | AD141: =IF(WEEKDAY(A141)=1,IF(E141=1,VLOOKUP(AE141,Daten!$C$49:$D$102,2)," "),"") ->  | AE141: 10 | AF141: 0 | AG141: 0 | AH141: 0
A142: =+A140+1 -> 2021-03-10 | B142: 3 | C142: 1900-01-04 | D142: 1 | E142: 0 | H142: : | J142: : | Q142: 0 | V142: =IF(+Radelkal!F141>0,+Radelkal!F141,"") ->  | X142: =IF(W142<>"",SUM($AI$6:AI142)/10,"") ->  | Z142: =IF(Y142>0,+Y142/Daten!$I$18^2,"") ->  | AC142: 0 | AD142: =IF(WEEKDAY(A142)=1,IF(E142=1,VLOOKUP(AE142,Daten!$C$49:$D$102,2)," "),"") ->  | AE142: 10 | AF142: 0 | AG142: 0 | AH142: 0
A143: =+A142 -> 2021-03-10 | B143: 3 | C143: 1900-01-04 | D143: 2 | E143: 2 | H143: : | J143: : | Q143: 0 | V143: =IF(+Radelkal!F142>0,+Radelkal!F142,"") ->  | X143: =IF(W143<>"",SUM($AI$6:AI143)/10,"") ->  | Z143: =IF(Y143>0,+Y143/Daten!$I$18^2,"") ->  | AC143: 0 | AD143: =IF(WEEKDAY(A143)=1,IF(E143=1,VLOOKUP(AE143,Daten!$C$49:$D$102,2)," "),"") ->  | AE143: 10 | AF143: 0 | AG143: 0 | AH143: 0
A144: =+A142+1 -> 2021-03-11 | B144: 3 | C144: 1900-01-05 | D144: 1 | E144: 0 | H144: : | J144: : | Q144: 0 | V144: =IF(+Radelkal!F143>0,+Radelkal!F143,"") ->  | X144: =IF(W144<>"",SUM($AI$6:AI144)/10,"") ->  | Z144: =IF(Y144>0,+Y144/Daten!$I$18^2,"") ->  | AC144: 0 | AD144: =IF(WEEKDAY(A144)=1,IF(E144=1,VLOOKUP(AE144,Daten!$C$49:$D$102,2)," "),"") ->  | AE144: 10 | AF144: 0 | AG144: 0 | AH144: 0
A145: =+A144 -> 2021-03-11 | B145: 3 | C145: 1900-01-05 | D145: 2 | E145: 2 | H145: : | J145: : | Q145: 0 | V145: =IF(+Radelkal!F144>0,+Radelkal!F144,"") ->  | X145: =IF(W145<>"",SUM($AI$6:AI145)/10,"") ->  | Z145: =IF(Y145>0,+Y145/Daten!$I$18^2,"") ->  | AC145: 0 | AD145: =IF(WEEKDAY(A145)=1,IF(E145=1,VLOOKUP(AE145,Daten!$C$49:$D$102,2)," "),"") ->  | AE145: 10 | AF145: 0 | AG145: 0 | AH145: 0
A146: =+A144+1 -> 2021-03-12 | B146: 3 | C146: 1900-01-06 | D146: 1 | E146: 0 | H146: : | J146: : | Q146: 0 | V146: =IF(+Radelkal!F145>0,+Radelkal!F145,"") ->  | X146: =IF(W146<>"",SUM($AI$6:AI146)/10,"") ->  | Z146: =IF(Y146>0,+Y146/Daten!$I$18^2,"") ->  | AC146: 0 | AD146: =IF(WEEKDAY(A146)=1,IF(E146=1,VLOOKUP(AE146,Daten!$C$49:$D$102,2)," "),"") ->  | AE146: 10 | AF146: 0 | AG146: 0 | AH146: 0
A147: =+A146 -> 2021-03-12 | B147: 3 | C147: 1900-01-06 | D147: 2 | E147: 2 | H147: : | J147: : | Q147: 0 | V147: =IF(+Radelkal!F146>0,+Radelkal!F146,"") ->  | X147: =IF(W147<>"",SUM($AI$6:AI147)/10,"") ->  | Z147: =IF(Y147>0,+Y147/Daten!$I$18^2,"") ->  | AC147: 0 | AD147: =IF(WEEKDAY(A147)=1,IF(E147=1,VLOOKUP(AE147,Daten!$C$49:$D$102,2)," "),"") ->  | AE147: 10 | AF147: 0 | AG147: 0 | AH147: 0
A148: =+A146+1 -> 2021-03-13 | B148: 3 | C148: 1900-01-07 | D148: 1 | E148: 0 | H148: : | J148: : | Q148: 0 | V148: =IF(+Radelkal!F147>0,+Radelkal!F147,"") ->  | X148: =IF(W148<>"",SUM($AI$6:AI148)/10,"") ->  | Z148: =IF(Y148>0,+Y148/Daten!$I$18^2,"") ->  | AC148: 0 | AD148: =IF(WEEKDAY(A148)=1,IF(E148=1,VLOOKUP(AE148,Daten!$C$49:$D$102,2)," "),"") ->  | AE148: 10 | AF148: 0 | AG148: 0 | AH148: 0
A149: =+A148 -> 2021-03-13 | B149: 3 | C149: 1900-01-07 | D149: 2 | E149: 2 | H149: : | J149: : | Q149: 0 | V149: =IF(+Radelkal!F148>0,+Radelkal!F148,"") ->  | X149: =IF(W149<>"",SUM($AI$6:AI149)/10,"") ->  | Z149: =IF(Y149>0,+Y149/Daten!$I$18^2,"") ->  | AC149: 0 | AD149: =IF(WEEKDAY(A149)=1,IF(E149=1,VLOOKUP(AE149,Daten!$C$49:$D$102,2)," "),"") ->  | AE149: 10 | AF149: 0 | AG149: 0 | AH149: 0
A150: =+A148+1 -> 2021-03-14 | B150: 3 | C150: 1900-01-01 | D150: 1 | E150: 0 | H150: : | J150: : | Q150: 0 | V150: =IF(+Radelkal!F149>0,+Radelkal!F149,"") ->  | X150: =IF(W150<>"",SUM($AI$6:AI150)/10,"") ->  | Z150: =IF(Y150>0,+Y150/Daten!$I$18^2,"") ->  | AC150: 0 | AD150: =IF(WEEKDAY(A150)=1,IF(E150=1,VLOOKUP(AE150,Daten!$C$49:$D$102,2)," "),"") ->  | AE150: 10 | AF150: 0 | AG150: 0 | AH150: 0
A151: =+A150 -> 2021-03-14 | B151: 3 | C151: 1900-01-01 | D151: 2 | E151: 1 | H151: : | J151: : | Q151: 0 | V151: =IF(+Radelkal!F150>0,+Radelkal!F150,"") ->  | X151: =IF(W151<>"",SUM($AI$6:AI151)/10,"") ->  | Z151: =IF(Y151>0,+Y151/Daten!$I$18^2,"") ->  | AC151: 0 | AD151: =IF(WEEKDAY(A151)=1,IF(E151=1,VLOOKUP(AE151,Daten!$C$49:$D$102,2)," "),"") -> 0 | AE151: 10 | AF151: 0 | AG151: 0 | AH151: 0
A152: =+A150+1 -> 2021-03-15 | B152: 3 | C152: 1900-01-02 | D152: 1 | E152: 0 | H152: : | J152: : | Q152: 0 | V152: =IF(+Radelkal!F151>0,+Radelkal!F151,"") ->  | X152: =IF(W152<>"",SUM($AI$6:AI152)/10,"") ->  | Z152: =IF(Y152>0,+Y152/Daten!$I$18^2,"") ->  | AC152: 0 | AD152: =IF(WEEKDAY(A152)=1,IF(E152=1,VLOOKUP(AE152,Daten!$C$49:$D$102,2)," "),"") ->  | AE152: 11 | AF152: 0 | AG152: 0 | AH152: 0
A153: =+A152 -> 2021-03-15 | B153: 3 | C153: 1900-01-02 | D153: 2 | E153: 2 | H153: : | J153: : | Q153: 0 | V153: =IF(+Radelkal!F152>0,+Radelkal!F152,"") ->  | X153: =IF(W153<>"",SUM($AI$6:AI153)/10,"") ->  | Z153: =IF(Y153>0,+Y153/Daten!$I$18^2,"") ->  | AC153: 0 | AD153: =IF(WEEKDAY(A153)=1,IF(E153=1,VLOOKUP(AE153,Daten!$C$49:$D$102,2)," "),"") ->  | AE153: 11 | AF153: 0 | AG153: 0 | AH153: 0
A154: =+A152+1 -> 2021-03-16 | B154: 3 | C154: 1900-01-03 | D154: 1 | E154: 0 | H154: : | J154: : | Q154: 0 | V154: =IF(+Radelkal!F153>0,+Radelkal!F153,"") ->  | X154: =IF(W154<>"",SUM($AI$6:AI154)/10,"") ->  | Z154: =IF(Y154>0,+Y154/Daten!$I$18^2,"") ->  | AC154: 0 | AD154: =IF(WEEKDAY(A154)=1,IF(E154=1,VLOOKUP(AE154,Daten!$C$49:$D$102,2)," "),"") ->  | AE154: 11 | AF154: 0 | AG154: 0 | AH154: 0
A155: =+A154 -> 2021-03-16 | B155: 3 | C155: 1900-01-03 | D155: 2 | E155: 2 | H155: : | J155: : | Q155: 0 | V155: =IF(+Radelkal!F154>0,+Radelkal!F154,"") ->  | X155: =IF(W155<>"",SUM($AI$6:AI155)/10,"") ->  | Z155: =IF(Y155>0,+Y155/Daten!$I$18^2,"") ->  | AC155: 0 | AD155: =IF(WEEKDAY(A155)=1,IF(E155=1,VLOOKUP(AE155,Daten!$C$49:$D$102,2)," "),"") ->  | AE155: 11 | AF155: 0 | AG155: 0 | AH155: 0
A156: =+A154+1 -> 2021-03-17 | B156: 3 | C156: 1900-01-04 | D156: 1 | E156: 0 | H156: : | J156: : | Q156: 0 | V156: =IF(+Radelkal!F155>0,+Radelkal!F155,"") ->  | X156: =IF(W156<>"",SUM($AI$6:AI156)/10,"") ->  | Z156: =IF(Y156>0,+Y156/Daten!$I$18^2,"") ->  | AC156: 0 | AD156: =IF(WEEKDAY(A156)=1,IF(E156=1,VLOOKUP(AE156,Daten!$C$49:$D$102,2)," "),"") ->  | AE156: 11 | AF156: 0 | AG156: 0 | AH156: 0
A157: =+A156 -> 2021-03-17 | B157: 3 | C157: 1900-01-04 | D157: 2 | E157: 2 | H157: : | J157: : | Q157: 0 | V157: =IF(+Radelkal!F156>0,+Radelkal!F156,"") ->  | X157: =IF(W157<>"",SUM($AI$6:AI157)/10,"") ->  | Z157: =IF(Y157>0,+Y157/Daten!$I$18^2,"") ->  | AC157: 0 | AD157: =IF(WEEKDAY(A157)=1,IF(E157=1,VLOOKUP(AE157,Daten!$C$49:$D$102,2)," "),"") ->  | AE157: 11 | AF157: 0 | AG157: 0 | AH157: 0
A158: =+A156+1 -> 2021-03-18 | B158: 3 | C158: 1900-01-05 | D158: 1 | E158: 0 | H158: : | J158: : | Q158: 0 | V158: =IF(+Radelkal!F157>0,+Radelkal!F157,"") ->  | X158: =IF(W158<>"",SUM($AI$6:AI158)/10,"") ->  | Z158: =IF(Y158>0,+Y158/Daten!$I$18^2,"") ->  | AC158: 0 | AD158: =IF(WEEKDAY(A158)=1,IF(E158=1,VLOOKUP(AE158,Daten!$C$49:$D$102,2)," "),"") ->  | AE158: 11 | AF158: 0 | AG158: 0 | AH158: 0
A159: =+A158 -> 2021-03-18 | B159: 3 | C159: 1900-01-05 | D159: 2 | E159: 2 | H159: : | J159: : | Q159: 0 | V159: =IF(+Radelkal!F158>0,+Radelkal!F158,"") ->  | X159: =IF(W159<>"",SUM($AI$6:AI159)/10,"") ->  | Z159: =IF(Y159>0,+Y159/Daten!$I$18^2,"") ->  | AC159: 0 | AD159: =IF(WEEKDAY(A159)=1,IF(E159=1,VLOOKUP(AE159,Daten!$C$49:$D$102,2)," "),"") ->  | AE159: 11 | AF159: 0 | AG159: 0 | AH159: 0
A160: =+A158+1 -> 2021-03-19 | B160: 3 | C160: 1900-01-06 | D160: 1 | E160: 0 | H160: : | J160: : | Q160: 0 | V160: =IF(+Radelkal!F159>0,+Radelkal!F159,"") ->  | X160: =IF(W160<>"",SUM($AI$6:AI160)/10,"") ->  | Z160: =IF(Y160>0,+Y160/Daten!$I$18^2,"") ->  | AC160: 0 | AD160: =IF(WEEKDAY(A160)=1,IF(E160=1,VLOOKUP(AE160,Daten!$C$49:$D$102,2)," "),"") ->  | AE160: 11 | AF160: 0 | AG160: 0 | AH160: 0
A161: =+A160 -> 2021-03-19 | B161: 3 | C161: 1900-01-06 | D161: 2 | E161: 2 | H161: : | J161: : | Q161: 0 | V161: =IF(+Radelkal!F160>0,+Radelkal!F160,"") ->  | X161: =IF(W161<>"",SUM($AI$6:AI161)/10,"") ->  | Z161: =IF(Y161>0,+Y161/Daten!$I$18^2,"") ->  | AC161: 0 | AD161: =IF(WEEKDAY(A161)=1,IF(E161=1,VLOOKUP(AE161,Daten!$C$49:$D$102,2)," "),"") ->  | AE161: 11 | AF161: 0 | AG161: 0 | AH161: 0
A162: =+A160+1 -> 2021-03-20 | B162: 3 | C162: 1900-01-07 | D162: 1 | E162: 0 | H162: : | J162: : | Q162: 0 | V162: =IF(+Radelkal!F161>0,+Radelkal!F161,"") ->  | X162: =IF(W162<>"",SUM($AI$6:AI162)/10,"") ->  | Z162: =IF(Y162>0,+Y162/Daten!$I$18^2,"") ->  | AC162: 0 | AD162: =IF(WEEKDAY(A162)=1,IF(E162=1,VLOOKUP(AE162,Daten!$C$49:$D$102,2)," "),"") ->  | AE162: 11 | AF162: 0 | AG162: 0 | AH162: 0
A163: =+A162 -> 2021-03-20 | B163: 3 | C163: 1900-01-07 | D163: 2 | E163: 2 | H163: : | J163: : | Q163: 0 | V163: =IF(+Radelkal!F162>0,+Radelkal!F162,"") ->  | X163: =IF(W163<>"",SUM($AI$6:AI163)/10,"") ->  | Z163: =IF(Y163>0,+Y163/Daten!$I$18^2,"") ->  | AC163: 0 | AD163: =IF(WEEKDAY(A163)=1,IF(E163=1,VLOOKUP(AE163,Daten!$C$49:$D$102,2)," "),"") ->  | AE163: 11 | AF163: 0 | AG163: 0 | AH163: 0
A164: =+A162+1 -> 2021-03-21 | B164: 3 | C164: 1900-01-01 | D164: 1 | E164: 0 | H164: : | J164: : | Q164: 0 | V164: =IF(+Radelkal!F163>0,+Radelkal!F163,"") ->  | X164: =IF(W164<>"",SUM($AI$6:AI164)/10,"") ->  | Z164: =IF(Y164>0,+Y164/Daten!$I$18^2,"") ->  | AC164: 0 | AD164: =IF(WEEKDAY(A164)=1,IF(E164=1,VLOOKUP(AE164,Daten!$C$49:$D$102,2)," "),"") ->  | AE164: 11 | AF164: 0 | AG164: 0 | AH164: 0
A165: =+A164 -> 2021-03-21 | B165: 3 | C165: 1900-01-01 | D165: 2 | E165: 1 | H165: : | J165: : | Q165: 0 | V165: =IF(+Radelkal!F164>0,+Radelkal!F164,"") ->  | X165: =IF(W165<>"",SUM($AI$6:AI165)/10,"") ->  | Z165: =IF(Y165>0,+Y165/Daten!$I$18^2,"") ->  | AC165: 0 | AD165: =IF(WEEKDAY(A165)=1,IF(E165=1,VLOOKUP(AE165,Daten!$C$49:$D$102,2)," "),"") -> 0 | AE165: 11 | AF165: 0 | AG165: 0 | AH165: 0
A166: =+A164+1 -> 2021-03-22 | B166: 3 | C166: 1900-01-02 | D166: 1 | E166: 0 | H166: : | J166: : | Q166: 0 | V166: =IF(+Radelkal!F165>0,+Radelkal!F165,"") ->  | X166: =IF(W166<>"",SUM($AI$6:AI166)/10,"") ->  | Z166: =IF(Y166>0,+Y166/Daten!$I$18^2,"") ->  | AC166: 0 | AD166: =IF(WEEKDAY(A166)=1,IF(E166=1,VLOOKUP(AE166,Daten!$C$49:$D$102,2)," "),"") ->  | AE166: 12 | AF166: 0 | AG166: 0 | AH166: 0
A167: =+A166 -> 2021-03-22 | B167: 3 | C167: 1900-01-02 | D167: 2 | E167: 2 | H167: : | J167: : | Q167: 0 | V167: =IF(+Radelkal!F166>0,+Radelkal!F166,"") ->  | X167: =IF(W167<>"",SUM($AI$6:AI167)/10,"") ->  | Z167: =IF(Y167>0,+Y167/Daten!$I$18^2,"") ->  | AC167: 0 | AD167: =IF(WEEKDAY(A167)=1,IF(E167=1,VLOOKUP(AE167,Daten!$C$49:$D$102,2)," "),"") ->  | AE167: 12 | AF167: 0 | AG167: 0 | AH167: 0
A168: =+A166+1 -> 2021-03-23 | B168: 3 | C168: 1900-01-03 | D168: 1 | E168: 0 | H168: : | J168: : | Q168: 0 | V168: =IF(+Radelkal!F167>0,+Radelkal!F167,"") ->  | X168: =IF(W168<>"",SUM($AI$6:AI168)/10,"") ->  | Z168: =IF(Y168>0,+Y168/Daten!$I$18^2,"") ->  | AC168: 0 | AD168: =IF(WEEKDAY(A168)=1,IF(E168=1,VLOOKUP(AE168,Daten!$C$49:$D$102,2)," "),"") ->  | AE168: 12 | AF168: 0 | AG168: 0 | AH168: 0
A169: =+A168 -> 2021-03-23 | B169: 3 | C169: 1900-01-03 | D169: 2 | E169: 2 | H169: : | J169: : | Q169: 0 | V169: =IF(+Radelkal!F168>0,+Radelkal!F168,"") ->  | X169: =IF(W169<>"",SUM($AI$6:AI169)/10,"") ->  | Z169: =IF(Y169>0,+Y169/Daten!$I$18^2,"") ->  | AC169: 0 | AD169: =IF(WEEKDAY(A169)=1,IF(E169=1,VLOOKUP(AE169,Daten!$C$49:$D$102,2)," "),"") ->  | AE169: 12 | AF169: 0 | AG169: 0 | AH169: 0
A170: =+A168+1 -> 2021-03-24 | B170: 3 | C170: 1900-01-04 | D170: 1 | E170: 0 | H170: : | J170: : | Q170: 0 | V170: =IF(+Radelkal!F169>0,+Radelkal!F169,"") ->  | X170: =IF(W170<>"",SUM($AI$6:AI170)/10,"") ->  | Z170: =IF(Y170>0,+Y170/Daten!$I$18^2,"") ->  | AC170: 0 | AD170: =IF(WEEKDAY(A170)=1,IF(E170=1,VLOOKUP(AE170,Daten!$C$49:$D$102,2)," "),"") ->  | AE170: 12 | AF170: 0 | AG170: 0 | AH170: 0
A171: =+A170 -> 2021-03-24 | B171: 3 | C171: 1900-01-04 | D171: 2 | E171: 2 | H171: : | J171: : | Q171: 0 | V171: =IF(+Radelkal!F170>0,+Radelkal!F170,"") ->  | X171: =IF(W171<>"",SUM($AI$6:AI171)/10,"") ->  | Z171: =IF(Y171>0,+Y171/Daten!$I$18^2,"") ->  | AC171: 0 | AD171: =IF(WEEKDAY(A171)=1,IF(E171=1,VLOOKUP(AE171,Daten!$C$49:$D$102,2)," "),"") ->  | AE171: 12 | AF171: 0 | AG171: 0 | AH171: 0
A172: =+A170+1 -> 2021-03-25 | B172: 3 | C172: 1900-01-05 | D172: 1 | E172: 0 | H172: : | J172: : | Q172: 0 | V172: =IF(+Radelkal!F171>0,+Radelkal!F171,"") ->  | X172: =IF(W172<>"",SUM($AI$6:AI172)/10,"") ->  | Z172: =IF(Y172>0,+Y172/Daten!$I$18^2,"") ->  | AC172: 0 | AD172: =IF(WEEKDAY(A172)=1,IF(E172=1,VLOOKUP(AE172,Daten!$C$49:$D$102,2)," "),"") ->  | AE172: 12 | AF172: 0 | AG172: 0 | AH172: 0
A173: =+A172 -> 2021-03-25 | B173: 3 | C173: 1900-01-05 | D173: 2 | E173: 2 | H173: : | J173: : | Q173: 0 | V173: =IF(+Radelkal!F172>0,+Radelkal!F172,"") ->  | X173: =IF(W173<>"",SUM($AI$6:AI173)/10,"") ->  | Z173: =IF(Y173>0,+Y173/Daten!$I$18^2,"") ->  | AC173: 0 | AD173: =IF(WEEKDAY(A173)=1,IF(E173=1,VLOOKUP(AE173,Daten!$C$49:$D$102,2)," "),"") ->  | AE173: 12 | AF173: 0 | AG173: 0 | AH173: 0
A174: =+A172+1 -> 2021-03-26 | B174: 3 | C174: 1900-01-06 | D174: 1 | E174: 0 | H174: : | J174: : | Q174: 0 | V174: =IF(+Radelkal!F173>0,+Radelkal!F173,"") ->  | X174: =IF(W174<>"",SUM($AI$6:AI174)/10,"") ->  | Z174: =IF(Y174>0,+Y174/Daten!$I$18^2,"") ->  | AC174: 0 | AD174: =IF(WEEKDAY(A174)=1,IF(E174=1,VLOOKUP(AE174,Daten!$C$49:$D$102,2)," "),"") ->  | AE174: 12 | AF174: 0 | AG174: 0 | AH174: 0
A175: =+A174 -> 2021-03-26 | B175: 3 | C175: 1900-01-06 | D175: 2 | E175: 2 | H175: : | J175: : | Q175: 0 | V175: =IF(+Radelkal!F174>0,+Radelkal!F174,"") ->  | X175: =IF(W175<>"",SUM($AI$6:AI175)/10,"") ->  | Z175: =IF(Y175>0,+Y175/Daten!$I$18^2,"") ->  | AC175: 0 | AD175: =IF(WEEKDAY(A175)=1,IF(E175=1,VLOOKUP(AE175,Daten!$C$49:$D$102,2)," "),"") ->  | AE175: 12 | AF175: 0 | AG175: 0 | AH175: 0
A176: =+A174+1 -> 2021-03-27 | B176: 3 | C176: 1900-01-07 | D176: 1 | E176: 0 | H176: : | J176: : | Q176: 0 | V176: =IF(+Radelkal!F175>0,+Radelkal!F175,"") ->  | X176: =IF(W176<>"",SUM($AI$6:AI176)/10,"") ->  | Z176: =IF(Y176>0,+Y176/Daten!$I$18^2,"") ->  | AC176: 0 | AD176: =IF(WEEKDAY(A176)=1,IF(E176=1,VLOOKUP(AE176,Daten!$C$49:$D$102,2)," "),"") ->  | AE176: 12 | AF176: 0 | AG176: 0 | AH176: 0
A177: =+A176 -> 2021-03-27 | B177: 3 | C177: 1900-01-07 | D177: 2 | E177: 2 | H177: : | J177: : | Q177: 0 | V177: =IF(+Radelkal!F176>0,+Radelkal!F176,"") ->  | X177: =IF(W177<>"",SUM($AI$6:AI177)/10,"") ->  | Z177: =IF(Y177>0,+Y177/Daten!$I$18^2,"") ->  | AC177: 0 | AD177: =IF(WEEKDAY(A177)=1,IF(E177=1,VLOOKUP(AE177,Daten!$C$49:$D$102,2)," "),"") ->  | AE177: 12 | AF177: 0 | AG177: 0 | AH177: 0
A178: =+A176+1 -> 2021-03-28 | B178: 3 | C178: 1900-01-01 | D178: 1 | E178: 0 | H178: : | J178: : | Q178: 0 | V178: =IF(+Radelkal!F177>0,+Radelkal!F177,"") ->  | X178: =IF(W178<>"",SUM($AI$6:AI178)/10,"") ->  | Z178: =IF(Y178>0,+Y178/Daten!$I$18^2,"") ->  | AC178: 0 | AD178: =IF(WEEKDAY(A178)=1,IF(E178=1,VLOOKUP(AE178,Daten!$C$49:$D$102,2)," "),"") ->  | AE178: 12 | AF178: 0 | AG178: 0 | AH178: 0
A179: =+A178 -> 2021-03-28 | B179: 3 | C179: 1900-01-01 | D179: 2 | E179: 1 | H179: : | J179: : | Q179: 0 | V179: =IF(+Radelkal!F178>0,+Radelkal!F178,"") ->  | X179: =IF(W179<>"",SUM($AI$6:AI179)/10,"") ->  | Z179: =IF(Y179>0,+Y179/Daten!$I$18^2,"") ->  | AC179: 0 | AD179: =IF(WEEKDAY(A179)=1,IF(E179=1,VLOOKUP(AE179,Daten!$C$49:$D$102,2)," "),"") -> 0 | AE179: 12 | AF179: 0 | AG179: 0 | AH179: 0
A180: =+A178+1 -> 2021-03-29 | B180: 3 | C180: 1900-01-02 | D180: 1 | E180: 0 | H180: : | J180: : | Q180: 0 | V180: =IF(+Radelkal!F179>0,+Radelkal!F179,"") ->  | X180: =IF(W180<>"",SUM($AI$6:AI180)/10,"") ->  | Z180: =IF(Y180>0,+Y180/Daten!$I$18^2,"") ->  | AC180: 0 | AD180: =IF(WEEKDAY(A180)=1,IF(E180=1,VLOOKUP(AE180,Daten!$C$49:$D$102,2)," "),"") ->  | AE180: 13 | AF180: 0 | AG180: 0 | AH180: 0
A181: =+A180 -> 2021-03-29 | B181: 3 | C181: 1900-01-02 | D181: 2 | E181: 2 | H181: : | J181: : | Q181: 0 | V181: =IF(+Radelkal!F180>0,+Radelkal!F180,"") ->  | X181: =IF(W181<>"",SUM($AI$6:AI181)/10,"") ->  | Z181: =IF(Y181>0,+Y181/Daten!$I$18^2,"") ->  | AC181: 0 | AD181: =IF(WEEKDAY(A181)=1,IF(E181=1,VLOOKUP(AE181,Daten!$C$49:$D$102,2)," "),"") ->  | AE181: 13 | AF181: 0 | AG181: 0 | AH181: 0
A182: =+A180+1 -> 2021-03-30 | B182: 3 | C182: 1900-01-03 | D182: 1 | E182: 0 | H182: : | J182: : | Q182: 0 | V182: =IF(+Radelkal!F181>0,+Radelkal!F181,"") ->  | X182: =IF(W182<>"",SUM($AI$6:AI182)/10,"") ->  | Z182: =IF(Y182>0,+Y182/Daten!$I$18^2,"") ->  | AC182: 0 | AD182: =IF(WEEKDAY(A182)=1,IF(E182=1,VLOOKUP(AE182,Daten!$C$49:$D$102,2)," "),"") ->  | AE182: 13 | AF182: 0 | AG182: 0 | AH182: 0
A183: =+A182 -> 2021-03-30 | B183: 3 | C183: 1900-01-03 | D183: 2 | E183: 2 | H183: : | J183: : | Q183: 0 | V183: =IF(+Radelkal!F182>0,+Radelkal!F182,"") ->  | X183: =IF(W183<>"",SUM($AI$6:AI183)/10,"") ->  | Z183: =IF(Y183>0,+Y183/Daten!$I$18^2,"") ->  | AC183: 0 | AD183: =IF(WEEKDAY(A183)=1,IF(E183=1,VLOOKUP(AE183,Daten!$C$49:$D$102,2)," "),"") ->  | AE183: 13 | AF183: 0 | AG183: 0 | AH183: 0
A184: =+A182+1 -> 2021-03-31 | B184: 3 | C184: 1900-01-04 | D184: 1 | E184: 0 | H184: : | J184: : | Q184: 0 | V184: =IF(+Radelkal!F183>0,+Radelkal!F183,"") ->  | X184: =IF(W184<>"",SUM($AI$6:AI184)/10,"") ->  | Z184: =IF(Y184>0,+Y184/Daten!$I$18^2,"") ->  | AC184: 0 | AD184: =IF(WEEKDAY(A184)=1,IF(E184=1,VLOOKUP(AE184,Daten!$C$49:$D$102,2)," "),"") ->  | AE184: 13 | AF184: 0 | AG184: 0 | AH184: 0
A185: =+A184 -> 2021-03-31 | B185: 3 | C185: 1900-01-04 | D185: 2 | E185: 2 | H185: : | J185: : | Q185: 0 | V185: =IF(+Radelkal!F184>0,+Radelkal!F184,"") ->  | X185: =IF(W185<>"",SUM($AI$6:AI185)/10,"") ->  | Z185: =IF(Y185>0,+Y185/Daten!$I$18^2,"") ->  | AC185: 0 | AD185: =IF(WEEKDAY(A185)=1,IF(E185=1,VLOOKUP(AE185,Daten!$C$49:$D$102,2)," "),"") ->  | AE185: 13 | AF185: 0 | AG185: 0 | AH185: 0
A186: =+A184+1 -> 2021-04-01 | B186: 4 | C186: 1900-01-05 | D186: 1 | E186: 0 | H186: : | J186: : | Q186: 0 | V186: =IF(+Radelkal!F185>0,+Radelkal!F185,"") ->  | X186: =IF(W186<>"",SUM($AI$6:AI186)/10,"") ->  | Z186: =IF(Y186>0,+Y186/Daten!$I$18^2,"") ->  | AC186: 0 | AD186: =IF(WEEKDAY(A186)=1,IF(E186=1,VLOOKUP(AE186,Daten!$C$49:$D$102,2)," "),"") ->  | AE186: 13 | AF186: 0 | AG186: 0 | AH186: 0
A187: =+A186 -> 2021-04-01 | B187: 4 | C187: 1900-01-05 | D187: 2 | E187: 2 | H187: : | J187: : | Q187: 0 | V187: =IF(+Radelkal!F186>0,+Radelkal!F186,"") ->  | X187: =IF(W187<>"",SUM($AI$6:AI187)/10,"") ->  | Z187: =IF(Y187>0,+Y187/Daten!$I$18^2,"") ->  | AC187: 0 | AD187: =IF(WEEKDAY(A187)=1,IF(E187=1,VLOOKUP(AE187,Daten!$C$49:$D$102,2)," "),"") ->  | AE187: 13 | AF187: 0 | AG187: 0 | AH187: 0
A188: =+A186+1 -> 2021-04-02 | B188: 4 | C188: 1900-01-06 | D188: 1 | E188: 0 | H188: : | J188: : | Q188: 0 | V188: =IF(+Radelkal!F187>0,+Radelkal!F187,"") ->  | X188: =IF(W188<>"",SUM($AI$6:AI188)/10,"") ->  | Z188: =IF(Y188>0,+Y188/Daten!$I$18^2,"") ->  | AC188: 0 | AD188: =IF(WEEKDAY(A188)=1,IF(E188=1,VLOOKUP(AE188,Daten!$C$49:$D$102,2)," "),"") ->  | AE188: 13 | AF188: 0 | AG188: 0 | AH188: 0
A189: =+A188 -> 2021-04-02 | B189: 4 | C189: 1900-01-06 | D189: 2 | E189: 2 | H189: : | J189: : | Q189: 0 | V189: =IF(+Radelkal!F188>0,+Radelkal!F188,"") ->  | X189: =IF(W189<>"",SUM($AI$6:AI189)/10,"") ->  | Z189: =IF(Y189>0,+Y189/Daten!$I$18^2,"") ->  | AC189: 0 | AD189: =IF(WEEKDAY(A189)=1,IF(E189=1,VLOOKUP(AE189,Daten!$C$49:$D$102,2)," "),"") ->  | AE189: 13 | AF189: 0 | AG189: 0 | AH189: 0
A190: =+A188+1 -> 2021-04-03 | B190: 4 | C190: 1900-01-07 | D190: 1 | E190: 0 | H190: : | J190: : | Q190: 0 | V190: =IF(+Radelkal!F189>0,+Radelkal!F189,"") ->  | X190: =IF(W190<>"",SUM($AI$6:AI190)/10,"") ->  | Z190: =IF(Y190>0,+Y190/Daten!$I$18^2,"") ->  | AC190: 0 | AD190: =IF(WEEKDAY(A190)=1,IF(E190=1,VLOOKUP(AE190,Daten!$C$49:$D$102,2)," "),"") ->  | AE190: 13 | AF190: 0 | AG190: 0 | AH190: 0
A191: =+A190 -> 2021-04-03 | B191: 4 | C191: 1900-01-07 | D191: 2 | E191: 2 | H191: : | J191: : | Q191: 0 | V191: =IF(+Radelkal!F190>0,+Radelkal!F190,"") ->  | X191: =IF(W191<>"",SUM($AI$6:AI191)/10,"") ->  | Z191: =IF(Y191>0,+Y191/Daten!$I$18^2,"") ->  | AC191: 0 | AD191: =IF(WEEKDAY(A191)=1,IF(E191=1,VLOOKUP(AE191,Daten!$C$49:$D$102,2)," "),"") ->  | AE191: 13 | AF191: 0 | AG191: 0 | AH191: 0
A192: =+A190+1 -> 2021-04-04 | B192: 4 | C192: 1900-01-01 | D192: 1 | E192: 0 | H192: : | J192: : | Q192: 0 | V192: =IF(+Radelkal!F191>0,+Radelkal!F191,"") ->  | X192: =IF(W192<>"",SUM($AI$6:AI192)/10,"") ->  | Z192: =IF(Y192>0,+Y192/Daten!$I$18^2,"") ->  | AC192: 0 | AD192: =IF(WEEKDAY(A192)=1,IF(E192=1,VLOOKUP(AE192,Daten!$C$49:$D$102,2)," "),"") ->  | AE192: 13 | AF192: 0 | AG192: 0 | AH192: 0
A193: =+A192 -> 2021-04-04 | B193: 4 | C193: 1900-01-01 | D193: 2 | E193: 1 | H193: : | J193: : | Q193: 0 | V193: =IF(+Radelkal!F192>0,+Radelkal!F192,"") ->  | X193: =IF(W193<>"",SUM($AI$6:AI193)/10,"") ->  | Z193: =IF(Y193>0,+Y193/Daten!$I$18^2,"") ->  | AC193: 0 | AD193: =IF(WEEKDAY(A193)=1,IF(E193=1,VLOOKUP(AE193,Daten!$C$49:$D$102,2)," "),"") -> 0 | AE193: 13 | AF193: 0 | AG193: 0 | AH193: 0
A194: =+A192+1 -> 2021-04-05 | B194: 4 | C194: 1900-01-02 | D194: 1 | E194: 0 | H194: : | J194: : | Q194: 0 | V194: =IF(+Radelkal!F193>0,+Radelkal!F193,"") ->  | X194: =IF(W194<>"",SUM($AI$6:AI194)/10,"") ->  | Z194: =IF(Y194>0,+Y194/Daten!$I$18^2,"") ->  | AC194: 0 | AD194: =IF(WEEKDAY(A194)=1,IF(E194=1,VLOOKUP(AE194,Daten!$C$49:$D$102,2)," "),"") ->  | AE194: 14 | AF194: 0 | AG194: 0 | AH194: 0
A195: =+A194 -> 2021-04-05 | B195: 4 | C195: 1900-01-02 | D195: 2 | E195: 2 | H195: : | J195: : | Q195: 0 | V195: =IF(+Radelkal!F194>0,+Radelkal!F194,"") ->  | X195: =IF(W195<>"",SUM($AI$6:AI195)/10,"") ->  | Z195: =IF(Y195>0,+Y195/Daten!$I$18^2,"") ->  | AC195: 0 | AD195: =IF(WEEKDAY(A195)=1,IF(E195=1,VLOOKUP(AE195,Daten!$C$49:$D$102,2)," "),"") ->  | AE195: 14 | AF195: 0 | AG195: 0 | AH195: 0
A196: =+A194+1 -> 2021-04-06 | B196: 4 | C196: 1900-01-03 | D196: 1 | E196: 0 | H196: : | J196: : | Q196: 0 | V196: =IF(+Radelkal!F195>0,+Radelkal!F195,"") ->  | X196: =IF(W196<>"",SUM($AI$6:AI196)/10,"") ->  | Z196: =IF(Y196>0,+Y196/Daten!$I$18^2,"") ->  | AC196: 0 | AD196: =IF(WEEKDAY(A196)=1,IF(E196=1,VLOOKUP(AE196,Daten!$C$49:$D$102,2)," "),"") ->  | AE196: 14 | AF196: 0 | AG196: 0 | AH196: 0
A197: =+A196 -> 2021-04-06 | B197: 4 | C197: 1900-01-03 | D197: 2 | E197: 2 | H197: : | J197: : | Q197: 0 | U197: =IF(COUNTBLANK(T197)=1,"",IF(T197="10","0",10-T197)) ->  | V197: =IF(+Radelkal!F196>0,+Radelkal!F196,"") ->  | X197: =IF(W197<>"",SUM($AI$6:AI197)/10,"") ->  | Z197: =IF(Y197>0,+Y197/Daten!$I$18^2,"") ->  | AC197: 0 | AD197: =IF(WEEKDAY(A197)=1,IF(E197=1,VLOOKUP(AE197,Daten!$C$49:$D$102,2)," "),"") ->  | AE197: 14 | AF197: 0 | AG197: 0 | AH197: 0
A198: =+A196+1 -> 2021-04-07 | B198: 4 | C198: 1900-01-04 | D198: 1 | E198: 0 | H198: : | J198: : | Q198: =IF(maxhf<100,0,IF(ISBLANK(P198)="WAHR",P198,P198/maxhf)*100) -> 0 | R198: =IF(F198>0,IF(P198>0,+F198*(F198*1000/(G198*60+I198+K198/60))/(maxhf-P198)*(maxhf/220),""),"") ->  | V198: =IF(+Radelkal!F197>0,+Radelkal!F197,"") ->  | X198: =IF(W198<>"",SUM($AI$6:AI198)/10,"") ->  | Z198: =IF(Y198>0,+Y198/Daten!$I$18^2,"") ->  | AC198: 0 | AD198: =IF(WEEKDAY(A198)=1,IF(E198=1,VLOOKUP(AE198,Daten!$C$49:$D$102,2)," "),"") ->  | AE198: 14 | AF198: 0 | AG198: 0 | AH198: 0
A199: =+A198 -> 2021-04-07 | B199: =MONTH(A199) -> 4 | C199: =WEEKDAY(A199) -> 1900-01-04 | D199: 2 | E199: =IF(D199=2,IF(C199=1,1,2),0) -> 2 | H199: : | J199: : | L199: =IF((+G199*60+I199+K199/60)>0,G199*60+I199+K199/60," ") ->  | M199: =IF(+F199>0,+L199/F199/24/60," ") ->  | N199: =IF(F199>0,+F199/(L199/60),"") ->  | Q199: 0 | V199: =IF(+Radelkal!F198>0,+Radelkal!F198,"") ->  | X199: =IF(W199<>"",SUM($AI$6:AI199)/10,"") ->  | Z199: =IF(Y199>0,+Y199/Daten!$I$18^2,"") ->  | AC199: 0 | AD199: =IF(WEEKDAY(A199)=1,IF(E199=1,VLOOKUP(AE199,Daten!$C$49:$D$102,2)," "),"") ->  | AE199: 14 | AF199: =IF(F199>0,IF(D199=2,IF((AB198+AB199)>0,1,0),0),0) -> 0 | AG199: =+T199/10*F199 -> 0 | AH199: =IF(COUNTBLANK(T199)=1,0,+U199/10*F199) -> 0 | AI199: =IF(W199<>"",10,"") -> 
A200: =+A198+1 -> 2021-04-08 | B200: 4 | C200: 1900-01-05 | D200: 1 | E200: 0 | H200: : | J200: : | Q200: 0 | V200: =IF(+Radelkal!F199>0,+Radelkal!F199,"") ->  | X200: =IF(W200<>"",SUM($AI$6:AI200)/10,"") ->  | Z200: =IF(Y200>0,+Y200/Daten!$I$18^2,"") ->  | AC200: =IF(D200=2,+F200+F199,0) -> 0 | AD200: =IF(WEEKDAY(A200)=1,IF(E200=1,VLOOKUP(AE200,Daten!$C$49:$D$102,2)," "),"") ->  | AE200: =IF(WEEKDAY(A200)=2,IF(D200=1,AE199+1,AE199),AE199) -> 14 | AF200: 0 | AG200: 0 | AH200: 0
... 540 more rows

Sheet Radeln
A1: =+"Radeln " &Daten!D3 -> Radeln 2021 | D1: km | E1: Anzahl | F1: HM | G1: hh:mm
A2: im Jahr insgesamt | D2: =DSUM(radelkalender,Radelkal!F4,Kriterien!$G$6:$H$7) -> 20 | E2: =DCOUNT(radelkalender,Radelkal!F4,Kriterien!G6:H7) -> 1 | F2: =DSUM(radelkalender,Radelkal!M4,Kriterien!G6:H7) -> 0 | G2: =DSUM(radelkalender,Radelkal!J4,Kriterien!G6:H7)/24/60 -> 0.04166666667 | J2: gesamt-km
J3: seit 03/95
A4: Durchschnitt pro Monat | D4: =+D2/Daten!D11 ->  | E4: =+E2/Daten!D11 ->  | G4: =+G2/Daten!D11 ->  | J4: =+Daten!D27+D2 -> 20
A5: Durchschnitt pro Woche | D5: =(+D2)/Daten!D10 ->  | E5: =+E2/Daten!D10 ->  | G5: =+G2/Daten!D10 -> 
A6: Durchschnitt pro Tag | D6: =+D2/Daten!D9 ->  | E6: =+E2/Anzahltage ->  | G6: =+G2/Anzahltage ->  | J6: Höchstkm/h
A7: Durchschnitt pro Radtour | D7: =+D2/E2 -> 20 | G7: =+G2/E2 -> 0.04166666667
A8: Durchschnitt km/Std | D8: =+D2/G2/24 -> 20
A9: max. Durchschnitts-Km/h | D9: =DMAX(radelkalender,Radelkal!K4,Kriterien!G6:H7) -> 20
A10: längste Radtour | D10: =DMAX(radelkalender,Radelkal!F4,Kriterien!G6:H7) -> 20 | G10: =DMAX(radelkalender,Radelkal!J4,Kriterien!G6:H7)/24/60 -> 0.04166666667
A11: kürzeste Radtour | D11: =DMIN(radelkalender,Radelkal!F4,Kriterien!G6:H7) -> 20 | G11: =DMIN(radelkalender,Radelkal!J4,Kriterien!G6:H7)/24/60 -> 0.04166666667
A13: Belastung | B13: Anz. | D13: km | E13: % | G13: Räder | H13: Anz. | I13: km
A15: =+Kriterien!A42 -> RTF | B15: =DCOUNT(radelkalender,Radelkal!$F$4,Kriterien!H57:H58) -> 0 | D15: =DSUM(radelkalender,Radelkal!$F$4,Kriterien!H57:H58) -> 0 | E15: =+D15/$D$20 -> 0 | G15: =+Kriterien!A34 -> Rad 1 | H15: =DCOUNT(radelkalender,Radelkal!$F$4,Kriterien!G71:G72) -> 1 | I15: =DSUM(radelkalender,Radelkal!$F$4,Kriterien!G71:G72) -> 20
A16: =+Kriterien!A43 -> hohe Belast. | B16: =DCOUNT(radelkalender,Radelkal!$F$4,Kriterien!H59:H60) -> 0 | D16: =DSUM(radelkalender,Radelkal!$F$4,Kriterien!H59:H60) -> 0 | E16: =+D16/$D$20 -> 0 | G16: =+Kriterien!A35 -> Rad 2 | H16: =DCOUNT(radelkalender,Radelkal!$F$4,Kriterien!G79:G80) -> 0 | I16: =DSUM(radelkalender,Radelkal!$F$4,Kriterien!G79:G80) -> 0
A17: =+Kriterien!A44 -> mittl. Belast. | B17: =DCOUNT(radelkalender,Radelkal!$F$4,Kriterien!H61:H62) -> 0 | D17: =DSUM(radelkalender,Radelkal!$F$4,Kriterien!H61:H62) -> 0 | E17: =+D17/$D$20 -> 0 | G17: =+Kriterien!A36 -> Rad 3 | H17: =DCOUNT(radelkalender,Radelkal!$F$4,Kriterien!G73:G74) -> 0 | I17: =DSUM(radelkalender,Radelkal!$F$4,Kriterien!G73:G74) -> 0
A18: =+Kriterien!A45 -> Bummeln | B18: =DCOUNT(radelkalender,Radelkal!$F$4,Kriterien!H63:H64) -> 0 | D18: =DSUM(radelkalender,Radelkal!$F$4,Kriterien!H63:H64) -> 0 | E18: =+D18/$D$20 -> 0 | G18: =+Kriterien!A37 -> Rad 4 | H18: =DCOUNT(radelkalender,Radelkal!$F$4,Kriterien!G75:G76) -> 0 | I18: =DSUM(radelkalender,Radelkal!$F$4,Kriterien!G75:G76) -> 0
A19: =+Kriterien!A46 -> Regeneration | B19: =DCOUNT(radelkalender,Radelkal!$F$4,Kriterien!H65:H66) -> 1 | D19: =DSUM(radelkalender,Radelkal!$F$4,Kriterien!H65:H66) -> 20 | E19: =+D19/$D$20 -> 1 | G19: Fremde | H19: =DCOUNT(radelkalender,Radelkal!$F$4,Kriterien!G77:G78) -> 0 | I19: =DSUM(radelkalender,Radelkal!$F$4,Kriterien!G77:G78) -> 0
B20: =SUM(B15:B19) -> 1 | D20: =SUM(D15:D19) -> 20 | E20: =+D20/D20 -> 1 | H20: =SUM(H15:H19) -> 1 | I20: =SUM(I15:I19) -> 20

Sheet Radelkal
A1: Datum | B1: Mo | C1: Tag | F1: km | G1: Fahrt- | J1: min | K1: Ø | L1: Be- | M1: HM | N1: Rad | P1: Tag | Q1: Wo | R1: Wo
B2: nat | G2: zeit | K2: km/ | L2: las- | M2: berg | P2: sum | Q2: sum | R2: nr
G3: h | H3: : | I3: mm | K3: Std | L3: tung | M3: auf | O3: Kommentar | P3: Rad | Q3: Rad
A4: datum | B4: mo | F4: km | G4: h | I4: mm | J4: min | K4: km/Std | L4: bel | M4: hm | N4: rad | O4: Kommentar | P4: tasu | Q4: wosum | R4: wonr
A5: =DATE(Daten!D3,1,1) -> 2021-01-01 | B5: =MONTH(A5) -> 1 | C5: =WEEKDAY(A5) -> 1900-01-06 | D5: 1 | E5: =IF(D5=2,IF(C5=1,1,2),0) -> 0 | H5: : | J5: =IF((+G5*60+I5)>0,G5*60+I5,"") ->  | K5: =IF(+F5>0,F5/J5*60," ") ->  | Q5: =IF(WEEKDAY(A5)=1,IF(D5=2,VLOOKUP(R5,Daten!$C$49:$E$102,3)," "),"") ->  | R5: =erstewochennr -> 0
A6: =+A5 -> 2021-01-01 | B6: =MONTH(A6) -> 1 | C6: =WEEKDAY(A6) -> 1900-01-06 | D6: 2 | E6: =IF(D6=2,IF(C6=1,1,2),0) -> 2 | F6: 20 | G6: 1 | H6: : | I6: 0 | J6: 60 | K6: 20 | L6: 5 | M6: 0 | N6: r1 | O6: Heimtrainer | P6: =IF(D6=2,+F6+F5,0) -> 20 | Q6: =IF(WEEKDAY(A6)=1,IF(D6=2,VLOOKUP(R6,Daten!$C$49:$E$102,3)," "),"") ->  | R6: =erstewochennr -> 0
A7: =+A5+1 -> 2021-01-02 | B7: 1 | C7: 1900-01-07 | D7: 1 | E7: 0 | H7: : | P7: =IF(D7=2,+F7+F6,0) -> 0 | Q7: =IF(WEEKDAY(A7)=1,IF(D7=2,VLOOKUP(R7,Daten!$C$49:$E$102,3)," "),"") ->  | R7: =IF(WEEKDAY(A7)=2,IF(D7=1,R6+1,R6),R6) -> 0
A8: =+A7 -> 2021-01-02 | B8: 1 | C8: 1900-01-07 | D8: 2 | E8: 2 | H8: : | P8: 0 | Q8: =IF(WEEKDAY(A8)=1,IF(D8=2,VLOOKUP(R8,Daten!$C$49:$E$102,3)," "),"") ->  | R8: 0
A9: =+A7+1 -> 2021-01-03 | B9: 1 | C9: 1900-01-01 | D9: 1 | E9: 0 | H9: : | P9: 0 | Q9: =IF(WEEKDAY(A9)=1,IF(D9=2,VLOOKUP(R9,Daten!$C$49:$E$102,3)," "),"") ->  | R9: 0
A10: =+A9 -> 2021-01-03 | B10: 1 | C10: 1900-01-01 | D10: 2 | E10: 1 | H10: : | P10: 0 | Q10: =IF(WEEKDAY(A10)=1,IF(D10=2,VLOOKUP(R10,Daten!$C$49:$E$102,3)," "),"") -> 20 | R10: 0
A11: =+A9+1 -> 2021-01-04 | B11: 1 | C11: 1900-01-02 | D11: 1 | E11: 0 | H11: : | P11: 0 | Q11: =IF(WEEKDAY(A11)=1,IF(D11=2,VLOOKUP(R11,Daten!$C$49:$E$102,3)," "),"") ->  | R11: 1
A12: =+A11 -> 2021-01-04 | B12: 1 | C12: 1900-01-02 | D12: 2 | E12: 2 | H12: : | P12: 0 | Q12: =IF(WEEKDAY(A12)=1,IF(D12=2,VLOOKUP(R12,Daten!$C$49:$E$102,3)," "),"") ->  | R12: 1
A13: =+A11+1 -> 2021-01-05 | B13: 1 | C13: 1900-01-03 | D13: 1 | E13: 0 | H13: : | P13: 0 | Q13: =IF(WEEKDAY(A13)=1,IF(D13=2,VLOOKUP(R13,Daten!$C$49:$E$102,3)," "),"") ->  | R13: 1
A14: =+A13 -> 2021-01-05 | B14: 1 | C14: 1900-01-03 | D14: 2 | E14: 2 | H14: : | P14: 0 | Q14: =IF(WEEKDAY(A14)=1,IF(D14=2,VLOOKUP(R14,Daten!$C$49:$E$102,3)," "),"") ->  | R14: 1
A15: =+A13+1 -> 2021-01-06 | B15: 1 | C15: 1900-01-04 | D15: 1 | E15: 0 | H15: : | P15: 0 | Q15: =IF(WEEKDAY(A15)=1,IF(D15=2,VLOOKUP(R15,Daten!$C$49:$E$102,3)," "),"") ->  | R15: 1
A16: =+A15 -> 2021-01-06 | B16: 1 | C16: 1900-01-04 | D16: 2 | E16: 2 | H16: : | P16: 0 | Q16: =IF(WEEKDAY(A16)=1,IF(D16=2,VLOOKUP(R16,Daten!$C$49:$E$102,3)," "),"") ->  | R16: 1
A17: =+A15+1 -> 2021-01-07 | B17: 1 | C17: 1900-01-05 | D17: 1 | E17: 0 | H17: : | P17: 0 | Q17: =IF(WEEKDAY(A17)=1,IF(D17=2,VLOOKUP(R17,Daten!$C$49:$E$102,3)," "),"") ->  | R17: 1
A18: =+A17 -> 2021-01-07 | B18: 1 | C18: 1900-01-05 | D18: 2 | E18: 2 | H18: : | P18: 0 | Q18: =IF(WEEKDAY(A18)=1,IF(D18=2,VLOOKUP(R18,Daten!$C$49:$E$102,3)," "),"") ->  | R18: 1
A19: =+A17+1 -> 2021-01-08 | B19: 1 | C19: 1900-01-06 | D19: 1 | E19: 0 | H19: : | P19: 0 | Q19: =IF(WEEKDAY(A19)=1,IF(D19=2,VLOOKUP(R19,Daten!$C$49:$E$102,3)," "),"") ->  | R19: 1
A20: =+A19 -> 2021-01-08 | B20: 1 | C20: 1900-01-06 | D20: 2 | E20: 2 | H20: : | P20: 0 | Q20: =IF(WEEKDAY(A20)=1,IF(D20=2,VLOOKUP(R20,Daten!$C$49:$E$102,3)," "),"") ->  | R20: 1
A21: =+A19+1 -> 2021-01-09 | B21: 1 | C21: 1900-01-07 | D21: 1 | E21: 0 | H21: : | P21: 0 | Q21: =IF(WEEKDAY(A21)=1,IF(D21=2,VLOOKUP(R21,Daten!$C$49:$E$102,3)," "),"") ->  | R21: 1
A22: =+A21 -> 2021-01-09 | B22: 1 | C22: 1900-01-07 | D22: 2 | E22: 2 | H22: : | P22: 0 | Q22: =IF(WEEKDAY(A22)=1,IF(D22=2,VLOOKUP(R22,Daten!$C$49:$E$102,3)," "),"") ->  | R22: 1
A23: =+A21+1 -> 2021-01-10 | B23: 1 | C23: 1900-01-01 | D23: 1 | E23: 0 | H23: : | P23: 0 | Q23: =IF(WEEKDAY(A23)=1,IF(D23=2,VLOOKUP(R23,Daten!$C$49:$E$102,3)," "),"") ->  | R23: 1
A24: =+A23 -> 2021-01-10 | B24: 1 | C24: 1900-01-01 | D24: 2 | E24: 1 | H24: : | P24: 0 | Q24: =IF(WEEKDAY(A24)=1,IF(D24=2,VLOOKUP(R24,Daten!$C$49:$E$102,3)," "),"") -> 0 | R24: 1
A25: =+A23+1 -> 2021-01-11 | B25: 1 | C25: 1900-01-02 | D25: 1 | E25: 0 | H25: : | P25: 0 | Q25: =IF(WEEKDAY(A25)=1,IF(D25=2,VLOOKUP(R25,Daten!$C$49:$E$102,3)," "),"") ->  | R25: 2
A26: =+A25 -> 2021-01-11 | B26: 1 | C26: 1900-01-02 | D26: 2 | E26: 2 | H26: : | P26: 0 | Q26: =IF(WEEKDAY(A26)=1,IF(D26=2,VLOOKUP(R26,Daten!$C$49:$E$102,3)," "),"") ->  | R26: 2
A27: =+A25+1 -> 2021-01-12 | B27: 1 | C27: 1900-01-03 | D27: 1 | E27: 0 | H27: : | P27: 0 | Q27: =IF(WEEKDAY(A27)=1,IF(D27=2,VLOOKUP(R27,Daten!$C$49:$E$102,3)," "),"") ->  | R27: 2
A28: =+A27 -> 2021-01-12 | B28: 1 | C28: 1900-01-03 | D28: 2 | E28: 2 | H28: : | P28: 0 | Q28: =IF(WEEKDAY(A28)=1,IF(D28=2,VLOOKUP(R28,Daten!$C$49:$E$102,3)," "),"") ->  | R28: 2
A29: =+A27+1 -> 2021-01-13 | B29: 1 | C29: 1900-01-04 | D29: 1 | E29: 0 | H29: : | P29: 0 | Q29: =IF(WEEKDAY(A29)=1,IF(D29=2,VLOOKUP(R29,Daten!$C$49:$E$102,3)," "),"") ->  | R29: 2
A30: =+A29 -> 2021-01-13 | B30: 1 | C30: 1900-01-04 | D30: 2 | E30: 2 | H30: : | P30: 0 | Q30: =IF(WEEKDAY(A30)=1,IF(D30=2,VLOOKUP(R30,Daten!$C$49:$E$102,3)," "),"") ->  | R30: 2
A31: =+A29+1 -> 2021-01-14 | B31: 1 | C31: 1900-01-05 | D31: 1 | E31: 0 | H31: : | P31: 0 | Q31: =IF(WEEKDAY(A31)=1,IF(D31=2,VLOOKUP(R31,Daten!$C$49:$E$102,3)," "),"") ->  | R31: 2
A32: =+A31 -> 2021-01-14 | B32: 1 | C32: 1900-01-05 | D32: 2 | E32: 2 | H32: : | P32: 0 | Q32: =IF(WEEKDAY(A32)=1,IF(D32=2,VLOOKUP(R32,Daten!$C$49:$E$102,3)," "),"") ->  | R32: 2
A33: =+A31+1 -> 2021-01-15 | B33: 1 | C33: 1900-01-06 | D33: 1 | E33: 0 | H33: : | P33: 0 | Q33: =IF(WEEKDAY(A33)=1,IF(D33=2,VLOOKUP(R33,Daten!$C$49:$E$102,3)," "),"") ->  | R33: 2
A34: =+A33 -> 2021-01-15 | B34: 1 | C34: 1900-01-06 | D34: 2 | E34: 2 | H34: : | P34: 0 | Q34: =IF(WEEKDAY(A34)=1,IF(D34=2,VLOOKUP(R34,Daten!$C$49:$E$102,3)," "),"") ->  | R34: 2
A35: =+A33+1 -> 2021-01-16 | B35: 1 | C35: 1900-01-07 | D35: 1 | E35: 0 | H35: : | P35: 0 | Q35: =IF(WEEKDAY(A35)=1,IF(D35=2,VLOOKUP(R35,Daten!$C$49:$E$102,3)," "),"") ->  | R35: 2
A36: =+A35 -> 2021-01-16 | B36: 1 | C36: 1900-01-07 | D36: 2 | E36: 2 | H36: : | P36: 0 | Q36: =IF(WEEKDAY(A36)=1,IF(D36=2,VLOOKUP(R36,Daten!$C$49:$E$102,3)," "),"") ->  | R36: 2
A37: =+A35+1 -> 2021-01-17 | B37: 1 | C37: 1900-01-01 | D37: 1 | E37: 0 | H37: : | P37: 0 | Q37: =IF(WEEKDAY(A37)=1,IF(D37=2,VLOOKUP(R37,Daten!$C$49:$E$102,3)," "),"") ->  | R37: 2
A38: =+A37 -> 2021-01-17 | B38: 1 | C38: 1900-01-01 | D38: 2 | E38: 1 | H38: : | P38: 0 | Q38: =IF(WEEKDAY(A38)=1,IF(D38=2,VLOOKUP(R38,Daten!$C$49:$E$102,3)," "),"") -> 0 | R38: 2
A39: =+A37+1 -> 2021-01-18 | B39: 1 | C39: 1900-01-02 | D39: 1 | E39: 0 | H39: : | P39: 0 | Q39: =IF(WEEKDAY(A39)=1,IF(D39=2,VLOOKUP(R39,Daten!$C$49:$E$102,3)," "),"") ->  | R39: 3
A40: =+A39 -> 2021-01-18 | B40: 1 | C40: 1900-01-02 | D40: 2 | E40: 2 | H40: : | P40: 0 | Q40: =IF(WEEKDAY(A40)=1,IF(D40=2,VLOOKUP(R40,Daten!$C$49:$E$102,3)," "),"") ->  | R40: 3
A41: =+A39+1 -> 2021-01-19 | B41: 1 | C41: 1900-01-03 | D41: 1 | E41: 0 | H41: : | P41: 0 | Q41: =IF(WEEKDAY(A41)=1,IF(D41=2,VLOOKUP(R41,Daten!$C$49:$E$102,3)," "),"") ->  | R41: 3
A42: =+A41 -> 2021-01-19 | B42: 1 | C42: 1900-01-03 | D42: 2 | E42: 2 | H42: : | P42: 0 | Q42: =IF(WEEKDAY(A42)=1,IF(D42=2,VLOOKUP(R42,Daten!$C$49:$E$102,3)," "),"") ->  | R42: 3
A43: =+A41+1 -> 2021-01-20 | B43: 1 | C43: 1900-01-04 | D43: 1 | E43: 0 | H43: : | P43: 0 | Q43: =IF(WEEKDAY(A43)=1,IF(D43=2,VLOOKUP(R43,Daten!$C$49:$E$102,3)," "),"") ->  | R43: 3
A44: =+A43 -> 2021-01-20 | B44: 1 | C44: 1900-01-04 | D44: 2 | E44: 2 | H44: : | P44: 0 | Q44: =IF(WEEKDAY(A44)=1,IF(D44=2,VLOOKUP(R44,Daten!$C$49:$E$102,3)," "),"") ->  | R44: 3
A45: =+A43+1 -> 2021-01-21 | B45: 1 | C45: 1900-01-05 | D45: 1 | E45: 0 | H45: : | P45: 0 | Q45: =IF(WEEKDAY(A45)=1,IF(D45=2,VLOOKUP(R45,Daten!$C$49:$E$102,3)," "),"") ->  | R45: 3
A46: =+A45 -> 2021-01-21 | B46: 1 | C46: 1900-01-05 | D46: 2 | E46: 2 | H46: : | P46: 0 | Q46: =IF(WEEKDAY(A46)=1,IF(D46=2,VLOOKUP(R46,Daten!$C$49:$E$102,3)," "),"") ->  | R46: 3
A47: =+A45+1 -> 2021-01-22 | B47: 1 | C47: 1900-01-06 | D47: 1 | E47: 0 | H47: : | P47: 0 | Q47: =IF(WEEKDAY(A47)=1,IF(D47=2,VLOOKUP(R47,Daten!$C$49:$E$102,3)," "),"") ->  | R47: 3
A48: =+A47 -> 2021-01-22 | B48: 1 | C48: 1900-01-06 | D48: 2 | E48: 2 | H48: : | P48: 0 | Q48: =IF(WEEKDAY(A48)=1,IF(D48=2,VLOOKUP(R48,Daten!$C$49:$E$102,3)," "),"") ->  | R48: 3
A49: =+A47+1 -> 2021-01-23 | B49: 1 | C49: 1900-01-07 | D49: 1 | E49: 0 | H49: : | P49: 0 | Q49: =IF(WEEKDAY(A49)=1,IF(D49=2,VLOOKUP(R49,Daten!$C$49:$E$102,3)," "),"") ->  | R49: 3
A50: =+A49 -> 2021-01-23 | B50: 1 | C50: 1900-01-07 | D50: 2 | E50: 2 | H50: : | P50: 0 | Q50: =IF(WEEKDAY(A50)=1,IF(D50=2,VLOOKUP(R50,Daten!$C$49:$E$102,3)," "),"") ->  | R50: 3
A51: =+A49+1 -> 2021-01-24 | B51: 1 | C51: 1900-01-01 | D51: 1 | E51: 0 | H51: : | P51: 0 | Q51: =IF(WEEKDAY(A51)=1,IF(D51=2,VLOOKUP(R51,Daten!$C$49:$E$102,3)," "),"") ->  | R51: 3
A52: =+A51 -> 2021-01-24 | B52: 1 | C52: 1900-01-01 | D52: 2 | E52: 1 | H52: : | P52: 0 | Q52: =IF(WEEKDAY(A52)=1,IF(D52=2,VLOOKUP(R52,Daten!$C$49:$E$102,3)," "),"") -> 0 | R52: 3
A53: =+A51+1 -> 2021-01-25 | B53: 1 | C53: 1900-01-02 | D53: 1 | E53: 0 | H53: : | P53: 0 | Q53: =IF(WEEKDAY(A53)=1,IF(D53=2,VLOOKUP(R53,Daten!$C$49:$E$102,3)," "),"") ->  | R53: 4
A54: =+A53 -> 2021-01-25 | B54: 1 | C54: 1900-01-02 | D54: 2 | E54: 2 | H54: : | P54: 0 | Q54: =IF(WEEKDAY(A54)=1,IF(D54=2,VLOOKUP(R54,Daten!$C$49:$E$102,3)," "),"") ->  | R54: 4
A55: =+A53+1 -> 2021-01-26 | B55: 1 | C55: 1900-01-03 | D55: 1 | E55: 0 | H55: : | P55: 0 | Q55: =IF(WEEKDAY(A55)=1,IF(D55=2,VLOOKUP(R55,Daten!$C$49:$E$102,3)," "),"") ->  | R55: 4
A56: =+A55 -> 2021-01-26 | B56: 1 | C56: 1900-01-03 | D56: 2 | E56: 2 | H56: : | P56: 0 | Q56: =IF(WEEKDAY(A56)=1,IF(D56=2,VLOOKUP(R56,Daten!$C$49:$E$102,3)," "),"") ->  | R56: 4
A57: =+A55+1 -> 2021-01-27 | B57: 1 | C57: 1900-01-04 | D57: 1 | E57: 0 | H57: : | P57: 0 | Q57: =IF(WEEKDAY(A57)=1,IF(D57=2,VLOOKUP(R57,Daten!$C$49:$E$102,3)," "),"") ->  | R57: 4
A58: =+A57 -> 2021-01-27 | B58: 1 | C58: 1900-01-04 | D58: 2 | E58: 2 | H58: : | P58: 0 | Q58: =IF(WEEKDAY(A58)=1,IF(D58=2,VLOOKUP(R58,Daten!$C$49:$E$102,3)," "),"") ->  | R58: 4
A59: =+A57+1 -> 2021-01-28 | B59: 1 | C59: 1900-01-05 | D59: 1 | E59: 0 | H59: : | P59: 0 | Q59: =IF(WEEKDAY(A59)=1,IF(D59=2,VLOOKUP(R59,Daten!$C$49:$E$102,3)," "),"") ->  | R59: 4
A60: =+A59 -> 2021-01-28 | B60: 1 | C60: 1900-01-05 | D60: 2 | E60: 2 | H60: : | P60: 0 | Q60: =IF(WEEKDAY(A60)=1,IF(D60=2,VLOOKUP(R60,Daten!$C$49:$E$102,3)," "),"") ->  | R60: 4
A61: =+A59+1 -> 2021-01-29 | B61: 1 | C61: 1900-01-06 | D61: 1 | E61: 0 | H61: : | P61: 0 | Q61: =IF(WEEKDAY(A61)=1,IF(D61=2,VLOOKUP(R61,Daten!$C$49:$E$102,3)," "),"") ->  | R61: 4
A62: =+A61 -> 2021-01-29 | B62: 1 | C62: 1900-01-06 | D62: 2 | E62: 2 | H62: : | P62: 0 | Q62: =IF(WEEKDAY(A62)=1,IF(D62=2,VLOOKUP(R62,Daten!$C$49:$E$102,3)," "),"") ->  | R62: 4
A63: =+A61+1 -> 2021-01-30 | B63: 1 | C63: 1900-01-07 | D63: 1 | E63: 0 | H63: : | P63: 0 | Q63: =IF(WEEKDAY(A63)=1,IF(D63=2,VLOOKUP(R63,Daten!$C$49:$E$102,3)," "),"") ->  | R63: 4
A64: =+A63 -> 2021-01-30 | B64: 1 | C64: 1900-01-07 | D64: 2 | E64: 2 | H64: : | P64: 0 | Q64: =IF(WEEKDAY(A64)=1,IF(D64=2,VLOOKUP(R64,Daten!$C$49:$E$102,3)," "),"") ->  | R64: 4
A65: =+A63+1 -> 2021-01-31 | B65: 1 | C65: 1900-01-01 | D65: 1 | E65: 0 | H65: : | P65: 0 | Q65: =IF(WEEKDAY(A65)=1,IF(D65=2,VLOOKUP(R65,Daten!$C$49:$E$102,3)," "),"") ->  | R65: 4
A66: =+A65 -> 2021-01-31 | B66: 1 | C66: 1900-01-01 | D66: 2 | E66: 1 | H66: : | P66: 0 | Q66: =IF(WEEKDAY(A66)=1,IF(D66=2,VLOOKUP(R66,Daten!$C$49:$E$102,3)," "),"") -> 0 | R66: 4
A67: =+A65+1 -> 2021-02-01 | B67: 2 | C67: 1900-01-02 | D67: 1 | E67: 0 | H67: : | P67: 0 | Q67: =IF(WEEKDAY(A67)=1,IF(D67=2,VLOOKUP(R67,Daten!$C$49:$E$102,3)," "),"") ->  | R67: 5
A68: =+A67 -> 2021-02-01 | B68: 2 | C68: 1900-01-02 | D68: 2 | E68: 2 | H68: : | P68: 0 | Q68: =IF(WEEKDAY(A68)=1,IF(D68=2,VLOOKUP(R68,Daten!$C$49:$E$102,3)," "),"") ->  | R68: 5
A69: =+A67+1 -> 2021-02-02 | B69: 2 | C69: 1900-01-03 | D69: 1 | E69: 0 | H69: : | P69: 0 | Q69: =IF(WEEKDAY(A69)=1,IF(D69=2,VLOOKUP(R69,Daten!$C$49:$E$102,3)," "),"") ->  | R69: 5
A70: =+A69 -> 2021-02-02 | B70: =MONTH(A70) -> 2 | C70: =WEEKDAY(A70) -> 1900-01-03 | D70: 2 | E70: =IF(D70=2,IF(C70=1,1,2),0) -> 2 | H70: : | P70: 0 | Q70: =IF(WEEKDAY(A70)=1,IF(D70=2,VLOOKUP(R70,Daten!$C$49:$E$102,3)," "),"") ->  | R70: 5
A71: =+A69+1 -> 2021-02-03 | B71: 2 | C71: 1900-01-04 | D71: 1 | E71: 0 | H71: : | P71: =IF(D71=2,+F71+F70,0) -> 0 | Q71: =IF(WEEKDAY(A71)=1,IF(D71=2,VLOOKUP(R71,Daten!$C$49:$E$102,3)," "),"") ->  | R71: =IF(WEEKDAY(A71)=2,IF(D71=1,R70+1,R70),R70) -> 5
A72: =+A71 -> 2021-02-03 | B72: 2 | C72: 1900-01-04 | D72: 2 | E72: 2 | H72: : | P72: 0 | Q72: =IF(WEEKDAY(A72)=1,IF(D72=2,VLOOKUP(R72,Daten!$C$49:$E$102,3)," "),"") ->  | R72: 5
A73: =+A71+1 -> 2021-02-04 | B73: 2 | C73: 1900-01-05 | D73: 1 | E73: 0 | H73: : | P73: 0 | Q73: =IF(WEEKDAY(A73)=1,IF(D73=2,VLOOKUP(R73,Daten!$C$49:$E$102,3)," "),"") ->  | R73: 5
A74: =+A73 -> 2021-02-04 | B74: 2 | C74: 1900-01-05 | D74: 2 | E74: 2 | H74: : | P74: 0 | Q74: =IF(WEEKDAY(A74)=1,IF(D74=2,VLOOKUP(R74,Daten!$C$49:$E$102,3)," "),"") ->  | R74: 5
A75: =+A73+1 -> 2021-02-05 | B75: 2 | C75: 1900-01-06 | D75: 1 | E75: 0 | H75: : | P75: 0 | Q75: =IF(WEEKDAY(A75)=1,IF(D75=2,VLOOKUP(R75,Daten!$C$49:$E$102,3)," "),"") ->  | R75: 5
A76: =+A75 -> 2021-02-05 | B76: 2 | C76: 1900-01-06 | D76: 2 | E76: 2 | H76: : | P76: 0 | Q76: =IF(WEEKDAY(A76)=1,IF(D76=2,VLOOKUP(R76,Daten!$C$49:$E$102,3)," "),"") ->  | R76: 5
A77: =+A75+1 -> 2021-02-06 | B77: 2 | C77: 1900-01-07 | D77: 1 | E77: 0 | H77: : | P77: 0 | Q77: =IF(WEEKDAY(A77)=1,IF(D77=2,VLOOKUP(R77,Daten!$C$49:$E$102,3)," "),"") ->  | R77: 5
A78: =+A77 -> 2021-02-06 | B78: 2 | C78: 1900-01-07 | D78: 2 | E78: 2 | H78: : | P78: 0 | Q78: =IF(WEEKDAY(A78)=1,IF(D78=2,VLOOKUP(R78,Daten!$C$49:$E$102,3)," "),"") ->  | R78: 5
A79: =+A77+1 -> 2021-02-07 | B79: 2 | C79: 1900-01-01 | D79: 1 | E79: 0 | H79: : | P79: 0 | Q79: =IF(WEEKDAY(A79)=1,IF(D79=2,VLOOKUP(R79,Daten!$C$49:$E$102,3)," "),"") ->  | R79: 5
A80: =+A79 -> 2021-02-07 | B80: 2 | C80: 1900-01-01 | D80: 2 | E80: 1 | H80: : | P80: 0 | Q80: =IF(WEEKDAY(A80)=1,IF(D80=2,VLOOKUP(R80,Daten!$C$49:$E$102,3)," "),"") -> 0 | R80: 5
A81: =+A79+1 -> 2021-02-08 | B81: 2 | C81: 1900-01-02 | D81: 1 | E81: 0 | H81: : | P81: 0 | Q81: =IF(WEEKDAY(A81)=1,IF(D81=2,VLOOKUP(R81,Daten!$C$49:$E$102,3)," "),"") ->  | R81: 6
A82: =+A81 -> 2021-02-08 | B82: 2 | C82: 1900-01-02 | D82: 2 | E82: 2 | H82: : | P82: 0 | Q82: =IF(WEEKDAY(A82)=1,IF(D82=2,VLOOKUP(R82,Daten!$C$49:$E$102,3)," "),"") ->  | R82: 6
A83: =+A81+1 -> 2021-02-09 | B83: 2 | C83: 1900-01-03 | D83: 1 | E83: 0 | H83: : | P83: 0 | Q83: =IF(WEEKDAY(A83)=1,IF(D83=2,VLOOKUP(R83,Daten!$C$49:$E$102,3)," "),"") ->  | R83: 6
A84: =+A83 -> 2021-02-09 | B84: 2 | C84: 1900-01-03 | D84: 2 | E84: 2 | H84: : | P84: 0 | Q84: =IF(WEEKDAY(A84)=1,IF(D84=2,VLOOKUP(R84,Daten!$C$49:$E$102,3)," "),"") ->  | R84: 6
A85: =+A83+1 -> 2021-02-10 | B85: 2 | C85: 1900-01-04 | D85: 1 | E85: 0 | H85: : | P85: 0 | Q85: =IF(WEEKDAY(A85)=1,IF(D85=2,VLOOKUP(R85,Daten!$C$49:$E$102,3)," "),"") ->  | R85: 6
A86: =+A85 -> 2021-02-10 | B86: 2 | C86: 1900-01-04 | D86: 2 | E86: 2 | H86: : | P86: 0 | Q86: =IF(WEEKDAY(A86)=1,IF(D86=2,VLOOKUP(R86,Daten!$C$49:$E$102,3)," "),"") ->  | R86: 6
A87: =+A85+1 -> 2021-02-11 | B87: 2 | C87: 1900-01-05 | D87: 1 | E87: 0 | H87: : | P87: 0 | Q87: =IF(WEEKDAY(A87)=1,IF(D87=2,VLOOKUP(R87,Daten!$C$49:$E$102,3)," "),"") ->  | R87: 6
A88: =+A87 -> 2021-02-11 | B88: 2 | C88: 1900-01-05 | D88: 2 | E88: 2 | H88: : | P88: 0 | Q88: =IF(WEEKDAY(A88)=1,IF(D88=2,VLOOKUP(R88,Daten!$C$49:$E$102,3)," "),"") ->  | R88: 6
A89: =+A87+1 -> 2021-02-12 | B89: 2 | C89: 1900-01-06 | D89: 1 | E89: 0 | H89: : | P89: 0 | Q89: =IF(WEEKDAY(A89)=1,IF(D89=2,VLOOKUP(R89,Daten!$C$49:$E$102,3)," "),"") ->  | R89: 6
A90: =+A89 -> 2021-02-12 | B90: 2 | C90: 1900-01-06 | D90: 2 | E90: 2 | H90: : | P90: 0 | Q90: =IF(WEEKDAY(A90)=1,IF(D90=2,VLOOKUP(R90,Daten!$C$49:$E$102,3)," "),"") ->  | R90: 6
A91: =+A89+1 -> 2021-02-13 | B91: 2 | C91: 1900-01-07 | D91: 1 | E91: 0 | H91: : | P91: 0 | Q91: =IF(WEEKDAY(A91)=1,IF(D91=2,VLOOKUP(R91,Daten!$C$49:$E$102,3)," "),"") ->  | R91: 6
A92: =+A91 -> 2021-02-13 | B92: 2 | C92: 1900-01-07 | D92: 2 | E92: 2 | H92: : | P92: 0 | Q92: =IF(WEEKDAY(A92)=1,IF(D92=2,VLOOKUP(R92,Daten!$C$49:$E$102,3)," "),"") ->  | R92: 6
A93: =+A91+1 -> 2021-02-14 | B93: 2 | C93: 1900-01-01 | D93: 1 | E93: 0 | H93: : | P93: 0 | Q93: =IF(WEEKDAY(A93)=1,IF(D93=2,VLOOKUP(R93,Daten!$C$49:$E$102,3)," "),"") ->  | R93: 6
A94: =+A93 -> 2021-02-14 | B94: 2 | C94: 1900-01-01 | D94: 2 | E94: 1 | H94: : | P94: 0 | Q94: =IF(WEEKDAY(A94)=1,IF(D94=2,VLOOKUP(R94,Daten!$C$49:$E$102,3)," "),"") -> 0 | R94: 6
A95: =+A93+1 -> 2021-02-15 | B95: 2 | C95: 1900-01-02 | D95: 1 | E95: 0 | H95: : | P95: 0 | Q95: =IF(WEEKDAY(A95)=1,IF(D95=2,VLOOKUP(R95,Daten!$C$49:$E$102,3)," "),"") ->  | R95: 7
A96: =+A95 -> 2021-02-15 | B96: 2 | C96: 1900-01-02 | D96: 2 | E96: 2 | H96: : | P96: 0 | Q96: =IF(WEEKDAY(A96)=1,IF(D96=2,VLOOKUP(R96,Daten!$C$49:$E$102,3)," "),"") ->  | R96: 7
A97: =+A95+1 -> 2021-02-16 | B97: 2 | C97: 1900-01-03 | D97: 1 | E97: 0 | H97: : | P97: 0 | Q97: =IF(WEEKDAY(A97)=1,IF(D97=2,VLOOKUP(R97,Daten!$C$49:$E$102,3)," "),"") ->  | R97: 7
A98: =+A97 -> 2021-02-16 | B98: 2 | C98: 1900-01-03 | D98: 2 | E98: 2 | H98: : | P98: 0 | Q98: =IF(WEEKDAY(A98)=1,IF(D98=2,VLOOKUP(R98,Daten!$C$49:$E$102,3)," "),"") ->  | R98: 7
A99: =+A97+1 -> 2021-02-17 | B99: 2 | C99: 1900-01-04 | D99: 1 | E99: 0 | H99: : | P99: 0 | Q99: =IF(WEEKDAY(A99)=1,IF(D99=2,VLOOKUP(R99,Daten!$C$49:$E$102,3)," "),"") ->  | R99: 7
A100: =+A99 -> 2021-02-17 | B100: 2 | C100: 1900-01-04 | D100: 2 | E100: 2 | H100: : | P100: 0 | Q100: =IF(WEEKDAY(A100)=1,IF(D100=2,VLOOKUP(R100,Daten!$C$49:$E$102,3)," "),"") ->  | R100: 7
A101: =+A99+1 -> 2021-02-18 | B101: 2 | C101: 1900-01-05 | D101: 1 | E101: 0 | H101: : | P101: 0 | Q101: =IF(WEEKDAY(A101)=1,IF(D101=2,VLOOKUP(R101,Daten!$C$49:$E$102,3)," "),"") ->  | R101: 7
A102: =+A101 -> 2021-02-18 | B102: 2 | C102: 1900-01-05 | D102: 2 | E102: 2 | H102: : | P102: 0 | Q102: =IF(WEEKDAY(A102)=1,IF(D102=2,VLOOKUP(R102,Daten!$C$49:$E$102,3)," "),"") ->  | R102: 7
A103: =+A101+1 -> 2021-02-19 | B103: 2 | C103: 1900-01-06 | D103: 1 | E103: 0 | H103: : | P103: 0 | Q103: =IF(WEEKDAY(A103)=1,IF(D103=2,VLOOKUP(R103,Daten!$C$49:$E$102,3)," "),"") ->  | R103: 7
A104: =+A103 -> 2021-02-19 | B104: 2 | C104: 1900-01-06 | D104: 2 | E104: 2 | H104: : | P104: 0 | Q104: =IF(WEEKDAY(A104)=1,IF(D104=2,VLOOKUP(R104,Daten!$C$49:$E$102,3)," "),"") ->  | R104: 7
A105: =+A103+1 -> 2021-02-20 | B105: 2 | C105: 1900-01-07 | D105: 1 | E105: 0 | H105: : | P105: 0 | Q105: =IF(WEEKDAY(A105)=1,IF(D105=2,VLOOKUP(R105,Daten!$C$49:$E$102,3)," "),"") ->  | R105: 7
A106: =+A105 -> 2021-02-20 | B106: 2 | C106: 1900-01-07 | D106: 2 | E106: 2 | H106: : | P106: 0 | Q106: =IF(WEEKDAY(A106)=1,IF(D106=2,VLOOKUP(R106,Daten!$C$49:$E$102,3)," "),"") ->  | R106: 7
A107: =+A105+1 -> 2021-02-21 | B107: 2 | C107: 1900-01-01 | D107: 1 | E107: 0 | H107: : | P107: 0 | Q107: =IF(WEEKDAY(A107)=1,IF(D107=2,VLOOKUP(R107,Daten!$C$49:$E$102,3)," "),"") ->  | R107: 7
A108: =+A107 -> 2021-02-21 | B108: 2 | C108: 1900-01-01 | D108: 2 | E108: 1 | H108: : | P108: 0 | Q108: =IF(WEEKDAY(A108)=1,IF(D108=2,VLOOKUP(R108,Daten!$C$49:$E$102,3)," "),"") -> 0 | R108: 7
A109: =+A107+1 -> 2021-02-22 | B109: 2 | C109: 1900-01-02 | D109: 1 | E109: 0 | H109: : | P109: 0 | Q109: =IF(WEEKDAY(A109)=1,IF(D109=2,VLOOKUP(R109,Daten!$C$49:$E$102,3)," "),"") ->  | R109: 8
A110: =+A109 -> 2021-02-22 | B110: 2 | C110: 1900-01-02 | D110: 2 | E110: 2 | H110: : | P110: 0 | Q110: =IF(WEEKDAY(A110)=1,IF(D110=2,VLOOKUP(R110,Daten!$C$49:$E$102,3)," "),"") ->  | R110: 8
A111: =+A109+1 -> 2021-02-23 | B111: 2 | C111: 1900-01-03 | D111: 1 | E111: 0 | H111: : | P111: 0 | Q111: =IF(WEEKDAY(A111)=1,IF(D111=2,VLOOKUP(R111,Daten!$C$49:$E$102,3)," "),"") ->  | R111: 8
A112: =+A111 -> 2021-02-23 | B112: 2 | C112: 1900-01-03 | D112: 2 | E112: 2 | H112: : | P112: 0 | Q112: =IF(WEEKDAY(A112)=1,IF(D112=2,VLOOKUP(R112,Daten!$C$49:$E$102,3)," "),"") ->  | R112: 8
A113: =+A111+1 -> 2021-02-24 | B113: 2 | C113: 1900-01-04 | D113: 1 | E113: 0 | H113: : | P113: 0 | Q113: =IF(WEEKDAY(A113)=1,IF(D113=2,VLOOKUP(R113,Daten!$C$49:$E$102,3)," "),"") ->  | R113: 8
A114: =+A113 -> 2021-02-24 | B114: 2 | C114: 1900-01-04 | D114: 2 | E114: 2 | H114: : | P114: 0 | Q114: =IF(WEEKDAY(A114)=1,IF(D114=2,VLOOKUP(R114,Daten!$C$49:$E$102,3)," "),"") ->  | R114: 8
A115: =+A113+1 -> 2021-02-25 | B115: 2 | C115: 1900-01-05 | D115: 1 | E115: 0 | H115: : | P115: 0 | Q115: =IF(WEEKDAY(A115)=1,IF(D115=2,VLOOKUP(R115,Daten!$C$49:$E$102,3)," "),"") ->  | R115: 8
A116: =+A115 -> 2021-02-25 | B116: 2 | C116: 1900-01-05 | D116: 2 | E116: 2 | H116: : | P116: 0 | Q116: =IF(WEEKDAY(A116)=1,IF(D116=2,VLOOKUP(R116,Daten!$C$49:$E$102,3)," "),"") ->  | R116: 8
A117: =+A115+1 -> 2021-02-26 | B117: 2 | C117: 1900-01-06 | D117: 1 | E117: 0 | H117: : | P117: 0 | Q117: =IF(WEEKDAY(A117)=1,IF(D117=2,VLOOKUP(R117,Daten!$C$49:$E$102,3)," "),"") ->  | R117: 8
A118: =+A117 -> 2021-02-26 | B118: 2 | C118: 1900-01-06 | D118: 2 | E118: 2 | H118: : | P118: 0 | Q118: =IF(WEEKDAY(A118)=1,IF(D118=2,VLOOKUP(R118,Daten!$C$49:$E$102,3)," "),"") ->  | R118: 8
A119: =+A117+1 -> 2021-02-27 | B119: 2 | C119: 1900-01-07 | D119: 1 | E119: 0 | H119: : | P119: 0 | Q119: =IF(WEEKDAY(A119)=1,IF(D119=2,VLOOKUP(R119,Daten!$C$49:$E$102,3)," "),"") ->  | R119: 8
A120: =+A119 -> 2021-02-27 | B120: 2 | C120: 1900-01-07 | D120: 2 | E120: 2 | H120: : | P120: 0 | Q120: =IF(WEEKDAY(A120)=1,IF(D120=2,VLOOKUP(R120,Daten!$C$49:$E$102,3)," "),"") ->  | R120: 8
A121: =+A119+1 -> 2021-02-28 | B121: 2 | C121: 1900-01-01 | D121: 1 | E121: 0 | H121: : | P121: 0 | Q121: =IF(WEEKDAY(A121)=1,IF(D121=2,VLOOKUP(R121,Daten!$C$49:$E$102,3)," "),"") ->  | R121: 8
A122: =+A121 -> 2021-02-28 | B122: 2 | C122: 1900-01-01 | D122: 2 | E122: 1 | H122: : | P122: 0 | Q122: =IF(WEEKDAY(A122)=1,IF(D122=2,VLOOKUP(R122,Daten!$C$49:$E$102,3)," "),"") -> 0 | R122: 8
A123: =+A121+1 -> 2021-03-01 | B123: 3 | C123: 1900-01-02 | D123: 1 | E123: 0 | H123: : | P123: 0 | Q123: =IF(WEEKDAY(A123)=1,IF(D123=2,VLOOKUP(R123,Daten!$C$49:$E$102,3)," "),"") ->  | R123: 9
A124: =+A123 -> 2021-03-01 | B124: 3 | C124: 1900-01-02 | D124: 2 | E124: 2 | H124: : | P124: 0 | Q124: =IF(WEEKDAY(A124)=1,IF(D124=2,VLOOKUP(R124,Daten!$C$49:$E$102,3)," "),"") ->  | R124: 9
A125: =+A123+1 -> 2021-03-02 | B125: 3 | C125: 1900-01-03 | D125: 1 | E125: 0 | H125: : | P125: 0 | Q125: =IF(WEEKDAY(A125)=1,IF(D125=2,VLOOKUP(R125,Daten!$C$49:$E$102,3)," "),"") ->  | R125: 9
A126: =+A125 -> 2021-03-02 | B126: 3 | C126: 1900-01-03 | D126: 2 | E126: 2 | H126: : | P126: 0 | Q126: =IF(WEEKDAY(A126)=1,IF(D126=2,VLOOKUP(R126,Daten!$C$49:$E$102,3)," "),"") ->  | R126: 9
A127: =+A125+1 -> 2021-03-03 | B127: 3 | C127: 1900-01-04 | D127: 1 | E127: 0 | H127: : | P127: 0 | Q127: =IF(WEEKDAY(A127)=1,IF(D127=2,VLOOKUP(R127,Daten!$C$49:$E$102,3)," "),"") ->  | R127: 9
A128: =+A127 -> 2021-03-03 | B128: 3 | C128: 1900-01-04 | D128: 2 | E128: 2 | H128: : | P128: 0 | Q128: =IF(WEEKDAY(A128)=1,IF(D128=2,VLOOKUP(R128,Daten!$C$49:$E$102,3)," "),"") ->  | R128: 9
A129: =+A127+1 -> 2021-03-04 | B129: 3 | C129: 1900-01-05 | D129: 1 | E129: 0 | H129: : | P129: 0 | Q129: =IF(WEEKDAY(A129)=1,IF(D129=2,VLOOKUP(R129,Daten!$C$49:$E$102,3)," "),"") ->  | R129: 9
A130: =+A129 -> 2021-03-04 | B130: 3 | C130: 1900-01-05 | D130: 2 | E130: 2 | H130: : | P130: 0 | Q130: =IF(WEEKDAY(A130)=1,IF(D130=2,VLOOKUP(R130,Daten!$C$49:$E$102,3)," "),"") ->  | R130: 9
A131: =+A129+1 -> 2021-03-05 | B131: 3 | C131: 1900-01-06 | D131: 1 | E131: 0 | H131: : | P131: 0 | Q131: =IF(WEEKDAY(A131)=1,IF(D131=2,VLOOKUP(R131,Daten!$C$49:$E$102,3)," "),"") ->  | R131: 9
A132: =+A131 -> 2021-03-05 | B132: 3 | C132: 1900-01-06 | D132: 2 | E132: 2 | H132: : | J132: =IF((+G132*60+I132)>0,G132*60+I132,"") ->  | K132: =IF(+F132>0,F132/J132*60," ") ->  | P132: 0 | Q132: =IF(WEEKDAY(A132)=1,IF(D132=2,VLOOKUP(R132,Daten!$C$49:$E$102,3)," "),"") ->  | R132: 9
A133: =+A131+1 -> 2021-03-06 | B133: 3 | C133: 1900-01-07 | D133: 1 | E133: 0 | H133: : | P133: 0 | Q133: =IF(WEEKDAY(A133)=1,IF(D133=2,VLOOKUP(R133,Daten!$C$49:$E$102,3)," "),"") ->  | R133: 9
A134: =+A133 -> 2021-03-06 | B134: =MONTH(A134) -> 3 | C134: =WEEKDAY(A134) -> 1900-01-07 | D134: 2 | E134: =IF(D134=2,IF(C134=1,1,2),0) -> 2 | H134: : | P134: 0 | Q134: =IF(WEEKDAY(A134)=1,IF(D134=2,VLOOKUP(R134,Daten!$C$49:$E$102,3)," "),"") ->  | R134: 9
A135: =+A133+1 -> 2021-03-07 | B135: 3 | C135: 1900-01-01 | D135: 1 | E135: 0 | H135: : | P135: =IF(D135=2,+F135+F134,0) -> 0 | Q135: =IF(WEEKDAY(A135)=1,IF(D135=2,VLOOKUP(R135,Daten!$C$49:$E$102,3)," "),"") ->  | R135: =IF(WEEKDAY(A135)=2,IF(D135=1,R134+1,R134),R134) -> 9
A136: =+A135 -> 2021-03-07 | B136: 3 | C136: 1900-01-01 | D136: 2 | E136: 1 | H136: : | P136: 0 | Q136: =IF(WEEKDAY(A136)=1,IF(D136=2,VLOOKUP(R136,Daten!$C$49:$E$102,3)," "),"") -> 0 | R136: 9
A137: =+A135+1 -> 2021-03-08 | B137: 3 | C137: 1900-01-02 | D137: 1 | E137: 0 | H137: : | P137: 0 | Q137: =IF(WEEKDAY(A137)=1,IF(D137=2,VLOOKUP(R137,Daten!$C$49:$E$102,3)," "),"") ->  | R137: 10
A138: =+A137 -> 2021-03-08 | B138: 3 | C138: 1900-01-02 | D138: 2 | E138: 2 | H138: : | P138: 0 | Q138: =IF(WEEKDAY(A138)=1,IF(D138=2,VLOOKUP(R138,Daten!$C$49:$E$102,3)," "),"") ->  | R138: 10
A139: =+A137+1 -> 2021-03-09 | B139: 3 | C139: 1900-01-03 | D139: 1 | E139: 0 | H139: : | P139: 0 | Q139: =IF(WEEKDAY(A139)=1,IF(D139=2,VLOOKUP(R139,Daten!$C$49:$E$102,3)," "),"") ->  | R139: 10
A140: =+A139 -> 2021-03-09 | B140: 3 | C140: 1900-01-03 | D140: 2 | E140: 2 | H140: : | P140: 0 | Q140: =IF(WEEKDAY(A140)=1,IF(D140=2,VLOOKUP(R140,Daten!$C$49:$E$102,3)," "),"") ->  | R140: 10
A141: =+A139+1 -> 2021-03-10 | B141: 3 | C141: 1900-01-04 | D141: 1 | E141: 0 | H141: : | P141: 0 | Q141: =IF(WEEKDAY(A141)=1,IF(D141=2,VLOOKUP(R141,Daten!$C$49:$E$102,3)," "),"") ->  | R141: 10
A142: =+A141 -> 2021-03-10 | B142: 3 | C142: 1900-01-04 | D142: 2 | E142: 2 | H142: : | P142: 0 | Q142: =IF(WEEKDAY(A142)=1,IF(D142=2,VLOOKUP(R142,Daten!$C$49:$E$102,3)," "),"") ->  | R142: 10
A143: =+A141+1 -> 2021-03-11 | B143: 3 | C143: 1900-01-05 | D143: 1 | E143: 0 | H143: : | P143: 0 | Q143: =IF(WEEKDAY(A143)=1,IF(D143=2,VLOOKUP(R143,Daten!$C$49:$E$102,3)," "),"") ->  | R143: 10
A144: =+A143 -> 2021-03-11 | B144: 3 | C144: 1900-01-05 | D144: 2 | E144: 2 | H144: : | P144: 0 | Q144: =IF(WEEKDAY(A144)=1,IF(D144=2,VLOOKUP(R144,Daten!$C$49:$E$102,3)," "),"") ->  | R144: 10
A145: =+A143+1 -> 2021-03-12 | B145: 3 | C145: 1900-01-06 | D145: 1 | E145: 0 | H145: : | P145: 0 | Q145: =IF(WEEKDAY(A145)=1,IF(D145=2,VLOOKUP(R145,Daten!$C$49:$E$102,3)," "),"") ->  | R145: 10
A146: =+A145 -> 2021-03-12 | B146: 3 | C146: 1900-01-06 | D146: 2 | E146: 2 | H146: : | P146: 0 | Q146: =IF(WEEKDAY(A146)=1,IF(D146=2,VLOOKUP(R146,Daten!$C$49:$E$102,3)," "),"") ->  | R146: 10
A147: =+A145+1 -> 2021-03-13 | B147: 3 | C147: 1900-01-07 | D147: 1 | E147: 0 | H147: : | P147: 0 | Q147: =IF(WEEKDAY(A147)=1,IF(D147=2,VLOOKUP(R147,Daten!$C$49:$E$102,3)," "),"") ->  | R147: 10
A148: =+A147 -> 2021-03-13 | B148: 3 | C148: 1900-01-07 | D148: 2 | E148: 2 | H148: : | P148: 0 | Q148: =IF(WEEKDAY(A148)=1,IF(D148=2,VLOOKUP(R148,Daten!$C$49:$E$102,3)," "),"") ->  | R148: 10
A149: =+A147+1 -> 2021-03-14 | B149: 3 | C149: 1900-01-01 | D149: 1 | E149: 0 | H149: : | P149: 0 | Q149: =IF(WEEKDAY(A149)=1,IF(D149=2,VLOOKUP(R149,Daten!$C$49:$E$102,3)," "),"") ->  | R149: 10
A150: =+A149 -> 2021-03-14 | B150: 3 | C150: 1900-01-01 | D150: 2 | E150: 1 | H150: : | P150: 0 | Q150: =IF(WEEKDAY(A150)=1,IF(D150=2,VLOOKUP(R150,Daten!$C$49:$E$102,3)," "),"") -> 0 | R150: 10
A151: =+A149+1 -> 2021-03-15 | B151: 3 | C151: 1900-01-02 | D151: 1 | E151: 0 | H151: : | P151: 0 | Q151: =IF(WEEKDAY(A151)=1,IF(D151=2,VLOOKUP(R151,Daten!$C$49:$E$102,3)," "),"") ->  | R151: 11
A152: =+A151 -> 2021-03-15 | B152: 3 | C152: 1900-01-02 | D152: 2 | E152: 2 | H152: : | P152: 0 | Q152: =IF(WEEKDAY(A152)=1,IF(D152=2,VLOOKUP(R152,Daten!$C$49:$E$102,3)," "),"") ->  | R152: 11
A153: =+A151+1 -> 2021-03-16 | B153: 3 | C153: 1900-01-03 | D153: 1 | E153: 0 | H153: : | P153: 0 | Q153: =IF(WEEKDAY(A153)=1,IF(D153=2,VLOOKUP(R153,Daten!$C$49:$E$102,3)," "),"") ->  | R153: 11
A154: =+A153 -> 2021-03-16 | B154: 3 | C154: 1900-01-03 | D154: 2 | E154: 2 | H154: : | P154: 0 | Q154: =IF(WEEKDAY(A154)=1,IF(D154=2,VLOOKUP(R154,Daten!$C$49:$E$102,3)," "),"") ->  | R154: 11
A155: =+A153+1 -> 2021-03-17 | B155: 3 | C155: 1900-01-04 | D155: 1 | E155: 0 | H155: : | P155: 0 | Q155: =IF(WEEKDAY(A155)=1,IF(D155=2,VLOOKUP(R155,Daten!$C$49:$E$102,3)," "),"") ->  | R155: 11
A156: =+A155 -> 2021-03-17 | B156: 3 | C156: 1900-01-04 | D156: 2 | E156: 2 | H156: : | P156: 0 | Q156: =IF(WEEKDAY(A156)=1,IF(D156=2,VLOOKUP(R156,Daten!$C$49:$E$102,3)," "),"") ->  | R156: 11
A157: =+A155+1 -> 2021-03-18 | B157: 3 | C157: 1900-01-05 | D157: 1 | E157: 0 | H157: : | P157: 0 | Q157: =IF(WEEKDAY(A157)=1,IF(D157=2,VLOOKUP(R157,Daten!$C$49:$E$102,3)," "),"") ->  | R157: 11
A158: =+A157 -> 2021-03-18 | B158: 3 | C158: 1900-01-05 | D158: 2 | E158: 2 | H158: : | P158: 0 | Q158: =IF(WEEKDAY(A158)=1,IF(D158=2,VLOOKUP(R158,Daten!$C$49:$E$102,3)," "),"") ->  | R158: 11
A159: =+A157+1 -> 2021-03-19 | B159: 3 | C159: 1900-01-06 | D159: 1 | E159: 0 | H159: : | P159: 0 | Q159: =IF(WEEKDAY(A159)=1,IF(D159=2,VLOOKUP(R159,Daten!$C$49:$E$102,3)," "),"") ->  | R159: 11
A160: =+A159 -> 2021-03-19 | B160: 3 | C160: 1900-01-06 | D160: 2 | E160: 2 | H160: : | P160: 0 | Q160: =IF(WEEKDAY(A160)=1,IF(D160=2,VLOOKUP(R160,Daten!$C$49:$E$102,3)," "),"") ->  | R160: 11
A161: =+A159+1 -> 2021-03-20 | B161: 3 | C161: 1900-01-07 | D161: 1 | E161: 0 | H161: : | P161: 0 | Q161: =IF(WEEKDAY(A161)=1,IF(D161=2,VLOOKUP(R161,Daten!$C$49:$E$102,3)," "),"") ->  | R161: 11
A162: =+A161 -> 2021-03-20 | B162: 3 | C162: 1900-01-07 | D162: 2 | E162: 2 | H162: : | P162: 0 | Q162: =IF(WEEKDAY(A162)=1,IF(D162=2,VLOOKUP(R162,Daten!$C$49:$E$102,3)," "),"") ->  | R162: 11
A163: =+A161+1 -> 2021-03-21 | B163: 3 | C163: 1900-01-01 | D163: 1 | E163: 0 | H163: : | P163: 0 | Q163: =IF(WEEKDAY(A163)=1,IF(D163=2,VLOOKUP(R163,Daten!$C$49:$E$102,3)," "),"") ->  | R163: 11
A164: =+A163 -> 2021-03-21 | B164: 3 | C164: 1900-01-01 | D164: 2 | E164: 1 | H164: : | P164: 0 | Q164: =IF(WEEKDAY(A164)=1,IF(D164=2,VLOOKUP(R164,Daten!$C$49:$E$102,3)," "),"") -> 0 | R164: 11
A165: =+A163+1 -> 2021-03-22 | B165: 3 | C165: 1900-01-02 | D165: 1 | E165: 0 | H165: : | P165: 0 | Q165: =IF(WEEKDAY(A165)=1,IF(D165=2,VLOOKUP(R165,Daten!$C$49:$E$102,3)," "),"") ->  | R165: 12
A166: =+A165 -> 2021-03-22 | B166: 3 | C166: 1900-01-02 | D166: 2 | E166: 2 | H166: : | P166: 0 | Q166: =IF(WEEKDAY(A166)=1,IF(D166=2,VLOOKUP(R166,Daten!$C$49:$E$102,3)," "),"") ->  | R166: 12
A167: =+A165+1 -> 2021-03-23 | B167: 3 | C167: 1900-01-03 | D167: 1 | E167: 0 | H167: : | P167: 0 | Q167: =IF(WEEKDAY(A167)=1,IF(D167=2,VLOOKUP(R167,Daten!$C$49:$E$102,3)," "),"") ->  | R167: 12
A168: =+A167 -> 2021-03-23 | B168: 3 | C168: 1900-01-03 | D168: 2 | E168: 2 | H168: : | P168: 0 | Q168: =IF(WEEKDAY(A168)=1,IF(D168=2,VLOOKUP(R168,Daten!$C$49:$E$102,3)," "),"") ->  | R168: 12
A169: =+A167+1 -> 2021-03-24 | B169: 3 | C169: 1900-01-04 | D169: 1 | E169: 0 | H169: : | P169: 0 | Q169: =IF(WEEKDAY(A169)=1,IF(D169=2,VLOOKUP(R169,Daten!$C$49:$E$102,3)," "),"") ->  | R169: 12
A170: =+A169 -> 2021-03-24 | B170: 3 | C170: 1900-01-04 | D170: 2 | E170: 2 | H170: : | P170: 0 | Q170: =IF(WEEKDAY(A170)=1,IF(D170=2,VLOOKUP(R170,Daten!$C$49:$E$102,3)," "),"") ->  | R170: 12
A171: =+A169+1 -> 2021-03-25 | B171: 3 | C171: 1900-01-05 | D171: 1 | E171: 0 | H171: : | P171: 0 | Q171: =IF(WEEKDAY(A171)=1,IF(D171=2,VLOOKUP(R171,Daten!$C$49:$E$102,3)," "),"") ->  | R171: 12
A172: =+A171 -> 2021-03-25 | B172: 3 | C172: 1900-01-05 | D172: 2 | E172: 2 | H172: : | P172: 0 | Q172: =IF(WEEKDAY(A172)=1,IF(D172=2,VLOOKUP(R172,Daten!$C$49:$E$102,3)," "),"") ->  | R172: 12
A173: =+A171+1 -> 2021-03-26 | B173: 3 | C173: 1900-01-06 | D173: 1 | E173: 0 | H173: : | P173: 0 | Q173: =IF(WEEKDAY(A173)=1,IF(D173=2,VLOOKUP(R173,Daten!$C$49:$E$102,3)," "),"") ->  | R173: 12
A174: =+A173 -> 2021-03-26 | B174: 3 | C174: 1900-01-06 | D174: 2 | E174: 2 | H174: : | P174: 0 | Q174: =IF(WEEKDAY(A174)=1,IF(D174=2,VLOOKUP(R174,Daten!$C$49:$E$102,3)," "),"") ->  | R174: 12
A175: =+A173+1 -> 2021-03-27 | B175: 3 | C175: 1900-01-07 | D175: 1 | E175: 0 | H175: : | P175: 0 | Q175: =IF(WEEKDAY(A175)=1,IF(D175=2,VLOOKUP(R175,Daten!$C$49:$E$102,3)," "),"") ->  | R175: 12
A176: =+A175 -> 2021-03-27 | B176: 3 | C176: 1900-01-07 | D176: 2 | E176: 2 | H176: : | P176: 0 | Q176: =IF(WEEKDAY(A176)=1,IF(D176=2,VLOOKUP(R176,Daten!$C$49:$E$102,3)," "),"") ->  | R176: 12
A177: =+A175+1 -> 2021-03-28 | B177: 3 | C177: 1900-01-01 | D177: 1 | E177: 0 | H177: : | P177: 0 | Q177: =IF(WEEKDAY(A177)=1,IF(D177=2,VLOOKUP(R177,Daten!$C$49:$E$102,3)," "),"") ->  | R177: 12
A178: =+A177 -> 2021-03-28 | B178: 3 | C178: 1900-01-01 | D178: 2 | E178: 1 | H178: : | P178: 0 | Q178: =IF(WEEKDAY(A178)=1,IF(D178=2,VLOOKUP(R178,Daten!$C$49:$E$102,3)," "),"") -> 0 | R178: 12
A179: =+A177+1 -> 2021-03-29 | B179: 3 | C179: 1900-01-02 | D179: 1 | E179: 0 | H179: : | P179: 0 | Q179: =IF(WEEKDAY(A179)=1,IF(D179=2,VLOOKUP(R179,Daten!$C$49:$E$102,3)," "),"") ->  | R179: 13
A180: =+A179 -> 2021-03-29 | B180: 3 | C180: 1900-01-02 | D180: 2 | E180: 2 | H180: : | P180: 0 | Q180: =IF(WEEKDAY(A180)=1,IF(D180=2,VLOOKUP(R180,Daten!$C$49:$E$102,3)," "),"") ->  | R180: 13
A181: =+A179+1 -> 2021-03-30 | B181: 3 | C181: 1900-01-03 | D181: 1 | E181: 0 | H181: : | P181: 0 | Q181: =IF(WEEKDAY(A181)=1,IF(D181=2,VLOOKUP(R181,Daten!$C$49:$E$102,3)," "),"") ->  | R181: 13
A182: =+A181 -> 2021-03-30 | B182: 3 | C182: 1900-01-03 | D182: 2 | E182: 2 | H182: : | P182: 0 | Q182: =IF(WEEKDAY(A182)=1,IF(D182=2,VLOOKUP(R182,Daten!$C$49:$E$102,3)," "),"") ->  | R182: 13
A183: =+A181+1 -> 2021-03-31 | B183: 3 | C183: 1900-01-04 | D183: 1 | E183: 0 | H183: : | P183: 0 | Q183: =IF(WEEKDAY(A183)=1,IF(D183=2,VLOOKUP(R183,Daten!$C$49:$E$102,3)," "),"") ->  | R183: 13
A184: =+A183 -> 2021-03-31 | B184: 3 | C184: 1900-01-04 | D184: 2 | E184: 2 | H184: : | P184: 0 | Q184: =IF(WEEKDAY(A184)=1,IF(D184=2,VLOOKUP(R184,Daten!$C$49:$E$102,3)," "),"") ->  | R184: 13
A185: =+A183+1 -> 2021-04-01 | B185: 4 | C185: 1900-01-05 | D185: 1 | E185: 0 | H185: : | P185: 0 | Q185: =IF(WEEKDAY(A185)=1,IF(D185=2,VLOOKUP(R185,Daten!$C$49:$E$102,3)," "),"") ->  | R185: 13
A186: =+A185 -> 2021-04-01 | B186: 4 | C186: 1900-01-05 | D186: 2 | E186: 2 | H186: : | P186: 0 | Q186: =IF(WEEKDAY(A186)=1,IF(D186=2,VLOOKUP(R186,Daten!$C$49:$E$102,3)," "),"") ->  | R186: 13
A187: =+A185+1 -> 2021-04-02 | B187: 4 | C187: 1900-01-06 | D187: 1 | E187: 0 | H187: : | P187: 0 | Q187: =IF(WEEKDAY(A187)=1,IF(D187=2,VLOOKUP(R187,Daten!$C$49:$E$102,3)," "),"") ->  | R187: 13
A188: =+A187 -> 2021-04-02 | B188: 4 | C188: 1900-01-06 | D188: 2 | E188: 2 | H188: : | P188: 0 | Q188: =IF(WEEKDAY(A188)=1,IF(D188=2,VLOOKUP(R188,Daten!$C$49:$E$102,3)," "),"") ->  | R188: 13
A189: =+A187+1 -> 2021-04-03 | B189: 4 | C189: 1900-01-07 | D189: 1 | E189: 0 | H189: : | P189: 0 | Q189: =IF(WEEKDAY(A189)=1,IF(D189=2,VLOOKUP(R189,Daten!$C$49:$E$102,3)," "),"") ->  | R189: 13
A190: =+A189 -> 2021-04-03 | B190: 4 | C190: 1900-01-07 | D190: 2 | E190: 2 | H190: : | P190: 0 | Q190: =IF(WEEKDAY(A190)=1,IF(D190=2,VLOOKUP(R190,Daten!$C$49:$E$102,3)," "),"") ->  | R190: 13
A191: =+A189+1 -> 2021-04-04 | B191: 4 | C191: 1900-01-01 | D191: 1 | E191: 0 | H191: : | P191: 0 | Q191: =IF(WEEKDAY(A191)=1,IF(D191=2,VLOOKUP(R191,Daten!$C$49:$E$102,3)," "),"") ->  | R191: 13
A192: =+A191 -> 2021-04-04 | B192: 4 | C192: 1900-01-01 | D192: 2 | E192: 1 | H192: : | P192: 0 | Q192: =IF(WEEKDAY(A192)=1,IF(D192=2,VLOOKUP(R192,Daten!$C$49:$E$102,3)," "),"") -> 0 | R192: 13
A193: =+A191+1 -> 2021-04-05 | B193: 4 | C193: 1900-01-02 | D193: 1 | E193: 0 | H193: : | P193: 0 | Q193: =IF(WEEKDAY(A193)=1,IF(D193=2,VLOOKUP(R193,Daten!$C$49:$E$102,3)," "),"") ->  | R193: 14
A194: =+A193 -> 2021-04-05 | B194: 4 | C194: 1900-01-02 | D194: 2 | E194: 2 | H194: : | P194: 0 | Q194: =IF(WEEKDAY(A194)=1,IF(D194=2,VLOOKUP(R194,Daten!$C$49:$E$102,3)," "),"") ->  | R194: 14
A195: =+A193+1 -> 2021-04-06 | B195: 4 | C195: 1900-01-03 | D195: 1 | E195: 0 | H195: : | P195: 0 | Q195: =IF(WEEKDAY(A195)=1,IF(D195=2,VLOOKUP(R195,Daten!$C$49:$E$102,3)," "),"") ->  | R195: 14
A196: =+A195 -> 2021-04-06 | B196: 4 | C196: 1900-01-03 | D196: 2 | E196: 2 | H196: : | J196: =IF((+G196*60+I196)>0,G196*60+I196,"") ->  | K196: =IF(+F196>0,F196/J196*60," ") ->  | P196: 0 | Q196: =IF(WEEKDAY(A196)=1,IF(D196=2,VLOOKUP(R196,Daten!$C$49:$E$102,3)," "),"") ->  | R196: 14
A197: =+A195+1 -> 2021-04-07 | B197: 4 | C197: 1900-01-04 | D197: 1 | E197: 0 | H197: : | P197: 0 | Q197: =IF(WEEKDAY(A197)=1,IF(D197=2,VLOOKUP(R197,Daten!$C$49:$E$102,3)," "),"") ->  | R197: 14
A198: =+A197 -> 2021-04-07 | B198: =MONTH(A198) -> 4 | C198: =WEEKDAY(A198) -> 1900-01-04 | D198: 2 | E198: =IF(D198=2,IF(C198=1,1,2),0) -> 2 | H198: : | P198: 0 | Q198: =IF(WEEKDAY(A198)=1,IF(D198=2,VLOOKUP(R198,Daten!$C$49:$E$102,3)," "),"") ->  | R198: 14
A199: =+A197+1 -> 2021-04-08 | B199: 4 | C199: 1900-01-05 | D199: 1 | E199: 0 | H199: : | P199: =IF(D199=2,+F199+F198,0) -> 0 | Q199: =IF(WEEKDAY(A199)=1,IF(D199=2,VLOOKUP(R199,Daten!$C$49:$E$102,3)," "),"") ->  | R199: =IF(WEEKDAY(A199)=2,IF(D199=1,R198+1,R198),R198) -> 14
A200: =+A199 -> 2021-04-08 | B200: 4 | C200: 1900-01-05 | D200: 2 | E200: 2 | H200: : | P200: 0 | Q200: =IF(WEEKDAY(A200)=1,IF(D200=2,VLOOKUP(R200,Daten!$C$49:$E$102,3)," "),"") ->  | R200: 14
... 537 more rows

Sheet Tage

Sheet Wochen

Sheet Monate

Sheet Monate+Bel

Sheet Belastung

Sheet Schuhe

Sheet Kriterien
A1: Erfassung individueller Daten ist nur in | D1: Feldern | E1: notwendig.
A4: Kriterien für | G4: Kriterien für
A5: Gesamtsummen Laufen | G5: Gesamtsummen Radeln
A6: datum | B6: datum | G6: datum | H6: datum
A11: Schuhname | B11: Kürzel | C11: Kaufdatum | D11: km Vorjahre
A12: Schuh 1 | B12: s1
A13: Schuh 2 | B13: s2
A14: Schuh 3 | B14: s3
A15: Schuh 4 | B15: s4
A16: Schuh 5 | B16: s5
A17: Schuh 6 | B17: s6
A18: Schuh 7 | B18: s7
A19: Schuh 8 | B19: s8
A20: Schuh 9 | B20: s9
A21: Schuh 10 | B21: s10
A22: Schuh 11 | B22: s11
A24: für Lauf-Kalender
A25: Belastung | B25: Kürzel | C25: Pulsbereich von / bis
A26: Wettkampf | B26: W
A27: Tempo (>90%) | B27: T >90% | C27: =0.9*maxhf -> 141.3 | D27: =+maxhf -> 157
A28: GA2 (>80%) | B28: G2>80% | C28: =0.8*maxhf -> 125.6 | D28: =0.9*maxhf-1 -> 140.3
A29: GA1 (>70%) | B29: G1>70% | C29: =0.7*maxhf -> 109.9 | D29: =0.8*maxhf-1 -> 124.6
A30: LDL (>65%) | B30: L>65% | C30: =0.65*maxhf -> 102.05 | D30: =0.7*maxhf-1 -> 108.9
A31: Reg (bis 65%) | B31: R<65% | C31: =0.5*maxhf -> 78.5 | D31: =0.65*maxhf-1 -> 101.05
A33: Radname | B33: Kürzel
A34: Rad 1 | B34: r1
A35: Rad 2 | B35: r2
A36: Rad 3 | B36: r3
A37: Rad 4 | B37: r4
A38: Rad 5 | B38: r5
A40: für Radel-Kalender
A41: Belastung | B41: Kürzel
A42: RTF | B42: 1
A43: hohe Belast. | B43: 2
A44: mittl. Belast. | B44: 3
A45: Bummeln | B45: 4
A46: Regeneration | B46: 5
A48: Monate für Laufsummen | D48: Verweistabelle Wochentage
A49: mo | D49: 1 | E49: So
A50: 1 | D50: 2 | E50: Mo
A51: mo | D51: 3 | E51: Di
A52: 2 | D52: 4 | E52: Mi
A53: mo | D53: 5 | E53: Do
A54: 3 | D54: 6 | E54: Fr
A55: mo | D55: 7 | E55: Sa
A56: 4 | G56: Datenbankkriterien Belastung
A57: mo | G57: bel | H57: bel
A58: 5 | D58: Jan | G58: =+B26 -> W | H58: =+B42 -> 1
A59: mo | D59: Feb | G59: bel | H59: bel
A60: 6 | D60: März | G60: =+B27 -> T >90% | H60: =+B43 -> 2
A61: mo | D61: April | G61: bel | H61: bel
A62: 7 | D62: Mai | G62: =+B28 -> G2>80% | H62: =+B44 -> 3
A63: mo | D63: Juni | G63: bel | H63: bel
A64: 8 | D64: Juli | G64: =+B29 -> G1>70% | H64: =+B45 -> 4
A65: mo | D65: Aug | G65: bel | H65: bel
A66: 9 | D66: Sept | G66: =+B30 -> L>65% | H66: =+B46 -> 5
A67: mo | D67: Okt | G67: bel
A68: 10 | D68: Nov | G68: =+B31 -> R<65%
A69: mo | D69: Dez
A70: 11 | G70: Datenbankkriterien Rad
A71: mo | G71: rad
A72: 12 | G72: =+B34 -> r1
G73: rad
A74: Datenbankkriterien Schuhe | D74: Gültigkeitstabelle Zsfsg. | G74: =+B36 -> r3
A75: Schuh | D75: 1 | G75: rad
A76: =+B12 -> s1 | G76: =+B37 -> r4
A77: Schuh | G77: rad
A78: =+B13 -> s2 | G78: =+B38 -> r5
A79: Schuh | G79: rad
A80: =+B14 -> s3 | G80: =+B35 -> r2
A81: Schuh
A82: =+B15 -> s4
A83: Schuh
A84: =+B16 -> s5
A85: Schuh
A86: =+B17 -> s6
A87: Schuh
A88: =+B18 -> s7
A89: Schuh
A90: =+B19 -> s8
A91: Schuh
A92: =+B20 -> s9
A93: Schuh
A94: =+B21 -> s10
A95: Schuh
A96: =+B22 -> s11
A102: Wochen für Laufsummen
A103: wonr
A104: 0
A105: wonr
A106: 1
A107: wonr
A108: 2
A109: wonr
A110: 3
A111: wonr
A112: 4
A113: wonr
A114: 5
A115: wonr
A116: 6
A117: wonr
A118: 7
A119: wonr
A120: 8
A121: wonr
A122: 9
A123: wonr
A124: 10
A125: wonr
A126: 11
A127: wonr
A128: 12
A129: wonr
A130: 13
A131: wonr
A132: 14
A133: wonr
A134: 15
A135: wonr
A136: 16
A137: wonr
A138: 17
A139: wonr
A140: 18
A141: wonr
A142: 19
A143: wonr
A144: 20
A145: wonr
A146: 21
A147: wonr
A148: 22
A149: wonr
A150: 23
A151: wonr
A152: 24
A153: wonr
A154: 25
A155: wonr
A156: 26
A157: wonr
A158: 27
A159: wonr
A160: 28
A161: wonr
A162: 29
A163: wonr
A164: 30
A165: wonr
A166: 31
A167: wonr
A168: 32
A169: wonr
A170: 33
A171: wonr
A172: 34
A173: wonr
A174: 35
A175: wonr
A176: 36
A177: wonr
A178: 37
A179: wonr
A180: 38
A181: wonr
A182: 39
A183: wonr
A184: 40
A185: wonr
A186: 41
A187: wonr
A188: 42
A189: wonr
A190: 43
A191: wonr
A192: 44
A193: wonr
A194: 45
A195: wonr
A196: 46
A197: wonr
A198: 47
A199: wonr
A200: 48
A201: wonr
A202: 49
A203: wonr
A204: 50
A205: wonr
A206: 51
A207: wonr
A208: 52
A209: wonr
A210: 53

Sheet Daten
A1: Erfassung individueller Daten ist nur in den | E1: Feldern | F1: notwendig.
C3: Jahr eingeben: | D3: 2021 | E3: =IF(D8<D6,"Jahr hat noch nicht begonnen!","") -> Jahr hat noch nicht begonnen!
C4: Anfangstag: | D4: 1
C5: Anfangsmonat: | D5: 1 | G5: Wochen-Nummer des 01.01. | I5: =IF(I7>3,0,1) -> 0 | J5: (Woche Nr. 1 muss 4 Wochentage haben)
C6: Jahresbeginn | D6: =DATE(D3,1,1) -> 2021-01-01 | G6: Wochentag Jahresbeginn | I6: =WEEKDAY(D6) -> 1900-01-06
C7: Anfang/Ende | D7: =DATE(D3,D5,D4) -> 2021-01-01 | E7: =DATE(D3,12,31) -> 2021-12-31 | G7: Wochentage vor Jahresbeginn | I7: =IF(WEEKDAY(D6)=1,6,WEEKDAY(D6)-2) -> 4
C8: heute | D8: =TODAY() -> 2020-12-25 | E8: =IF(D8>E7,E7-D7+1,D8-D7+1) -> -6 | F8: =MONTH(D8)-D5 -> 11 | G8: darin gelaufene km Vorjahr
C9: Anzahl Tage | D9: =IF(D8<D6,0,IF(E8>E7,E8-D8+1,E8)) -> 0 | G9: Anzahl Läufe Vorjahr
C10: Anzahl Wochen | D10: =IF(D8<D6,0,IF(D8<E7,(D9+I7)/7,(+D9+I7+I11)/7)) -> 0 | G10: Wochentag Jahresende | I10: =WEEKDAY(E7) -> 1900-01-06
C11: Anzahl Monate | D11: =IF(D8<D6,0,IF(D8>E7,12,(D8-D7+1)/30)) -> 0 | G11: Wochentage nach Jahresende | I11: =IF(WEEKDAY(DATE(D3,12,31))=1,0,8-WEEKDAY(DATE(D3,12,31))) -> 2
C12: Anzahljahrestage | D12: =IF(D8<D6,0,IF(D8>E7,E7-D6+1,D8-D6+1)) -> 0 | G12: darin gelaufene km Folgejahr
C13: Faktor Laufen zu Radeln | E13: 3.5 | G13: Anzahl Läufe Folgejahr
C14: aktueller Monat | D14: =IF(D3=YEAR(tagesdatum),MONTH(tagesdatum),#N/A) -> 
G15: Infos zum Body Mass Index zum Beispiel bei: | J15: Uni Hohenheim
G16: Infos zu Greif-Punkten bei: | J16: Peter Greif (kommerzielle Seite)
B17: Erstanwender: Vorjahresdaten hier von Hand eingeben | G17: Persönl. max. Herzfrequenz | I17: 157 | J17: für Berechnung Puls-Anteil und Greif-Punkte
B18: Vorjahre | C18: Lauf-km | D18: Radel-km | E18: Mubu-Anz. | G18: Körpergrösse in m | I18: 1.76 | J18: für Berechnung des Body Mass Index
B20: 2015
B21: =+B20+1 -> 2016
B22: =+B21+1 -> 2017
B23: =+B22+1 -> 2018
B24: =+B23+1 -> 2019
B25: =+B24+1 -> 2020
B27: Summe | C27: =SUM(C19:C26) -> 0 | D27: =SUM(D19:D26) -> 0 | E27: =SUM(E19:E26) -> 0
C30: Monatssummen Datenbank
C31: Monat | D31: Laufen | E31: Radeln | F31: Gesamt | G31: Muckibude
B32: Jan | C32: 1 | D32: =DSUM(laufkalender,Laufkal!F5,Kriterien!$A$49:$A$50) -> 28.5 | E32: =DSUM(radelkalender,Radelkal!F4,Kriterien!$A$49:$A$50) -> 20 | F32: =+D32+E32/$E$13 -> 34.21428571 | G32: =DSUM(laufkalender,Laufkal!AI5,Kriterien!$A$49:$A$50) -> 0
B33: Feb | C33: 2 | D33: =DSUM(laufkalender,Laufkal!F5,Kriterien!$A$51:$A$52) -> 0 | E33: =DSUM(radelkalender,Radelkal!F4,Kriterien!$A$51:$A$52) -> 0 | F33: =+D33+E33/$E$13 -> 0 | G33: =DSUM(laufkalender,Laufkal!AI5,Kriterien!$A$51:$A$52) -> 0
B34: März | C34: 3 | D34: =DSUM(laufkalender,Laufkal!F5,Kriterien!$A$53:$A$54) -> 0 | E34: =DSUM(radelkalender,Radelkal!F4,Kriterien!$A$53:$A$54) -> 0 | F34: 0 | G34: =DSUM(laufkalender,Laufkal!AI5,Kriterien!$A$53:$A$54) -> 0
B35: April | C35: 4 | D35: =DSUM(laufkalender,Laufkal!F5,Kriterien!$A$55:$A$56) -> 0 | E35: =DSUM(radelkalender,Radelkal!F4,Kriterien!$A$55:$A$56) -> 0 | F35: 0 | G35: =DSUM(laufkalender,Laufkal!AI5,Kriterien!$A$55:$A$56) -> 0
B36: Mai | C36: 5 | D36: =DSUM(laufkalender,Laufkal!F5,Kriterien!$A$57:$A$58) -> 0 | E36: =DSUM(radelkalender,Radelkal!F4,Kriterien!$A$57:$A$58) -> 0 | F36: 0 | G36: =DSUM(laufkalender,Laufkal!AI5,Kriterien!$A$57:$A$58) -> 0
B37: Juni | C37: 6 | D37: =DSUM(laufkalender,Laufkal!F5,Kriterien!$A$59:$A$60) -> 0 | E37: =DSUM(radelkalender,Radelkal!F4,Kriterien!$A$59:$A$60) -> 0 | F37: 0 | G37: =DSUM(laufkalender,Laufkal!AI5,Kriterien!$A$59:$A$60) -> 0
B38: Juli | C38: 7 | D38: =DSUM(laufkalender,Laufkal!F5,Kriterien!$A$61:$A$62) -> 0 | E38: =DSUM(radelkalender,Radelkal!F4,Kriterien!$A$61:$A$62) -> 0 | F38: 0 | G38: =DSUM(laufkalender,Laufkal!AI5,Kriterien!$A$61:$A$62) -> 0
B39: Aug | C39: 8 | D39: =DSUM(laufkalender,Laufkal!F5,Kriterien!$A$63:$A$64) -> 0 | E39: =DSUM(radelkalender,Radelkal!F4,Kriterien!$A$63:$A$64) -> 0 | F39: 0 | G39: =DSUM(laufkalender,Laufkal!AI5,Kriterien!$A$63:$A$64) -> 0
B40: Sept | C40: 9 | D40: =DSUM(laufkalender,Laufkal!F5,Kriterien!$A$65:$A$66) -> 0 | E40: =DSUM(radelkalender,Radelkal!F4,Kriterien!$A$65:$A$66) -> 0 | F40: 0 | G40: =DSUM(laufkalender,Laufkal!AI5,Kriterien!$A$65:$A$66) -> 0
B41: Okt | C41: 10 | D41: =DSUM(laufkalender,Laufkal!F5,Kriterien!$A$67:$A$68) -> 0 | E41: =DSUM(radelkalender,Radelkal!F4,Kriterien!$A$67:$A$68) -> 0 | F41: 0 | G41: =DSUM(laufkalender,Laufkal!AI5,Kriterien!$A$67:$A$68) -> 0
B42: Nov | C42: 11 | D42: =DSUM(laufkalender,Laufkal!F5,Kriterien!$A$69:$A$70) -> 0 | E42: =DSUM(radelkalender,Radelkal!F4,Kriterien!$A$69:$A$70) -> 0 | F42: 0 | G42: =DSUM(laufkalender,Laufkal!AI5,Kriterien!$A$69:$A$70) -> 0
B43: Dez | C43: 12 | D43: =DSUM(laufkalender,Laufkal!F5,Kriterien!$A$71:$A$72) -> 0 | E43: =DSUM(radelkalender,Radelkal!F4,Kriterien!$A$71:$A$72) -> 0 | F43: 0 | G43: =DSUM(laufkalender,Laufkal!AI5,Kriterien!$A$71:$A$72) -> 0
D44: =SUM(D32:D43) -> 28.5 | E44: =SUM(E32:E43) -> 20 | F44: =SUM(F32:F43) -> 34.21428571 | G44: =SUM(G32:G43) -> 0
C46: Wochensummen Datenbank
C47: Woche | D47: Laufen | E47: Radeln | F47: Gesamt | G47: Mubu
C49: 0 | D49: =IF(erstewochennr=0,DSUM(laufkalender,Laufkal!$F$5,Kriterien!A103:A104)+laufkmvorjahr,DSUM(laufkalender,Laufkal!$F$5,Kriterien!A103:A104)) -> 16.5 | E49: =DSUM(radelkalender,Radelkal!$F$4,Kriterien!A103:A104) -> 20 | F49: =+D49+E49/$E$13 -> 22.21428571 | G49: =DSUM(laufkalender,Laufkal!$AI$5,Kriterien!A105:A106) -> 0
C50: 1 | D50: =IF(erstewochennr=1,DSUM(laufkalender,Laufkal!$F$5,Kriterien!A105:A106)+laufkmvorjahr,DSUM(laufkalender,Laufkal!$F$5,Kriterien!A105:A106)) -> 12 | E50: =DSUM(radelkalender,Radelkal!$F$4,Kriterien!A105:A106) -> 0 | F50: =+D50+E50/$E$13 -> 12 | G50: =DSUM(laufkalender,Laufkal!$AI$5,Kriterien!A106:A107) -> 0
C51: 2 | D51: =DSUM(laufkalender,Laufkal!$F$5,Kriterien!A107:A108) -> 0 | E51: =DSUM(radelkalender,Radelkal!$F$4,Kriterien!A107:A108) -> 0 | F51: =+D51+E51/$E$13 -> 0 | G51: =DSUM(laufkalender,Laufkal!$AI$5,Kriterien!A107:A108) -> 0
C52: 3 | D52: =DSUM(laufkalender,Laufkal!$F$5,Kriterien!A109:A110) -> 0 | E52: =DSUM(radelkalender,Radelkal!$F$4,Kriterien!A109:A110) -> 0 | F52: 0 | G52: =DSUM(laufkalender,Laufkal!$AI$5,Kriterien!A109:A110) -> 0
C53: 4 | D53: =DSUM(laufkalender,Laufkal!$F$5,Kriterien!A111:A112) -> 0 | E53: =DSUM(radelkalender,Radelkal!$F$4,Kriterien!A111:A112) -> 0 | F53: 0 | G53: =DSUM(laufkalender,Laufkal!$AI$5,Kriterien!A111:A112) -> 0
C54: 5 | D54: =DSUM(laufkalender,Laufkal!$F$5,Kriterien!A113:A114) -> 0 | E54: =DSUM(radelkalender,Radelkal!$F$4,Kriterien!A113:A114) -> 0 | F54: 0 | G54: =DSUM(laufkalender,Laufkal!$AI$5,Kriterien!A113:A114) -> 0
C55: 6 | D55: =DSUM(laufkalender,Laufkal!$F$5,Kriterien!A115:A116) -> 0 | E55: =DSUM(radelkalender,Radelkal!$F$4,Kriterien!A115:A116) -> 0 | F55: 0 | G55: =DSUM(laufkalender,Laufkal!$AI$5,Kriterien!A115:A116) -> 0
C56: 7 | D56: =DSUM(laufkalender,Laufkal!$F$5,Kriterien!A117:A118) -> 0 | E56: =DSUM(radelkalender,Radelkal!$F$4,Kriterien!A117:A118) -> 0 | F56: 0 | G56: =DSUM(laufkalender,Laufkal!$AI$5,Kriterien!A117:A118) -> 0
C57: 8 | D57: =DSUM(laufkalender,Laufkal!$F$5,Kriterien!A119:A120) -> 0 | E57: =DSUM(radelkalender,Radelkal!$F$4,Kriterien!A119:A120) -> 0 | F57: 0 | G57: =DSUM(laufkalender,Laufkal!$AI$5,Kriterien!A119:A120) -> 0
C58: 9 | D58: =DSUM(laufkalender,Laufkal!$F$5,Kriterien!A121:A122) -> 0 | E58: =DSUM(radelkalender,Radelkal!$F$4,Kriterien!A121:A122) -> 0 | F58: 0 | G58: =DSUM(laufkalender,Laufkal!$AI$5,Kriterien!A121:A122) -> 0
C59: 10 | D59: =DSUM(laufkalender,Laufkal!$F$5,Kriterien!A123:A124) -> 0 | E59: =DSUM(radelkalender,Radelkal!$F$4,Kriterien!A123:A124) -> 0 | F59: 0 | G59: =DSUM(laufkalender,Laufkal!$AI$5,Kriterien!A123:A124) -> 0
C60: 11 | D60: =DSUM(laufkalender,Laufkal!$F$5,Kriterien!A125:A126) -> 0 | E60: =DSUM(radelkalender,Radelkal!$F$4,Kriterien!A125:A126) -> 0 | F60: 0 | G60: =DSUM(laufkalender,Laufkal!$AI$5,Kriterien!A125:A126) -> 0
C61: 12 | D61: =DSUM(laufkalender,Laufkal!$F$5,Kriterien!A127:A128) -> 0 | E61: =DSUM(radelkalender,Radelkal!$F$4,Kriterien!A127:A128) -> 0 | F61: 0 | G61: =DSUM(laufkalender,Laufkal!$AI$5,Kriterien!A127:A128) -> 0
C62: 13 | D62: =DSUM(laufkalender,Laufkal!$F$5,Kriterien!A129:A130) -> 0 | E62: =DSUM(radelkalender,Radelkal!$F$4,Kriterien!A129:A130) -> 0 | F62: 0 | G62: =DSUM(laufkalender,Laufkal!$AI$5,Kriterien!A129:A130) -> 0
C63: 14 | D63: =DSUM(laufkalender,Laufkal!$F$5,Kriterien!A131:A132) -> 0 | E63: =DSUM(radelkalender,Radelkal!$F$4,Kriterien!A131:A132) -> 0 | F63: 0 | G63: =DSUM(laufkalender,Laufkal!$AI$5,Kriterien!A131:A132) -> 0
C64: 15 | D64: =DSUM(laufkalender,Laufkal!$F$5,Kriterien!A133:A134) -> 0 | E64: =DSUM(radelkalender,Radelkal!$F$4,Kriterien!A133:A134) -> 0 | F64: 0 | G64: =DSUM(laufkalender,Laufkal!$AI$5,Kriterien!A133:A134) -> 0
C65: 16 | D65: =DSUM(laufkalender,Laufkal!$F$5,Kriterien!A135:A136) -> 0 | E65: =DSUM(radelkalender,Radelkal!$F$4,Kriterien!A135:A136) -> 0 | F65: 0 | G65: =DSUM(laufkalender,Laufkal!$AI$5,Kriterien!A135:A136) -> 0
C66: 17 | D66: =DSUM(laufkalender,Laufkal!$F$5,Kriterien!A137:A138) -> 0 | E66: =DSUM(radelkalender,Radelkal!$F$4,Kriterien!A137:A138) -> 0 | F66: 0 | G66: =DSUM(laufkalender,Laufkal!$AI$5,Kriterien!A137:A138) -> 0
C67: 18 | D67: =DSUM(laufkalender,Laufkal!$F$5,Kriterien!A139:A140) -> 0 | E67: =DSUM(radelkalender,Radelkal!$F$4,Kriterien!A139:A140) -> 0 | F67: 0 | G67: =DSUM(laufkalender,Laufkal!$AI$5,Kriterien!A139:A140) -> 0
C68: 19 | D68: =DSUM(laufkalender,Laufkal!$F$5,Kriterien!A141:A142) -> 0 | E68: =DSUM(radelkalender,Radelkal!$F$4,Kriterien!A141:A142) -> 0 | F68: 0 | G68: =DSUM(laufkalender,Laufkal!$AI$5,Kriterien!A141:A142) -> 0
C69: 20 | D69: =DSUM(laufkalender,Laufkal!$F$5,Kriterien!A143:A144) -> 0 | E69: =DSUM(radelkalender,Radelkal!$F$4,Kriterien!A143:A144) -> 0 | F69: 0 | G69: =DSUM(laufkalender,Laufkal!$AI$5,Kriterien!A143:A144) -> 0
C70: 21 | D70: =DSUM(laufkalender,Laufkal!$F$5,Kriterien!A145:A146) -> 0 | E70: =DSUM(radelkalender,Radelkal!$F$4,Kriterien!A145:A146) -> 0 | F70: 0 | G70: =DSUM(laufkalender,Laufkal!$AI$5,Kriterien!A145:A146) -> 0
C71: 22 | D71: =DSUM(laufkalender,Laufkal!$F$5,Kriterien!A147:A148) -> 0 | E71: =DSUM(radelkalender,Radelkal!$F$4,Kriterien!A147:A148) -> 0 | F71: 0 | G71: =DSUM(laufkalender,Laufkal!$AI$5,Kriterien!A147:A148) -> 0
C72: 23 | D72: =DSUM(laufkalender,Laufkal!$F$5,Kriterien!A149:A150) -> 0 | E72: =DSUM(radelkalender,Radelkal!$F$4,Kriterien!A149:A150) -> 0 | F72: 0 | G72: =DSUM(laufkalender,Laufkal!$AI$5,Kriterien!A149:A150) -> 0
C73: 24 | D73: =DSUM(laufkalender,Laufkal!$F$5,Kriterien!A151:A152) -> 0 | E73: =DSUM(radelkalender,Radelkal!$F$4,Kriterien!A151:A152) -> 0 | F73: 0 | G73: =DSUM(laufkalender,Laufkal!$AI$5,Kriterien!A151:A152) -> 0
C74: 25 | D74: =DSUM(laufkalender,Laufkal!$F$5,Kriterien!A153:A154) -> 0 | E74: =DSUM(radelkalender,Radelkal!$F$4,Kriterien!A153:A154) -> 0 | F74: 0 | G74: =DSUM(laufkalender,Laufkal!$AI$5,Kriterien!A153:A154) -> 0
C75: 26 | D75: =DSUM(laufkalender,Laufkal!$F$5,Kriterien!A155:A156) -> 0 | E75: =DSUM(radelkalender,Radelkal!$F$4,Kriterien!A155:A156) -> 0 | F75: 0 | G75: =DSUM(laufkalender,Laufkal!$AI$5,Kriterien!A155:A156) -> 0
C76: 27 | D76: =DSUM(laufkalender,Laufkal!$F$5,Kriterien!A157:A158) -> 0 | E76: =DSUM(radelkalender,Radelkal!$F$4,Kriterien!A157:A158) -> 0 | F76: 0 | G76: =DSUM(laufkalender,Laufkal!$AI$5,Kriterien!A157:A158) -> 0
C77: 28 | D77: =DSUM(laufkalender,Laufkal!$F$5,Kriterien!A159:A160) -> 0 | E77: =DSUM(radelkalender,Radelkal!$F$4,Kriterien!A159:A160) -> 0 | F77: 0 | G77: =DSUM(laufkalender,Laufkal!$AI$5,Kriterien!A159:A160) -> 0
C78: 29 | D78: =DSUM(laufkalender,Laufkal!$F$5,Kriterien!A161:A162) -> 0 | E78: =DSUM(radelkalender,Radelkal!$F$4,Kriterien!A161:A162) -> 0 | F78: 0 | G78: =DSUM(laufkalender,Laufkal!$AI$5,Kriterien!A161:A162) -> 0
C79: 30 | D79: =DSUM(laufkalender,Laufkal!$F$5,Kriterien!A163:A164) -> 0 | E79: =DSUM(radelkalender,Radelkal!$F$4,Kriterien!A163:A164) -> 0 | F79: 0 | G79: =DSUM(laufkalender,Laufkal!$AI$5,Kriterien!A163:A164) -> 0
C80: 31 | D80: =DSUM(laufkalender,Laufkal!$F$5,Kriterien!A165:A166) -> 0 | E80: =DSUM(radelkalender,Radelkal!$F$4,Kriterien!A165:A166) -> 0 | F80: 0 | G80: =DSUM(laufkalender,Laufkal!$AI$5,Kriterien!A165:A166) -> 0
C81: 32 | D81: =DSUM(laufkalender,Laufkal!$F$5,Kriterien!A167:A168) -> 0 | E81: =DSUM(radelkalender,Radelkal!$F$4,Kriterien!A167:A168) -> 0 | F81: 0 | G81: =DSUM(laufkalender,Laufkal!$AI$5,Kriterien!A167:A168) -> 0
C82: 33 | D82: =DSUM(laufkalender,Laufkal!$F$5,Kriterien!A169:A170) -> 0 | E82: =DSUM(radelkalender,Radelkal!$F$4,Kriterien!A169:A170) -> 0 | F82: 0 | G82: =DSUM(laufkalender,Laufkal!$AI$5,Kriterien!A169:A170) -> 0
C83: 34 | D83: =DSUM(laufkalender,Laufkal!$F$5,Kriterien!A171:A172) -> 0 | E83: =DSUM(radelkalender,Radelkal!$F$4,Kriterien!A171:A172) -> 0 | F83: 0 | G83: =DSUM(laufkalender,Laufkal!$AI$5,Kriterien!A171:A172) -> 0
C84: 35 | D84: =DSUM(laufkalender,Laufkal!$F$5,Kriterien!A173:A174) -> 0 | E84: =DSUM(radelkalender,Radelkal!$F$4,Kriterien!A173:A174) -> 0 | F84: 0 | G84: =DSUM(laufkalender,Laufkal!$AI$5,Kriterien!A173:A174) -> 0
C85: 36 | D85: =DSUM(laufkalender,Laufkal!$F$5,Kriterien!A175:A176) -> 0 | E85: =DSUM(radelkalender,Radelkal!$F$4,Kriterien!A175:A176) -> 0 | F85: 0 | G85: =DSUM(laufkalender,Laufkal!$AI$5,Kriterien!A175:A176) -> 0
C86: 37 | D86: =DSUM(laufkalender,Laufkal!$F$5,Kriterien!A177:A178) -> 0 | E86: =DSUM(radelkalender,Radelkal!$F$4,Kriterien!A177:A178) -> 0 | F86: 0 | G86: =DSUM(laufkalender,Laufkal!$AI$5,Kriterien!A177:A178) -> 0
C87: 38 | D87: =DSUM(laufkalender,Laufkal!$F$5,Kriterien!A179:A180) -> 0 | E87: =DSUM(radelkalender,Radelkal!$F$4,Kriterien!A179:A180) -> 0 | F87: 0 | G87: =DSUM(laufkalender,Laufkal!$AI$5,Kriterien!A179:A180) -> 0
C88: 39 | D88: =DSUM(laufkalender,Laufkal!$F$5,Kriterien!A181:A182) -> 0 | E88: =DSUM(radelkalender,Radelkal!$F$4,Kriterien!A181:A182) -> 0 | F88: 0 | G88: =DSUM(laufkalender,Laufkal!$AI$5,Kriterien!A181:A182) -> 0
C89: 40 | D89: =DSUM(laufkalender,Laufkal!$F$5,Kriterien!A183:A184) -> 0 | E89: =DSUM(radelkalender,Radelkal!$F$4,Kriterien!A183:A184) -> 0 | F89: 0 | G89: =DSUM(laufkalender,Laufkal!$AI$5,Kriterien!A183:A184) -> 0
C90: 41 | D90: =DSUM(laufkalender,Laufkal!$F$5,Kriterien!A185:A186) -> 0 | E90: =DSUM(radelkalender,Radelkal!$F$4,Kriterien!A185:A186) -> 0 | F90: 0 | G90: =DSUM(laufkalender,Laufkal!$AI$5,Kriterien!A185:A186) -> 0
C91: 42 | D91: =DSUM(laufkalender,Laufkal!$F$5,Kriterien!A187:A188) -> 0 | E91: =DSUM(radelkalender,Radelkal!$F$4,Kriterien!A187:A188) -> 0 | F91: 0 | G91: =DSUM(laufkalender,Laufkal!$AI$5,Kriterien!A187:A188) -> 0
C92: 43 | D92: =DSUM(laufkalender,Laufkal!$F$5,Kriterien!A189:A190) -> 0 | E92: =DSUM(radelkalender,Radelkal!$F$4,Kriterien!A189:A190) -> 0 | F92: 0 | G92: =DSUM(laufkalender,Laufkal!$AI$5,Kriterien!A189:A190) -> 0
C93: 44 | D93: =DSUM(laufkalender,Laufkal!$F$5,Kriterien!A191:A192) -> 0 | E93: =DSUM(radelkalender,Radelkal!$F$4,Kriterien!A191:A192) -> 0 | F93: 0 | G93: =DSUM(laufkalender,Laufkal!$AI$5,Kriterien!A191:A192) -> 0
C94: 45 | D94: =DSUM(laufkalender,Laufkal!$F$5,Kriterien!A193:A194) -> 0 | E94: =DSUM(radelkalender,Radelkal!$F$4,Kriterien!A193:A194) -> 0 | F94: 0 | G94: =DSUM(laufkalender,Laufkal!$AI$5,Kriterien!A193:A194) -> 0
C95: 46 | D95: =DSUM(laufkalender,Laufkal!$F$5,Kriterien!A195:A196) -> 0 | E95: =DSUM(radelkalender,Radelkal!$F$4,Kriterien!A195:A196) -> 0 | F95: 0 | G95: =DSUM(laufkalender,Laufkal!$AI$5,Kriterien!A195:A196) -> 0
C96: 47 | D96: =DSUM(laufkalender,Laufkal!$F$5,Kriterien!A197:A198) -> 0 | E96: =DSUM(radelkalender,Radelkal!$F$4,Kriterien!A197:A198) -> 0 | F96: 0 | G96: =DSUM(laufkalender,Laufkal!$AI$5,Kriterien!A197:A198) -> 0
C97: 48 | D97: =DSUM(laufkalender,Laufkal!$F$5,Kriterien!A199:A200) -> 0 | E97: =DSUM(radelkalender,Radelkal!$F$4,Kriterien!A199:A200) -> 0 | F97: 0 | G97: =DSUM(laufkalender,Laufkal!$AI$5,Kriterien!A199:A200) -> 0
C98: 49 | D98: =DSUM(laufkalender,Laufkal!$F$5,Kriterien!A201:A202) -> 0 | E98: =DSUM(radelkalender,Radelkal!$F$4,Kriterien!A201:A202) -> 0 | F98: 0 | G98: =DSUM(laufkalender,Laufkal!$AI$5,Kriterien!A201:A202) -> 0
C99: 50 | D99: =DSUM(laufkalender,Laufkal!$F$5,Kriterien!A203:A204) -> 0 | E99: =DSUM(radelkalender,Radelkal!$F$4,Kriterien!A203:A204) -> 0 | F99: 0 | G99: =DSUM(laufkalender,Laufkal!$AI$5,Kriterien!A203:A204) -> 0
C100: 51 | D100: =DSUM(laufkalender,Laufkal!$F$5,Kriterien!A205:A206) -> 0 | E100: =DSUM(radelkalender,Radelkal!$F$4,Kriterien!A205:A206) -> 0 | F100: 0 | G100: =DSUM(laufkalender,Laufkal!$AI$5,Kriterien!A205:A206) -> 0
C101: 52 | D101: =DSUM(laufkalender,Laufkal!$F$5,Kriterien!A207:A208) -> 0 | E101: =DSUM(radelkalender,Radelkal!$F$4,Kriterien!A207:A208) -> 0 | F101: 0 | G101: =DSUM(laufkalender,Laufkal!$AI$5,Kriterien!A207:A208) -> 0
C102: 53 | D102: =DSUM(laufkalender,Laufkal!$F$5,Kriterien!A209:A210)+laufkmfolgejahr -> 0 | E102: =DSUM(radelkalender,Radelkal!$F$4,Kriterien!A209:A210) -> 0 | F102: 0 | G102: =DSUM(laufkalender,Laufkal!$AI$5,Kriterien!A209:A210) -> 0
D104: =SUM(D49:D103) -> 28.5 | E104: =SUM(E49:E103) -> 20 | F104: =SUM(F49:F103) -> 34.21428571 | G104: =SUM(G49:G103) -> 0

Sheet Jahre

Sheet Strecken
A1: Laufstrecken
A2: Strecke 1
A3: Strecke 2
A4: Strecke 3
A5: Strecke 4
A6: Strecke 5
A7: Strecke 6
A8: Strecke 7
A9: Strecke 8
A10: Strecke 9
A11: Strecke 10
A13: Radstrecken
A14: Strecke 1
A15: Strecke 2
A16: Strecke 3
A17: Strecke 4
A18: Strecke 5
A19: Strecke 6
A20: Strecke 7
A21: Strecke 8
A22: Strecke 9
A23: Strecke 10
A25: Distanzen
A26: 5
A27: 10
A28: 15
A29: 20
A30: 21.1
A31: 25
A32: 30
A33: 42.2
A35: Zum Einfügen weiterer Strecken neue Zeilen vor der letzten Zeile einfügen.
A36: Dadurch wird der festgelegte Eingabe-Bereich automatisch erweitert.

Sheet Bel-Kriterien
A1: Kriterien und Formeln zur Berechnung der Belastungen je Monat
A2: In diesem Blatt sind keine individuellen Änderungen notwendig. | O2: 1 | P2: 2 | Q2: 3 | R2: 4 | S2: 5 | T2: 6 | U2: 7 | V2: 8 | W2: 9 | X2: 10 | Y2: 11 | Z2: 12 | AA2: Sum
A3: mo | B3: bel | C3: mo | D3: bel | E3: mo | F3: bel | G3: mo | H3: bel | I3: mo | J3: bel | K3: mo | L3: bel | N3: =+Kriterien!B26 -> W | O3: =DSUM(laufkalender,Laufkal!F5,A3:B4) -> 10 | P3: =DSUM(laufkalender,Laufkal!$F$5,A5:B6) -> 0 | Q3: =DSUM(laufkalender,Laufkal!$F$5,A7:B8) -> 0 | R3: =DSUM(laufkalender,Laufkal!$F$5,A9:B10) -> 0 | S3: =DSUM(laufkalender,Laufkal!$F$5,A11:B12) -> 0 | T3: =DSUM(laufkalender,Laufkal!$F$5,A13:B14) -> 0 | U3: =DSUM(laufkalender,Laufkal!$F$5,A15:B16) -> 0 | V3: =DSUM(laufkalender,Laufkal!$F$5,A17:B18) -> 0 | W3: =DSUM(laufkalender,Laufkal!$F$5,A19:B20) -> 0 | X3: =DSUM(laufkalender,Laufkal!$F$5,A21:B22) -> 0 | Y3: =DSUM(laufkalender,Laufkal!$F$5,A23:B24) -> 0 | Z3: =DSUM(laufkalender,Laufkal!$F$5,A25:B26) -> 0 | AA3: =SUM(O3:Z3) -> 10
A4: 1 | B4: =+Kriterien!$B$26 -> W | C4: 1 | D4: =+Kriterien!$B$27 -> T >90% | E4: 1 | F4: =+Kriterien!$B$28 -> G2>80% | G4: 1 | H4: =+Kriterien!$B$29 -> G1>70% | I4: 1 | J4: =+Kriterien!$B$30 -> L>65% | K4: 1 | L4: =+Kriterien!$B$31 -> R<65% | N4: =+Kriterien!B27 -> T >90% | O4: =DSUM(laufkalender,Laufkal!$F$5,C3:D4) -> 0 | P4: =DSUM(laufkalender,Laufkal!$F$5,C5:D6) -> 0 | Q4: =DSUM(laufkalender,Laufkal!$F$5,C7:D8) -> 0 | R4: =DSUM(laufkalender,Laufkal!$F$5,C9:D10) -> 0 | S4: =DSUM(laufkalender,Laufkal!$F$5,C11:D12) -> 0 | T4: =DSUM(laufkalender,Laufkal!$F$5,C13:D14) -> 0 | U4: =DSUM(laufkalender,Laufkal!$F$5,C15:D16) -> 0 | V4: =DSUM(laufkalender,Laufkal!$F$5,C17:D18) -> 0 | W4: =DSUM(laufkalender,Laufkal!$F$5,C19:D20) -> 0 | X4: =DSUM(laufkalender,Laufkal!$F$5,C21:D22) -> 0 | Y4: =DSUM(laufkalender,Laufkal!$F$5,C23:D24) -> 0 | Z4: =DSUM(laufkalender,Laufkal!$F$5,C25:D26) -> 0 | AA4: =SUM(O4:Z4) -> 0
A5: mo | B5: bel | C5: mo | D5: bel | E5: mo | F5: bel | G5: mo | H5: bel | I5: mo | J5: bel | K5: mo | L5: bel | N5: =+Kriterien!B28 -> G2>80% | O5: =DSUM(laufkalender,Laufkal!$F$5,E3:F4) -> 0 | P5: =DSUM(laufkalender,Laufkal!$F$5,E5:F6) -> 0 | Q5: =DSUM(laufkalender,Laufkal!$F$5,E7:F8) -> 0 | R5: =DSUM(laufkalender,Laufkal!$F$5,E9:F10) -> 0 | S5: =DSUM(laufkalender,Laufkal!$F$5,E11:F12) -> 0 | T5: =DSUM(laufkalender,Laufkal!$F$5,E13:F14) -> 0 | U5: =DSUM(laufkalender,Laufkal!$F$5,E15:F16) -> 0 | V5: =DSUM(laufkalender,Laufkal!$F$5,E17:F18) -> 0 | W5: =DSUM(laufkalender,Laufkal!$F$5,E19:F20) -> 0 | X5: =DSUM(laufkalender,Laufkal!$F$5,E21:F22) -> 0 | Y5: =DSUM(laufkalender,Laufkal!$F$5,E23:F24) -> 0 | Z5: =DSUM(laufkalender,Laufkal!$F$5,E25:F26) -> 0 | AA5: 0
A6: 2 | B6: =+Kriterien!$B$26 -> W | C6: 2 | D6: =+Kriterien!$B$27 -> T >90% | E6: 2 | F6: =+Kriterien!$B$28 -> G2>80% | G6: 2 | H6: =+Kriterien!$B$29 -> G1>70% | I6: 2 | J6: =+Kriterien!$B$30 -> L>65% | K6: 2 | L6: =+Kriterien!$B$31 -> R<65% | N6: =+Kriterien!B29 -> G1>70% | O6: =DSUM(laufkalender,Laufkal!$F$5,G3:H4) -> 0 | P6: =DSUM(laufkalender,Laufkal!$F$5,G5:H6) -> 0 | Q6: =DSUM(laufkalender,Laufkal!$F$5,G7:H8) -> 0 | R6: =DSUM(laufkalender,Laufkal!$F$5,G9:H10) -> 0 | S6: =DSUM(laufkalender,Laufkal!$F$5,G11:H12) -> 0 | T6: =DSUM(laufkalender,Laufkal!$F$5,G13:H14) -> 0 | U6: =DSUM(laufkalender,Laufkal!$F$5,G15:H16) -> 0 | V6: =DSUM(laufkalender,Laufkal!$F$5,G17:H18) -> 0 | W6: =DSUM(laufkalender,Laufkal!$F$5,G19:H20) -> 0 | X6: =DSUM(laufkalender,Laufkal!$F$5,G21:H22) -> 0 | Y6: =DSUM(laufkalender,Laufkal!$F$5,G23:H24) -> 0 | Z6: =DSUM(laufkalender,Laufkal!$F$5,G25:H26) -> 0 | AA6: 0
A7: mo | B7: bel | C7: mo | D7: bel | E7: mo | F7: bel | G7: mo | H7: bel | I7: mo | J7: bel | K7: mo | L7: bel | N7: =+Kriterien!B30 -> L>65% | O7: =DSUM(laufkalender,Laufkal!$F$5,I3:J4) -> 12 | P7: =DSUM(laufkalender,Laufkal!$F$5,I5:J6) -> 0 | Q7: =DSUM(laufkalender,Laufkal!$F$5,I7:J8) -> 0 | R7: =DSUM(laufkalender,Laufkal!$F$5,I9:J10) -> 0 | S7: =DSUM(laufkalender,Laufkal!$F$5,I11:J12) -> 0 | T7: =DSUM(laufkalender,Laufkal!$F$5,I13:J14) -> 0 | U7: =DSUM(laufkalender,Laufkal!$F$5,I15:J16) -> 0 | V7: =DSUM(laufkalender,Laufkal!$F$5,I17:J18) -> 0 | W7: =DSUM(laufkalender,Laufkal!$F$5,I19:J20) -> 0 | X7: =DSUM(laufkalender,Laufkal!$F$5,I21:J22) -> 0 | Y7: =DSUM(laufkalender,Laufkal!$F$5,I23:J24) -> 0 | Z7: =DSUM(laufkalender,Laufkal!$F$5,I25:J26) -> 0 | AA7: 12
A8: 3 | B8: =+Kriterien!$B$26 -> W | C8: 3 | D8: =+Kriterien!$B$27 -> T >90% | E8: 3 | F8: =+Kriterien!$B$28 -> G2>80% | G8: 3 | H8: =+Kriterien!$B$29 -> G1>70% | I8: 3 | J8: =+Kriterien!$B$30 -> L>65% | K8: 3 | L8: =+Kriterien!$B$31 -> R<65% | N8: =+Kriterien!B31 -> R<65% | O8: =DSUM(laufkalender,Laufkal!$F$5,K3:L4) -> 6.5 | P8: =DSUM(laufkalender,Laufkal!$F$5,K5:L6) -> 0 | Q8: =DSUM(laufkalender,Laufkal!$F$5,K7:L8) -> 0 | R8: =DSUM(laufkalender,Laufkal!$F$5,K9:L10) -> 0 | S8: =DSUM(laufkalender,Laufkal!$F$5,K11:L12) -> 0 | T8: =DSUM(laufkalender,Laufkal!$F$5,K13:L14) -> 0 | U8: =DSUM(laufkalender,Laufkal!$F$5,K15:L16) -> 0 | V8: =DSUM(laufkalender,Laufkal!$F$5,K17:L18) -> 0 | W8: =DSUM(laufkalender,Laufkal!$F$5,K19:L20) -> 0 | X8: =DSUM(laufkalender,Laufkal!$F$5,K21:L22) -> 0 | Y8: =DSUM(laufkalender,Laufkal!$F$5,K23:L24) -> 0 | Z8: =DSUM(laufkalender,Laufkal!$F$5,K25:L26) -> 0 | AA8: 6.5
A9: mo | B9: bel | C9: mo | D9: bel | E9: mo | F9: bel | G9: mo | H9: bel | I9: mo | J9: bel | K9: mo | L9: bel | N9: Sum | O9: =SUM(O3:O8) -> 28.5 | P9: =SUM(P3:P8) -> 0 | Q9: 0 | R9: 0 | S9: 0 | T9: 0 | U9: 0 | V9: 0 | W9: 0 | X9: 0 | Y9: 0 | Z9: 0 | AA9: 28.5
A10: 4 | B10: =+Kriterien!$B$26 -> W | C10: 4 | D10: =+Kriterien!$B$27 -> T >90% | E10: 4 | F10: =+Kriterien!$B$28 -> G2>80% | G10: 4 | H10: =+Kriterien!$B$29 -> G1>70% | I10: 4 | J10: =+Kriterien!$B$30 -> L>65% | K10: 4 | L10: =+Kriterien!$B$31 -> R<65%
A11: mo | B11: bel | C11: mo | D11: bel | E11: mo | F11: bel | G11: mo | H11: bel | I11: mo | J11: bel | K11: mo | L11: bel | N11: =+Kriterien!B26 -> W | O11: =IF(O3=0,0,+O3/O9) -> 0.350877193 | P11: =IF(P3=0,0,+P3/P9) -> 0 | Q11: 0 | R11: 0 | S11: 0 | T11: 0 | U11: 0 | V11: 0 | W11: 0 | X11: 0 | Y11: 0 | Z11: 0 | AA11: =+AA3/AA9 -> 0.350877193
A12: 5 | B12: =+Kriterien!$B$26 -> W | C12: 5 | D12: =+Kriterien!$B$27 -> T >90% | E12: 5 | F12: =+Kriterien!$B$28 -> G2>80% | G12: 5 | H12: =+Kriterien!$B$29 -> G1>70% | I12: 5 | J12: =+Kriterien!$B$30 -> L>65% | K12: 5 | L12: =+Kriterien!$B$31 -> R<65% | N12: =+Kriterien!B27 -> T >90% | O12: =IF(O4=0,0,+O4/O9) -> 0 | P12: =IF(P4=0,0,+P4/P9) -> 0 | Q12: 0 | R12: 0 | S12: 0 | T12: 0 | U12: 0 | V12: 0 | W12: 0 | X12: 0 | Y12: 0 | Z12: 0 | AA12: =+AA4/AA9 -> 0
A13: mo | B13: bel | C13: mo | D13: bel | E13: mo | F13: bel | G13: mo | H13: bel | I13: mo | J13: bel | K13: mo | L13: bel | N13: =+Kriterien!B28 -> G2>80% | O13: =IF(O5=0,0,+O5/O9) -> 0 | P13: =IF(P5=0,0,+P5/P9) -> 0 | Q13: 0 | R13: 0 | S13: 0 | T13: 0 | U13: 0 | V13: 0 | W13: 0 | X13: 0 | Y13: 0 | Z13: 0 | AA13: =+AA5/AA9 -> 0
A14: 6 | B14: =+Kriterien!$B$26 -> W | C14: 6 | D14: =+Kriterien!$B$27 -> T >90% | E14: 6 | F14: =+Kriterien!$B$28 -> G2>80% | G14: 6 | H14: =+Kriterien!$B$29 -> G1>70% | I14: 6 | J14: =+Kriterien!$B$30 -> L>65% | K14: 6 | L14: =+Kriterien!$B$31 -> R<65% | N14: =+Kriterien!B29 -> G1>70% | O14: =IF(O6=0,0,+O6/O9) -> 0 | P14: =IF(P6=0,0,+P6/P9) -> 0 | Q14: 0 | R14: 0 | S14: 0 | T14: 0 | U14: 0 | V14: 0 | W14: 0 | X14: 0 | Y14: 0 | Z14: 0 | AA14: =+AA6/AA9 -> 0
A15: mo | B15: bel | C15: mo | D15: bel | E15: mo | F15: bel | G15: mo | H15: bel | I15: mo | J15: bel | K15: mo | L15: bel | N15: =+Kriterien!B30 -> L>65% | O15: =IF(O7=0,0,+O7/O9) -> 0.4210526316 | P15: =IF(P7=0,0,+P7/P9) -> 0 | Q15: 0 | R15: 0 | S15: 0 | T15: 0 | U15: 0 | V15: 0 | W15: 0 | X15: 0 | Y15: 0 | Z15: 0 | AA15: =+AA7/AA9 -> 0.4210526316
A16: 7 | B16: =+Kriterien!$B$26 -> W | C16: 7 | D16: =+Kriterien!$B$27 -> T >90% | E16: 7 | F16: =+Kriterien!$B$28 -> G2>80% | G16: 7 | H16: =+Kriterien!$B$29 -> G1>70% | I16: 7 | J16: =+Kriterien!$B$30 -> L>65% | K16: 7 | L16: =+Kriterien!$B$31 -> R<65% | N16: =+Kriterien!B31 -> R<65% | O16: =IF(O8=0,0,+O8/O9) -> 0.2280701754 | P16: =IF(P8=0,0,+P8/P9) -> 0 | Q16: 0 | R16: 0 | S16: 0 | T16: 0 | U16: 0 | V16: 0 | W16: 0 | X16: 0 | Y16: 0 | Z16: 0 | AA16: =+AA8/AA9 -> 0.2280701754
A17: mo | B17: bel | C17: mo | D17: bel | E17: mo | F17: bel | G17: mo | H17: bel | I17: mo | J17: bel | K17: mo | L17: bel | N17: Sum | O17: =SUM(O11:O16) -> 1 | P17: =SUM(P11:P16) -> 0 | Q17: 0 | R17: 0 | S17: 0 | T17: 0 | U17: 0 | V17: 0 | W17: 0 | X17: 0 | Y17: 0 | Z17: 0 | AA17: 1
A18: 8 | B18: =+Kriterien!$B$26 -> W | C18: 8 | D18: =+Kriterien!$B$27 -> T >90% | E18: 8 | F18: =+Kriterien!$B$28 -> G2>80% | G18: 8 | H18: =+Kriterien!$B$29 -> G1>70% | I18: 8 | J18: =+Kriterien!$B$30 -> L>65% | K18: 8 | L18: =+Kriterien!$B$31 -> R<65%
A19: mo | B19: bel | C19: mo | D19: bel | E19: mo | F19: bel | G19: mo | H19: bel | I19: mo | J19: bel | K19: mo | L19: bel
A20: 9 | B20: =+Kriterien!$B$26 -> W | C20: 9 | D20: =+Kriterien!$B$27 -> T >90% | E20: 9 | F20: =+Kriterien!$B$28 -> G2>80% | G20: 9 | H20: =+Kriterien!$B$29 -> G1>70% | I20: 9 | J20: =+Kriterien!$B$30 -> L>65% | K20: 9 | L20: =+Kriterien!$B$31 -> R<65%
A21: mo | B21: bel | C21: mo | D21: bel | E21: mo | F21: bel | G21: mo | H21: bel | I21: mo | J21: bel | K21: mo | L21: bel
A22: 10 | B22: =+Kriterien!$B$26 -> W | C22: 10 | D22: =+Kriterien!$B$27 -> T >90% | E22: 10 | F22: =+Kriterien!$B$28 -> G2>80% | G22: 10 | H22: =+Kriterien!$B$29 -> G1>70% | I22: 10 | J22: =+Kriterien!$B$30 -> L>65% | K22: 10 | L22: =+Kriterien!$B$31 -> R<65%
A23: mo | B23: bel | C23: mo | D23: bel | E23: mo | F23: bel | G23: mo | H23: bel | I23: mo | J23: bel | K23: mo | L23: bel
A24: 11 | B24: =+Kriterien!$B$26 -> W | C24: 11 | D24: =+Kriterien!$B$27 -> T >90% | E24: 11 | F24: =+Kriterien!$B$28 -> G2>80% | G24: 11 | H24: =+Kriterien!$B$29 -> G1>70% | I24: 11 | J24: =+Kriterien!$B$30 -> L>65% | K24: 11 | L24: =+Kriterien!$B$31 -> R<65%
A25: mo | B25: bel | C25: mo | D25: bel | E25: mo | F25: bel | G25: mo | H25: bel | I25: mo | J25: bel | K25: mo | L25: bel
A26: 12 | B26: =+Kriterien!$B$26 -> W | C26: 12 | D26: =+Kriterien!$B$27 -> T >90% | E26: 12 | F26: =+Kriterien!$B$28 -> G2>80% | G26: 12 | H26: =+Kriterien!$B$29 -> G1>70% | I26: 12 | J26: =+Kriterien!$B$30 -> L>65% | K26: 12 | L26: =+Kriterien!$B$31 -> R<65%
A28: Sollen mehr als 6 Belastungskriterien verwendet werden, müssen diese Tabellen manuell erweitert werden, damit Statistiken und Grafiken vollständig sind.
